Departmental Family,Entity,Date,Expense Type,Expense Area,Supplier,Transaction Number,Amount
Department for Work and Pensions,Corporate,23/09/2014,FAS - NON ASSET BACKED ASSISTANCE PAYMENTS,STR FAS ASSISTANCE PAYMENTS,THE PENSION PROTECTION FUND,1006718,"36,041,000"
Department for Work and Pensions,Corporate,30/09/2014,PRIME FACILITY PRICE,FG CD OPS ESTATES PRIME COSTS,TELEREAL TRILLIUM,2033316621,"33,531,586"
Department for Work and Pensions,Corporate,19/09/2014,2014 DIFFUSE MESOTHELIOMA SCHEME PAYMENTS,STR HEALTH AND WELLBEING MESOTHELIOMA 2014,GALLAGHER BASSETT,1006709,"10,000,000"
Department for Work and Pensions,Corporate,12/09/2014,HOSTING SERVICES,CIO ITLR HOSTING DEL P,HP ENTERPRISE SERVICES UK LTD,2033286335,"6,566,815"
Department for Work and Pensions,Employment Programmes,19/09/2014,CPS LP RECOVERIES,BALANCE SHEET,DWP MANUAL PAYMENTS,2004893,"4,607,214"
Department for Work and Pensions,Corporate,18/09/2014,AMS FIXED PRICE CONTRACTS,CIO ITLR AMS,HP ENTERPRISE SERVICES UK LTD,2033297132,"4,505,461"
Department for Work and Pensions,Corporate,12/09/2014,PIP FACE TO FACE ASSESSMENTS,FG HS PIP LOT 1,ATOS IT SERVICES UK LTD,2033286044,"4,483,479"
Department for Work and Pensions,Corporate,30/09/2014,PRIME BUSINESS RATES,FG CD OPS ESTATES PRIME COSTS,TELEREAL TRILLIUM,2033316620,"4,323,349"
Department for Work and Pensions,Corporate,22/09/2014,MEDICAL SERVICES FIXED COSTS,FG HS MEDICAL SERVICES CONTRACT DEL P,ATOS HEALTHCARE,2033301486,"3,822,379"
Department for Work and Pensions,Corporate,15/09/2014,HOSTING SERVICES,CIO ITLR HOSTING DEL P,HP ENTERPRISE SERVICES UK LTD,2033288635,"3,336,163"
Department for Work and Pensions,Corporate,16/09/2014,CONTRACTED OUT OFFICE SERVICES,FG CD CENTRAL CONTRACTS,COFELY WORKPLACE LTD,2033289396,"3,210,688"
Department for Work and Pensions,Corporate,16/09/2014,HOSTING SERVICES,CIO ITLR HOSTING DEL P,HP ENTERPRISE SERVICES UK LTD,2033290515,"3,061,762"
Department for Work and Pensions,Corporate,30/09/2014,AR PRIME RECOVERIES,BALANCE SHEET,TELEREAL TRILLIUM,2033316621,"2,678,951"
Department for Work and Pensions,Corporate,22/09/2014,NEST Loan - in year additions,CHG ERSP DEL A,NEST CORPORATION,2004897,"2,600,000"
Department for Work and Pensions,Corporate,12/09/2014,NETWORK SERVICES,CIO ITLR NETWORK,BT GLOBAL SERVICES,2033286212,"2,514,406"
Department for Work and Pensions,Child Maintenance and Enforcement Commission,04/09/2014,CONTRACTED OUT OFFICE SERVICES,EXTERNAL CONTRACTS VERTEX,SERCO PUBLIC SERVICES LTD,1000217160,"2,438,852"
Department for Work and Pensions,Corporate,12/09/2014,PIP FACE TO FACE ASSESSMENTS,FG HS PIP LOT 3,ATOS IT SERVICES UK LTD,2033286044,"2,398,718"
Department for Work and Pensions,Employment Programmes,22/09/2014,REMPLOY RESOURCE GRANT,WWEG EP REMPLOY,REMPLOY LTD,2033302034,"2,296,000"
Department for Work and Pensions,Child Maintenance and Enforcement Commission,19/09/2014,BELFAST BENEFIT CENTRE (RUN COSTS),CSA CD CENT HELD NORTHERN IRELAND PAYMENTS,DSD GROUP ACCOUNT,1001817,"2,285,349"
Department for Work and Pensions,Corporate,12/09/2014,NETWORK CONTACT CENTRE SERVICES,CIO ITLR NETWORK,BT GLOBAL SERVICES,2033286212,"2,225,076"
Department for Work and Pensions,Corporate,22/09/2014,VAT CLEARING,BALANCE SHEET,CMG,2004901,"1,897,347"
Department for Work and Pensions,Corporate,12/09/2014,SIAM FIXED PRICE CONTRACTS,CIO ITLR SIAM,HP ENTERPRISE SERVICES UK LTD,2033286335,"1,837,118"
Department for Work and Pensions,Corporate,30/09/2014,PRIME FACILITY PRICE,FG CD CMG ESTATES PRIME COSTS,TELEREAL TRILLIUM,2033316621,"1,819,989"
Department for Work and Pensions,European Social Fund,16/09/2014,MA ESF(D) PROGRAMME EXPENDITURE EC PREFUNDED DWP,WWEG EUROPEAN SOCIAL FUND PROGRAMME 2007-2013,NORTH WEST DWP,5000001698,"1,751,255"
Department for Work and Pensions,Corporate,24/09/2014,PIP FACE TO FACE ASSESSMENTS,FG HS PIP LOT 2,CAPITA BUSINESS SERVICES LTD,2033306955,"1,743,822"
Department for Work and Pensions,Corporate,24/09/2014,PIP PERFORMANCE PAYMENTS,FG HS PIP LOT 2,CAPITA BUSINESS SERVICES LTD,2033306955,"1,728,759"
Department for Work and Pensions,Corporate,15/09/2014,NON PRIME PROPERTY COSTS VAT RECOVERABLE,FG CD OPS ESTATES NON-PRIME COSTS,HMRC,2033288434,"1,723,154"
Department for Work and Pensions,Corporate,29/09/2014,CONTRACTED OUT HR SERVICES,HR SHARED SERVICES,SHARED SERVICES CONNECTED LTD,2033314254,"1,666,036"
Department for Work and Pensions,Corporate,18/09/2014,NON PRIME UTILITIES,FG CD DWP GAS & ELECTRICITY PAYMENTS / RECHARGES,EDF ENERGY 1 LTD SCC UTILITIES ONLY,2033298058,"1,600,538"
Department for Work and Pensions,Corporate,03/09/2014,CARBON REDUCTION COMMITMENT PAYMENTS,FG CD ECCMB COSTS,DEPARTMENT OF ENERGY AND CLIMATE CHANGE,2004860,"1,543,584"
Department for Work and Pensions,Corporate,17/09/2014,BELFAST BENEFIT CENTRE (RUN COSTS),OPS BEN BD LN BELFAST,DEPARTMENT FOR SOCIAL DEVELOPMENT,1006706,"1,527,112"
Department for Work and Pensions,Corporate,16/09/2014,NETWORK SERVICES,CIO ITLR NETWORK,BT GLOBAL SERVICES,2033290260,"1,411,045"
Department for Work and Pensions,Corporate,18/09/2014,NETWORK SERVICES,CIO ITLR NETWORK,BT GLOBAL SERVICES,2033298914,"1,409,686"
Department for Work and Pensions,Corporate,17/09/2014,NON-TREDDS IS IT SERVICES (AMS),CIO ITPD AM CUSTOMER FACING SYS,ACCENTURE UK LTD,2033291269,"1,372,143"
Department for Work and Pensions,Child Maintenance and Enforcement Commission,15/09/2014,CONTRACTED OUT OFFICE SERVICES,OPTIONS,G4S CUSTOMER SUPPORT SERVICES,1000217885,"1,365,073"
Department for Work and Pensions,Corporate,05/09/2014,PIP FACE TO FACE ASSESSMENTS,FG HS PIP LOT 2,CAPITA BUSINESS SERVICES LTD,2033272000,"1,359,879"
Department for Work and Pensions,Corporate,05/09/2014,PIP PERFORMANCE PAYMENTS,FG HS PIP LOT 2,CAPITA BUSINESS SERVICES LTD,2033272000,"1,352,435"
Department for Work and Pensions,Corporate,29/09/2014,CONTRACTED OUT ACCOUNTING SERVICES,FG SHARED SERVICES COSTS,SHARED SERVICES CONNECTED LTD,2033314254,"1,320,666"
Department for Work and Pensions,Corporate,30/09/2014,PRIME FACILITY PRICE,FG CD CAXTON,TELEREAL TRILLIUM,2033316621,"1,289,467"
Department for Work and Pensions,Corporate,22/09/2014,VAT CLEARING,BALANCE SHEET,CMG,2004902,"1,231,939"
Department for Work and Pensions,Corporate,04/09/2014,CONTRACTED OUT OFFICE SERVICES,OPS NET CC CAPITA,CAPITA,2033270656,"1,175,233"
Department for Work and Pensions,Corporate,23/09/2014,NON-TREDDS IS IT APPS DEV MANDAY,CHG UC PATHFINDER DELIVERY MANAGEMENT,ACCENTURE UK LTD,2033303278,"1,140,351"
Department for Work and Pensions,Corporate,08/09/2014,NETWORK SERVICES,CIO ITLR NETWORK,BT GLOBAL SERVICES,2033272565,"1,127,647"
Department for Work and Pensions,Corporate,09/09/2014,COURIER COSTS,FG CD CENTRAL CONTRACTS,TNT UK LTD,2033275559,"1,109,563"
Department for Work and Pensions,Corporate,17/09/2014,MEDICAL OPINIONS INCAPACITY BENEFIT,FG HS MEDICAL SERVICES CONTRACT DEL P,ATOS HEALTHCARE,2033292901,"1,050,798"
Department for Work and Pensions,Corporate,08/09/2014,VALUATION OFFICE,FG OPS FIN HDD VOA,VALUATION OFFICE AGENCY,2004863,"1,050,000"
Department for Work and Pensions,Corporate,09/09/2014,POSTAGE,FG CD ACC POSTAGE,UK MAIL,2033274852,"1,027,222"
Department for Work and Pensions,Corporate,16/09/2014,HOSTING PRINT SERVICES,CIO ITLR HOSTING DEL P,HP ENTERPRISE SERVICES UK LTD,2033290515,"990,803"
Department for Work and Pensions,Corporate,08/09/2014,MEDICAL OPINIONS INCAPACITY BENEFIT,FG HS MEDICAL SERVICES CONTRACT DEL P,ATOS HEALTHCARE,2033273584,"937,638"
Department for Work and Pensions,Corporate,19/09/2014,PRIME VARIABLE CHARGE,FG CD OPS ESTATES PRIME COSTS,TELEREAL TRILLIUM,2033299090,"914,663"
Department for Work and Pensions,Corporate,22/09/2014,DESKTOP SERVICES,CIO ITLR DESKTOP,HP ENTERPRISE SERVICES UK LTD,2033300996,"903,110"
Department for Work and Pensions,Corporate,08/09/2014,TELEPHONY CALL CHARGES,CIO ITLR NETWORK,BT GLOBAL SERVICES,2033272565,"846,945"
Department for Work and Pensions,Corporate,22/09/2014,NON-TREDDS IS IT SERVICES (AMS),CIO ITPD AM FACILITATING SYS,IBM UNITED KINGDOM LTD,2033302045,"802,908"
Department for Work and Pensions,European Social Fund,11/09/2014,MA ESF(D) PROGRAMME EXPENDITURE EC PREFUNDED DWP,WWEG EUROPEAN SOCIAL FUND PROGRAMME 2007-2013,NORTH EAST DWP,5000001696,"743,497"
Department for Work and Pensions,Corporate,29/09/2014,SOC SEC RESEARCH BUDGET,STR LM AND COND DIRECTOR AND SUPPORT,OFFICE FOR NATIONAL STATISTICS,2033313605,"743,470"
Department for Work and Pensions,Corporate,16/09/2014,RENEWALS OF SOFTWARE SUPPORT AND MAINTENANCE,CIO ITLR SOFTWARE P,HP ENTERPRISE SERVICES UK LTD,2033290515,"722,159"
Department for Work and Pensions,Corporate,15/09/2014,REMOTE STORAGE COSTS VAT RECOV,FG CD CENTRAL CONTRACTS,CAPITA BUSINESS SERVICES LTD,2033288649,"717,275"
Department for Work and Pensions,Corporate,16/09/2014,TREDDS IS IT CONSULTANCY (HOSTING) NON ADVICE,CHG UC PATHFINDER DELIVERY MANAGEMENT,HP ENTERPRISE SERVICES UK LTD,2033290515,"710,799"
Department for Work and Pensions,Corporate,26/09/2014,DESKTOP SERVICES,CIO ITLR DESKTOP,HP ENTERPRISE SERVICES UK LTD,2033311863,"707,226"
Department for Work and Pensions,Housing Benefits,12/09/2014,HOUSING BENEFIT ADMINISTRATION,HB ENGLAND,BIRMINGHAM CITY COUNCIL,2033287769,"646,826"
Department for Work and Pensions,Corporate,16/09/2014,TREDDS APPS DEV MANDAYS,CHG PIP IT PHASE 3,HP ENTERPRISE SERVICES UK LTD,2033290515,"622,347"
Department for Work and Pensions,Corporate,24/09/2014,PIP PAPER BASED ASSESSMENTS,FG HS PIP LOT 2,CAPITA BUSINESS SERVICES LTD,2033306955,"614,624"
Department for Work and Pensions,Corporate,22/09/2014,NON-TREDDS IS IT APPS DEV MANDAY,CHG UC PATHFINDER DELIVERY MANAGEMENT,IBM UNITED KINGDOM LTD,2033302045,"609,445"
Department for Work and Pensions,Corporate,16/09/2014,CONTRACTED OUT OFFICE SERVICES,CHG MOSAIC RECURRENT,COFELY WORKPLACE LTD,2033289396,"591,915"
Department for Work and Pensions,Corporate,16/09/2014,CONTRACTED OUT OFFICE SERVICES,FG CD OFFICE SERVICES,COFELY WORKPLACE LTD,2033289396,"589,781"
Department for Work and Pensions,Corporate,16/09/2014,NETWORK CONTACT CENTRE SERVICES,CIO ITLR NETWORK,BT GLOBAL SERVICES,2033290260,"578,842"
Department for Work and Pensions,Corporate,12/09/2014,NON-TREDDS IS IT SERVICES (AMS),CIO GG SERVICE DELIVERY,ATOS ORIGIN IT SERVICES UK LTD,2033286009,"551,752"
Department for Work and Pensions,Corporate,26/09/2014,CONSULTANTS VAT RECOVERABLE,OPS CCS WCA NEW PROCUREMENT,ERNST & YOUNG LLP,2033311330,"532,168"
Department for Work and Pensions,Corporate,30/09/2014,PRIME FACILITY PRICE,FG CD LEEDS QUARRY HOUSE,TELEREAL TRILLIUM,2033316621,"510,342"
Department for Work and Pensions,Corporate,12/09/2014,PIP PAPER BASED ASSESSMENTS,FG HS PIP LOT 3,ATOS IT SERVICES UK LTD,2033286044,"501,328"
Department for Work and Pensions,Corporate,22/09/2014,SIMPLE PAYMENT SERVICE,FG FIN CONT COBAP CHEQUES,CITIBANK GLOBAL CORPORATE BANKING,2033301414,"474,391"
Department for Work and Pensions,Corporate,12/09/2014,TELEPHONY CALL CHARGES,CIO ITLR NETWORK,BT GLOBAL SERVICES,2033286212,"470,070"
Department for Work and Pensions,Housing Benefits,12/09/2014,HOUSING BENEFIT ADMINISTRATION,HB SCOTLAND,CITY OF GLASGOW,2033287700,"465,515"
Department for Work and Pensions,Corporate,05/09/2014,PIP GP FACTUAL REPORTS,FG HS PIP LOT 2,CAPITA BUSINESS SERVICES LTD,2033272000,"465,483"
Department for Work and Pensions,Corporate,18/09/2014,NON-TREDDS IS IT SERVICES (AMS),CIO GG SERVICE DELIVERY,ATOS ORIGIN IT SERVICES UK LTD,2033297418,"444,050"
Department for Work and Pensions,Corporate,30/09/2014,AR PRIME RECOVERIES,BALANCE SHEET,TELEREAL TRILLIUM,2033316620,"443,995"
Department for Work and Pensions,Corporate,12/09/2014,PIP PAPER BASED ASSESSMENTS,FG HS PIP LOT 1,ATOS IT SERVICES UK LTD,2033286044,"442,295"
Department for Work and Pensions,Employment Programmes,04/09/2014,INNOVATION FUND,WWEG EP NATIONAL,T & T INNOVATION LTD,2033269326,"438,294"
Department for Work and Pensions,Corporate,05/09/2014,PIP PAPER BASED ASSESSMENTS,FG HS PIP LOT 2,CAPITA BUSINESS SERVICES LTD,2033272000,"436,139"
Department for Work and Pensions,Corporate,04/09/2014,SOFTWARE LICENCES GREATER THAN ONE YEAR TERM,CHG UC SECURITY,SPECIALIST COMPUTER CENTRES PLC,2033270422,"427,942"
Department for Work and Pensions,Corporate,19/09/2014,CREDIT UNION PRODUCTS,CHG CREDIT UNION EXPANSION AND DEVELOPMENT DELP,THE ASSOCIATION OF BRITISH CREDIT UNIONS LTD,2033299931,"411,759"
Department for Work and Pensions,Child Maintenance and Enforcement Commission,22/09/2014,NON-TREDDS IS IT APPS DEV MANDAY,MI PROJECT WAREHOUSE,CAPGEMINI UK PLC,1000218391,"405,000"
Department for Work and Pensions,Corporate,16/09/2014,POSTAGE,FG CD ACC POSTAGE,ROYAL MAIL GROUP PLC,2033290259,"399,688"
Department for Work and Pensions,Housing Benefits,12/09/2014,HOUSING BENEFIT ADMINISTRATION,HB ENGLAND,LIVERPOOL CITY COUNCIL,2033287692,"391,915"
Department for Work and Pensions,Employment Programmes,12/09/2014,SERVICE FEE,"WWEG EP SUPPORT LONDON CENTRL, LAMBETH, SOUTHWRK AND WANDSWRTH",A4E LTD,2033285388,"389,163"
Department for Work and Pensions,Housing Benefits,12/09/2014,HOUSING BENEFIT ADMINISTRATION,HB ENGLAND,MANCHESTER CITY COUNCIL,2033287709,"380,722"
Department for Work and Pensions,Child Maintenance and Enforcement Commission,16/09/2014,TREDDS APPS DEV MANDAYS,FS PHASE 2 - HPES COSTS,HP ENTERPRISE SERVICES UK LTD,1000217958,"380,060"
Department for Work and Pensions,Corporate,19/09/2014,CONTRACTED OUT DOCUMENT SCANNING,CHG SCANNING & DIGITAL STORAGE - AGILITY,XEROX UK LTD 3W,2033299512,"377,795"
Department for Work and Pensions,Corporate,10/09/2014,MANAGED SERVICE UNIVERSAL JOBMATCH,OPS NET DIG UNIVERSAL JOBMATCH CONTRACT,MONSTER GOVERNMENT SOLUTIONS,2033279308,"369,113"
Department for Work and Pensions,Corporate,12/09/2014,HOSTING FIXED PRICE CONTRACTS,CIO ITLR HOSTING DEL P,HP ENTERPRISE SERVICES UK LTD,2033286335,"367,873"
Department for Work and Pensions,Housing Benefits,12/09/2014,HOUSING BENEFIT ADMINISTRATION,HB ENGLAND,LEEDS CITY COUNCIL,2033287553,"364,588"
Department for Work and Pensions,Corporate,16/09/2014,DESKTOP SERVICES,CIO ITLR DESKTOP,HP ENTERPRISE SERVICES UK LTD,2033290515,"359,034"
Department for Work and Pensions,Corporate,22/09/2014,NON-TREDDS IS IT APPS DEV MANDAY,CHG PIP IT PHASE 3,IBM UNITED KINGDOM LTD,2033302045,"358,617"
Department for Work and Pensions,Corporate,30/09/2014,PRIME BUSINESS RATES,FG CD CAXTON,TELEREAL TRILLIUM,2033316620,"347,003"
Department for Work and Pensions,Corporate,23/09/2014,PRIME BILLABLE EXTRAS PRIME CONTRACT MANAGEMENT (PCM),OPS WDC DIRECTOR AND SUPPORT OFFICE,TELEREAL TRILLIUM,2033303237,"343,658"
Department for Work and Pensions,Corporate,30/09/2014,PRIME UTILITIES,FG CD OPS ESTATES PRIME COSTS,TELEREAL TRILLIUM,2033316619,"341,941"
Department for Work and Pensions,Corporate,30/09/2014,PRIME FACILITY PRICE,FG CD PEEL PARK,TELEREAL TRILLIUM,2033316621,"331,867"
Department for Work and Pensions,Child Maintenance and Enforcement Commission,24/09/2014,CONTRACTED OUT OFFICE SERVICES,OPTIONS,G4S CUSTOMER SUPPORT SERVICES,1000218527,"328,504"
Department for Work and Pensions,Employment Programmes,30/09/2014,SERVICE FEE,WWEG EP WORK CHOICE S WEST WALES S WALES VALLEYS,SHAW TRUST,2033316047,"325,966"
Department for Work and Pensions,Corporate,17/09/2014,RECRUITMENT & ASSESSMENT SERVICES AGENCY,HR DWP GENERAL FAST STREAM,HMRC,2004889,"317,924"
Department for Work and Pensions,Corporate,30/09/2014,PRIME FACILITY PRICE,FG CD MANCHESTER HEYWOOD STORES,TELEREAL TRILLIUM,2033316621,"317,606"
Department for Work and Pensions,Corporate,30/09/2014,PRIME BUSINESS RATES,FG CD CMG ESTATES PRIME COSTS,TELEREAL TRILLIUM,2033316620,"316,346"
Department for Work and Pensions,Corporate,17/09/2014,PACS INTER-VOTE CREDITOR,BALANCE SHEET,DWP MANUAL PAYMENTS,2004887,"310,518"
Department for Work and Pensions,Corporate,26/09/2014,PROFESSIONAL ADVICE & OPINION VAT RECOVERABLE,STR LEGAL SERVICES,TREASURY SOLICITORS DEPARTMENT,2033311031,"310,086"
Department for Work and Pensions,Corporate,23/09/2014,SIAM MANAGEMENT SERVICES,CIO ITLR SIAM,HP ENTERPRISE SERVICES UK LTD,2033303326,"308,283"
Department for Work and Pensions,Corporate,16/09/2014,TREDDS APPS DEV MANDAYS,CHG UC PATHFINDER DELIVERY MANAGEMENT,HP ENTERPRISE SERVICES UK LTD,2033290515,"305,363"
Department for Work and Pensions,Corporate,16/09/2014,PRIME BILLABLE EXTRAS PRIME CONTRACT MANAGEMENT (PCM),CHG DIGITAL JOBCENTRES,TELEREAL TRILLIUM,2033289663,"300,926"
Department for Work and Pensions,Housing Benefits,12/09/2014,HOUSING BENEFIT ADMINISTRATION,HB ENGLAND,LONDON BOROUGH OF TOWER HAMLETS,2033287849,"294,256"
Department for Work and Pensions,Employment Programmes,30/09/2014,SERVICE FEE,WWEG EP WORK CHOICE DERBYSHIRE SOUTH YORKSHIRE,SHAW TRUST,2033316047,"282,314"
Department for Work and Pensions,Employment Programmes,30/09/2014,SERVICE FEE,WWEG EP WORK CHOICE SURREY AND SUSSEX KENT,WORKING LINKS,2033316867,"281,558"
Department for Work and Pensions,Housing Benefits,12/09/2014,HOUSING BENEFIT ADMINISTRATION,HB ENGLAND,LONDON BOROUGH OF LAMBETH,2033287506,"281,385"
Department for Work and Pensions,Housing Benefits,12/09/2014,HOUSING BENEFIT ADMINISTRATION,HB ENGLAND,LONDON BOROUGH OF LEWISHAM,2033287583,"278,521"
Department for Work and Pensions,Employment Programmes,30/09/2014,SERVICE FEE,WWEG EP WORK CHOICE DEVON AND CORNWALL,THE PLUSS ORGANISATION,2033317157,"277,507"
Department for Work and Pensions,Corporate,11/09/2014,NON-TREDDS IS IT SERVICES (AMS),OPS PEN PS TUO ISIT,ATOS ORIGIN IT SERVICES UK LTD,2033284439,"274,650"
Department for Work and Pensions,Housing Benefits,12/09/2014,HOUSING BENEFIT ADMINISTRATION,HB ENGLAND,BRADFORD METROPOLITAN BOROUGH COUNCIL,2033287527,"271,434"
Department for Work and Pensions,Employment Programmes,30/09/2014,SERVICE FEE,WWEG EP WORK CHOICE W LON C LON BARNET ENFIELD HARINGEY,SEETEC BUSINESS TECHNOLOGY CENTRE LTD,2033316030,"270,139"
Department for Work and Pensions,Housing Benefits,12/09/2014,HOUSING BENEFIT ADMINISTRATION,HB ENGLAND,HACKNEY LBC,2033287786,"269,625"
Department for Work and Pensions,Housing Benefits,12/09/2014,HOUSING BENEFIT ADMINISTRATION,HB ENGLAND,DURHAM COUNCIL,2033287643,"267,614"
Department for Work and Pensions,Housing Benefits,12/09/2014,HOUSING BENEFIT ADMINISTRATION,HB ENGLAND,LONDON BOROUGH OF SOUTHWARK,2033287803,"255,725"
Department for Work and Pensions,Housing Benefits,12/09/2014,HOUSING BENEFIT ADMINISTRATION,HB ENGLAND,SHEFFIELD CITY COUNCIL,2033287491,"252,120"
Department for Work and Pensions,Corporate,15/09/2014,HOSTING FIXED PRICE CONTRACTS,CIO ITLR HOSTING DEL P,HP ENTERPRISE SERVICES UK LTD,2033288635,"250,617"
Department for Work and Pensions,Corporate,16/09/2014,TREDDS IS IT CONSULTANCY (HOSTING) NON ADVICE,CIO INFRASTRUCTURE & SERVICE REMEDIATION,HP ENTERPRISE SERVICES UK LTD,2033290515,"239,034"
Department for Work and Pensions,Housing Benefits,12/09/2014,HOUSING BENEFIT ADMINISTRATION,HB ENGLAND,BRISTOL CITY COUNCIL,2033287850,"235,177"
Department for Work and Pensions,Housing Benefits,12/09/2014,HOUSING BENEFIT ADMINISTRATION,HB ENGLAND,CORNWALL COUNCIL,2033287644,"233,440"
Department for Work and Pensions,Housing Benefits,12/09/2014,HOUSING BENEFIT ADMINISTRATION,HB ENGLAND,LONDON BOROUGH OF BRENT,2033287738,"231,991"
Department for Work and Pensions,Employment Programmes,30/09/2014,SERVICE FEE,WWEG EP WORK CHOICE BEDFORDSHIRE AND HERTFORDSHIRE ESSEX,SHAW TRUST,2033316047,"229,330"
Department for Work and Pensions,Corporate,15/09/2014,NON PRIME UTILITIES,FG CD DWP GAS & ELECTRICITY PAYMENTS / RECHARGES,CORONA ENERGY RETAIL 4 LTD SCC UTILITIES ONLY,2033288277,"227,717"
Department for Work and Pensions,Corporate,16/09/2014,SIAM STAT MANDAYS,CIO ITLR SIAM,HP ENTERPRISE SERVICES UK LTD,2033290515,"226,359"
Department for Work and Pensions,Employment Programmes,30/09/2014,SERVICE FEE,WWEG EP WORK CHOICE THE MARCHES COVENTRY AND WARKS,SHAW TRUST,2033316047,"225,322"
Department for Work and Pensions,Employment Programmes,10/09/2014,INNOVATION FUND,WWEG EP NATIONAL,ADVANCED PERSONNEL MANAGEMENT,2033279392,"219,744"
Department for Work and Pensions,Employment Programmes,15/09/2014,RESIDENTIAL TRAINING COSTS,WWEG EP DELIVERY WELFARE TO WORK PRODUCT SUPPORT,QUEEN ELIZABETHS FOUNDATION TRAINING COLLEGE,2033288177,"218,653"
Department for Work and Pensions,Housing Benefits,12/09/2014,HOUSING BENEFIT ADMINISTRATION,HB ENGLAND,CROYDON PEO%,2033287830,"215,018"
Department for Work and Pensions,Housing Benefits,12/09/2014,HOUSING BENEFIT ADMINISTRATION,HB SCOTLAND,EDINBURGH DISTRICT COUNCIL,2033287701,"214,518"
Department for Work and Pensions,Corporate,08/09/2014,NETWORK CONTACT CENTRE SERVICES,CIO ITLR NETWORK,BT GLOBAL SERVICES,2033272565,"211,962"
Department for Work and Pensions,Housing Benefits,12/09/2014,HOUSING BENEFIT ADMINISTRATION,HB ENGLAND,LONDON BOROUGH OF NEWHAM,2033287714,"211,186"
Department for Work and Pensions,Employment Programmes,30/09/2014,SERVICE FEE,WWEG EP WORK CHOICE WEST YORKSHIRE,THE PLUSS ORGANISATION,2033317157,"211,148"
Department for Work and Pensions,Corporate,15/09/2014,CONTRACTORS & STAFF SUBSTITUTIONS,CHG IT TRANSFORMATION PROG,CAPITA BUSINESS SERVICES LTD,2033288299,"210,644"
Department for Work and Pensions,Housing Benefits,12/09/2014,HOUSING BENEFIT ADMINISTRATION,HB ENGLAND,LONDON BOROUGH OF HARINGEY,2033287737,"209,933"
Department for Work and Pensions,Corporate,22/09/2014,BANK COMMISSION & CHARGES,FG FIN CONT COBAP BANKING,HSBC BANK PLC,2033302530,"209,180"
Department for Work and Pensions,Housing Benefits,12/09/2014,HOUSING BENEFIT ADMINISTRATION,HB ENGLAND,LONDON BOROUGH OF ENFIELD,2033287783,"208,427"
Department for Work and Pensions,Corporate,08/09/2014,NETWORK SERVICES,CIO ITLR NETWORK,BT GLOBAL SERVICES,2033272566,"204,945"
Department for Work and Pensions,Employment Programmes,30/09/2014,SERVICE FEE,WWEG EP WORK CHOICE G MANCHESTER CENTRAL; G MANCHESTER E & W,SHAW TRUST,2033316047,"203,168"
Department for Work and Pensions,Housing Benefits,12/09/2014,HOUSING BENEFIT ADMINISTRATION,HB ENGLAND,LONDON BOROUGH OF EALING,2033287740,"202,916"
Department for Work and Pensions,Housing Benefits,12/09/2014,HOUSING BENEFIT ADMINISTRATION,HB ENGLAND,NOTTINGHAM CITY COUNCIL,2033287718,"201,659"
Department for Work and Pensions,Employment Programmes,30/09/2014,SERVICE FEE,WWEG EP WORK CHOICE NORTH AND MID WALES SOUTH EAST WALES,WORKING LINKS,2033316867,"200,497"
Department for Work and Pensions,Employment Programmes,30/09/2014,SERVICE FEE,WWEG EP WORK CHOICE CAMBRIDGESHIRE AND SUFFOLK NORFOLK,SHAW TRUST,2033316047,"199,776"
Department for Work and Pensions,Housing Benefits,12/09/2014,HOUSING BENEFIT ADMINISTRATION,HB ENGLAND,LONDON BOROUGH OF ISLINGTON,2033287562,"199,556"
Department for Work and Pensions,Employment Programmes,30/09/2014,SERVICE FEE,WWEG EP WORK CHOICE HIGH ISLDS AND CLYDE COAST AND GRAMP,MOMENTUM SCOTLAND,2033316045,"198,380"
Department for Work and Pensions,Corporate,15/09/2014,NON-TREDDS IS IT SERVICES (AMS),CIO ITPD AM PROTOTYPE & STANDALONE SYS,CAPGEMINI UK PLC,2033288692,"198,101"
Department for Work and Pensions,Employment Programmes,18/09/2014,INNOVATION FUND,WWEG EP NATIONAL,TRIODOS NEW HORIZONS LTD,2033297816,"197,976"
Department for Work and Pensions,Housing Benefits,12/09/2014,HOUSING BENEFIT ADMINISTRATION,HB ENGLAND,LONDON BOROUGH OF GREENWICH,2033287741,"194,927"
Department for Work and Pensions,Employment Programmes,30/09/2014,SERVICE FEE,WWEG EP WORK CHOICE GLASGOW LANARKS AND E DUNBART,SHAW TRUST,2033316047,"192,831"
Department for Work and Pensions,Employment Programmes,30/09/2014,SERVICE FEE,WWEG EP WORK CHOICE NOTTINGHAMSHIRE LINCOLNSHIRE AND RUTLAND,SHAW TRUST,2033316047,"186,686"
Department for Work and Pensions,Employment Programmes,30/09/2014,SERVICE FEE,WWEG EP WORK CHOICE HAMPSHIRE AND ISLE OF WIGHT,CDG WISE ABILITY LTD,2033317271,"185,470"
Department for Work and Pensions,Housing Benefits,12/09/2014,HOUSING BENEFIT ADMINISTRATION,HB ENGLAND,LONDON BOROUGH OF BARNET,2033287784,"185,442"
Department for Work and Pensions,Housing Benefits,12/09/2014,HOUSING BENEFIT ADMINISTRATION,HB ENGLAND,LONDON BOROUGH OF WANDSWORTH,2033287605,"184,118"
Department for Work and Pensions,Housing Benefits,12/09/2014,HOUSING BENEFIT ADMINISTRATION,HB ENGLAND,WAKEFIELD  DISTRICT COUNCIL,2033287509,"180,697"
Department for Work and Pensions,Housing Benefits,12/09/2014,HOUSING BENEFIT ADMINISTRATION,HB ENGLAND,SANDWELL BOROUGH COUNCIL,2033287680,"180,337"
Department for Work and Pensions,Housing Benefits,12/09/2014,HOUSING BENEFIT ADMINISTRATION,HB ENGLAND,LEICESTER CITY COUNCIL,2033287516,"179,804"
Department for Work and Pensions,Housing Benefits,12/09/2014,HOUSING BENEFIT ADMINISTRATION,HB ENGLAND,SUNDERLAND CITY COUNCIL,2033287681,"178,958"
Department for Work and Pensions,Housing Benefits,12/09/2014,HOUSING BENEFIT ADMINISTRATION,HB ENGLAND,KIRKLEES METROPOLITAN BOROUGH COUNCIL,2033287525,"176,854"
Department for Work and Pensions,Employment Programmes,30/09/2014,SERVICE FEE,WWEG EP WORK CHOICE BIRMINGHAM SOLIHULL BLACK COUNTRY,ADVANCE HOUSING & SUPPORT LTD,2033316865,"176,036"
Department for Work and Pensions,Housing Benefits,12/09/2014,HOUSING BENEFIT ADMINISTRATION,HB ENGLAND,CITY OF WESTMINSTER,2033287635,"174,509"
Department for Work and Pensions,Housing Benefits,12/09/2014,HOUSING BENEFIT ADMINISTRATION,HB ENGLAND,KINGSTON UPON HULL CITY COUNCIL,2033287839,"174,345"
Department for Work and Pensions,Employment Programmes,30/09/2014,SERVICE FEE,WWEG EP WORK CHOICE S TYNE AND WEAR VALLEY NORTHUMBRIA,SHAW TRUST,2033316047,"173,621"
Department for Work and Pensions,Housing Benefits,12/09/2014,HOUSING BENEFIT ADMINISTRATION,HB ENGLAND,COVENTRY CITY COUNCIL,2033287808,"173,037"
Department for Work and Pensions,Corporate,22/09/2014,NON PRIME PROPERTY COSTS VAT RECOVERABLE,FG CD OPS ESTATES NON-PRIME COSTS,HMRC,2033302799,"172,945"
Department for Work and Pensions,Employment Programmes,30/09/2014,SERVICE FEE,WWEG EP WORK CHOICE N E YORKS AND THE HUMBER TEES VALLEY,SHAW TRUST,2033316047,"172,906"
Department for Work and Pensions,Employment Programmes,15/09/2014,RESIDENTIAL TRAINING COSTS,WWEG EP DELIVERY WELFARE TO WORK PRODUCT SUPPORT,FINCHALE TRAINING COLLEGE,2033288066,"172,137"
Department for Work and Pensions,Housing Benefits,12/09/2014,HOUSING BENEFIT ADMINISTRATION,HB ENGLAND,LONDON BOROUGH OF CAMDEN,2033287493,"171,970"
Department for Work and Pensions,Employment Programmes,30/09/2014,SERVICE FEE,WWEG EP WORK CHOICE MERSEYSIDE CHESH HALTON & WARRINGTON,SHAW TRUST,2033316047,"171,913"
Department for Work and Pensions,Housing Benefits,12/09/2014,HOUSING BENEFIT ADMINISTRATION,HB ENGLAND,WIRRAL BOROUGH COUNCIL,2033287690,"170,084"
Department for Work and Pensions,Child Maintenance and Enforcement Commission,16/09/2014,TREDDS APPS DEV MANDAYS,LEGACY RELEASE 22,HP ENTERPRISE SERVICES UK LTD,1000217958,"169,286"
Department for Work and Pensions,Housing Benefits,12/09/2014,HOUSING BENEFIT ADMINISTRATION,HB SCOTLAND,NORTH LANARKSHIRE COUNCIL,2033287549,"169,245"
Department for Work and Pensions,Housing Benefits,12/09/2014,HOUSING BENEFIT ADMINISTRATION,HB ENGLAND,NEWCASTLE CITY COUNCIL,2033287606,"168,093"
Department for Work and Pensions,Corporate,15/09/2014,NETWORK SERVICES,CIO ITLR NETWORK,BT GLOBAL SERVICES,2033288507,"167,936"
Department for Work and Pensions,Employment Programmes,30/09/2014,SERVICE FEE,WWEG EP WORK CHOICE ED LOTH BORDS AYR DUM GALL INVER,SHAW TRUST,2033316047,"167,858"
Department for Work and Pensions,Corporate,22/09/2014,NON-TREDDS APPS DEV FIXED PRICE CONTRACTS,CHG SCANNING & DIGITAL STORAGE,IBM UNITED KINGDOM LTD,2033302046,"166,733"
Department for Work and Pensions,Corporate,16/09/2014,AMS MANDAYS,CHG UC PATHFINDER RECURRENT COSTS,HP ENTERPRISE SERVICES UK LTD,2033290515,"166,551"
Department for Work and Pensions,Housing Benefits,12/09/2014,HOUSING BENEFIT ADMINISTRATION,HB ENGLAND,SALFORD CITY COUNCIL,2033287616,"166,363"
Department for Work and Pensions,Corporate,16/09/2014,TELEPHONY CALL CHARGES,CIO ITLR NETWORK,BT GLOBAL SERVICES,2033290260,"165,454"
Department for Work and Pensions,Housing Benefits,12/09/2014,HOUSING BENEFIT ADMINISTRATION,HB ENGLAND,BRIGHTON & HOVE COUNCIL,2033287853,"164,318"
Department for Work and Pensions,Housing Benefits,12/09/2014,HOUSING BENEFIT ADMINISTRATION,HB ENGLAND,LONDON BOROUGH OF WALTHAM FOREST,2033287558,"164,313"
Department for Work and Pensions,Employment Programmes,30/09/2014,SERVICE FEE,WWEG EP WORK CHOICE W OF ENGLAND GLOS WILTS AND SWINDON,WORKING LINKS,2033316867,"164,022"
Department for Work and Pensions,Housing Benefits,12/09/2014,HOUSING BENEFIT ADMINISTRATION,HB ENGLAND,WALSALL BOROUGH COUNCIL,2033287679,"162,018"
Department for Work and Pensions,Housing Benefits,12/09/2014,HOUSING BENEFIT ADMINISTRATION,HB SCOTLAND,FIFE COUNCIL,2033287807,"161,304"
Department for Work and Pensions,Employment Programmes,30/09/2014,SERVICE FEE,WWEG EP WORK CHOICE S LON LAMBETH SOUTHWARK WANDSWORTH,INGEUS UK LTD,2033316864,"160,063"
Department for Work and Pensions,European Social Fund,08/09/2014,MA ESF(D) PROGRAMME EXPENDITURE EC PREFUNDED DWP,WWEG EUROPEAN SOCIAL FUND PROGRAMME 2007-2013,NORTH EAST DWP,5000001695,"157,229"
Department for Work and Pensions,Corporate,15/09/2014,CONTRACTORS & STAFF SUBSTITUTIONS,CIO ADC DIRECTOR,CAPITA BUSINESS SERVICES LTD,2033288299,"156,890"
Department for Work and Pensions,Corporate,02/09/2014,CONTRACTED OUT OFFICE SERVICES,FG OPS FIN DEBT OPS CENTRAL,EXPERIAN LTD,2033258922,"156,750"
Department for Work and Pensions,Corporate,18/09/2014,CONTRACTED OUT OFFICE SERVICES,FG OPS FIN DEBT OPS CENTRAL,EXPERIAN LTD,2033298916,"156,750"
Department for Work and Pensions,Housing Benefits,12/09/2014,HOUSING BENEFIT ADMINISTRATION,HB WALES,CARDIFF CITY COUNCIL,2033287611,"156,677"
Department for Work and Pensions,Housing Benefits,12/09/2014,HOUSING BENEFIT ADMINISTRATION,HB ENGLAND,DONCASTER METROPOLITAN BOROUGH COUNCIL,2033287490,"156,450"
Department for Work and Pensions,Employment Programmes,30/09/2014,SERVICE FEE,WWEG EP WORK CHOICE FORTH VALLEY FIFE AND TAYSIDE,SHAW TRUST,2033316047,"154,424"
Department for Work and Pensions,Housing Benefits,12/09/2014,HOUSING BENEFIT ADMINISTRATION,HB ENGLAND,WILTSHIRE COUNCIL,2033287640,"151,051"
Department for Work and Pensions,Housing Benefits,12/09/2014,HOUSING BENEFIT ADMINISTRATION,HB ENGLAND,BOLTON METROPOLITAN BOROUGH COUNCIL,2033287735,"150,470"
Department for Work and Pensions,Corporate,05/09/2014,NON-TREDDS APPS DEV FIXED PRICE CONTRACTS,CIO ADEP ITLR ADEP TRANSITION,IBM UNITED KINGDOM LTD,2033272365,"149,884"
Department for Work and Pensions,Housing Benefits,12/09/2014,HOUSING BENEFIT ADMINISTRATION,HB ENGLAND,WOLVERHAMPTON CITY COUNCIL,2033287813,"149,472"
Department for Work and Pensions,Employment Programmes,15/09/2014,RESIDENTIAL TRAINING COSTS,WWEG EP DELIVERY WELFARE TO WORK PRODUCT SUPPORT,ST LOYES COLLEGE FOUNDATION,2033288752,"148,076"
Department for Work and Pensions,Corporate,16/09/2014,CONTRACTED OUT OFFICE SERVICES,FG OPS FIN DM CONTRACTS,COFELY WORKPLACE LTD,2033289396,"147,328"
Department for Work and Pensions,Housing Benefits,12/09/2014,HOUSING BENEFIT ADMINISTRATION,HB ENGLAND,PLYMOUTH CITY COUNCIL,2033287560,"146,294"
Department for Work and Pensions,Housing Benefits,12/09/2014,HOUSING BENEFIT ADMINISTRATION,HB ENGLAND,WIGAN BOROUGH COUNCIL,2033287758,"143,778"
Department for Work and Pensions,Employment Programmes,30/09/2014,SERVICE FEE,WWEG EP WORK CHOICE DORSET AND SOMERSET,SHAW TRUST,2033316047,"140,247"
Department for Work and Pensions,Corporate,12/09/2014,VOCA Charges,FG FIN CONT COBAP BANKING,VOCALINK,2033285773,"138,925"
Department for Work and Pensions,Housing Benefits,12/09/2014,HOUSING BENEFIT ADMINISTRATION,HB ENGLAND,LONDON BOROUGH OF HILLINGDON,2033287658,"136,791"
Department for Work and Pensions,Housing Benefits,12/09/2014,HOUSING BENEFIT ADMINISTRATION,HB ENGLAND,LONDON BOROUGH OF HOUNSLOW,2033287762,"136,096"
Department for Work and Pensions,Corporate,30/09/2014,CONTRACTORS & STAFF SUBSTITUTIONS,CHG IT TRANSFORMATION PROG,CAPITA BUSINESS SERVICES LTD,2033316557,"135,914"
Department for Work and Pensions,Corporate,03/09/2014,CONSULTANTS VAT RECOVERABLE,OPS CCS WCA NEW PROCUREMENT,ERNST & YOUNG LLP,2033264233,"135,645"
Department for Work and Pensions,Housing Benefits,12/09/2014,HOUSING BENEFIT ADMINISTRATION,HB ENGLAND,LONDON BOROUGH OF HAMMERSMITH & FULHAM,2033287514,"134,665"
Department for Work and Pensions,Employment Programmes,30/09/2014,SERVICE FEE,WWEG EP WORK CHOICE BERKSHIRE BUCKS AND OXFORDSHIRE,SHAW TRUST,2033316047,"134,267"
Department for Work and Pensions,Corporate,15/09/2014,CONTRACTORS & STAFF SUBSTITUTIONS,CHG UC DESIGN & BUILD PROGRAMME MANAGER,CAPITA BUSINESS SERVICES LTD,2033288299,"133,303"
Department for Work and Pensions,Housing Benefits,12/09/2014,HOUSING BENEFIT ADMINISTRATION,HB ENGLAND,NORTHUMBERLAND COUNCIL,2033287642,"132,994"
Department for Work and Pensions,Housing Benefits,12/09/2014,HOUSING BENEFIT ADMINISTRATION,HB SCOTLAND,SOUTH LANARKSHIRE COUNCIL,2033287827,"132,928"
Department for Work and Pensions,Corporate,24/09/2014,NON-TREDDS IS IT APPS DEV MANDAY,CHG SCANNING & DIGITAL STORAGE,ACCENTURE UK LTD,2033305738,"132,731"
Department for Work and Pensions,Housing Benefits,12/09/2014,HOUSING BENEFIT ADMINISTRATION,HB ENGLAND,SOUTHAMPTON CITY COUNCIL,2033287688,"132,570"
Department for Work and Pensions,Housing Benefits,12/09/2014,HOUSING BENEFIT ADMINISTRATION,HB ENGLAND,STOKE ON TRENT CITY COUNCIL,2033287790,"132,241"
Department for Work and Pensions,Housing Benefits,12/09/2014,HOUSING BENEFIT ADMINISTRATION,HB ENGLAND,SEFTON METROPOLITAN BOROUGH COUNCIL,2033287785,"132,193"
Department for Work and Pensions,Employment Programmes,30/09/2014,SERVICE FEE,WWEG EP CHOICE WALT FOR RBRID HAV BARK DAG C E LON,WORKING LINKS,2033316867,"130,544"
Department for Work and Pensions,Corporate,30/09/2014,PRIME FACILITY PRICE,FG CD BIRCHWOOD,TELEREAL TRILLIUM,2033316621,"129,376"
Department for Work and Pensions,Corporate,25/09/2014,STAFF RELATED COSTS VAT RECOVERABLE,HR EAP,RIGHT CORECARE,2033309266,"128,869"
Department for Work and Pensions,Corporate,29/09/2014,NON ICONS NETWORK SERVICES,CIO ITLR DIRECT COSTS CMG,CAPGEMINI UK PLC,2033313904,"128,618"
Department for Work and Pensions,Employment Programmes,12/09/2014,SERVICE FEE,"WWEG EP SUPPORT ESSEX, BEDFORSHIRE AND HERTFORDSHIRE",SEETEC BUSINESS TECHNOLOGY CENTRE LTD,2033285979,"128,454"
Department for Work and Pensions,Housing Benefits,12/09/2014,HOUSING BENEFIT ADMINISTRATION,HB ENGLAND,MILTON KEYNES BOROUGH COUNCIL,2033287797,"128,135"
Department for Work and Pensions,Corporate,30/09/2014,PRIME FACILITY PRICE,FG CD SHEFFIELD KINGS COURT,TELEREAL TRILLIUM,2033316621,"127,352"
Department for Work and Pensions,Housing Benefits,12/09/2014,HOUSING BENEFIT ADMINISTRATION,HB ENGLAND,TAMESIDE BOROUGH COUNCIL,2033287708,"127,192"
Department for Work and Pensions,Employment Programmes,12/09/2014,SERVICE FEE,WWEG EP SUPPORT WEST OF ENGLAND,PINNACLE PEOPLE,2033285323,"126,597"
Department for Work and Pensions,Housing Benefits,12/09/2014,HOUSING BENEFIT ADMINISTRATION,HB ENGLAND,DUDLEY METROPOLITAN BOROUGH COUNCIL,2033287719,"126,391"
Department for Work and Pensions,Housing Benefits,12/09/2014,HOUSING BENEFIT ADMINISTRATION,HB ENGLAND,PORTSMOUTH CITY COUNCIL,2033287829,"125,582"
Department for Work and Pensions,Employment Programmes,23/09/2014,INNOVATION FUND,WWEG EP NATIONAL,T & T INNOVATION LTD,2033303408,"124,898"
Department for Work and Pensions,Housing Benefits,12/09/2014,HOUSING BENEFIT ADMINISTRATION,HB ENGLAND,ROCHDALE BOROUGH COUNCIL,2033287732,"124,316"
Department for Work and Pensions,Employment Programmes,30/09/2014,SERVICE FEE,WWEG EP WORK CHOICE CUMBRIA AND LANCASHIRE,SHAW TRUST,2033316047,"123,547"
Department for Work and Pensions,Housing Benefits,12/09/2014,HOUSING BENEFIT ADMINISTRATION,HB ENGLAND,CHESHIRE WEST & CHESTER COUNCIL,2033287645,"123,032"
Department for Work and Pensions,Employment Programmes,12/09/2014,SERVICE FEE,"WWEG EP SUPPORT CAMBRDIGE AND SUFFOLK, NORFOLK, LINCOLN AND RUTLAND",TNG LTD,2033285868,"122,951"
Department for Work and Pensions,Housing Benefits,12/09/2014,HOUSING BENEFIT ADMINISTRATION,HB ENGLAND,OLDHAM BOROUGH COUNCIL,2033287733,"121,691"
Department for Work and Pensions,Housing Benefits,12/09/2014,HOUSING BENEFIT ADMINISTRATION,HB ENGLAND,LONDON BOROUGH OF BARKING & DAGENHAM,2033287828,"121,622"
Department for Work and Pensions,Housing Benefits,12/09/2014,HOUSING BENEFIT ADMINISTRATION,HB ENGLAND,MEDWAY TOWNS COUNCIL,2033287817,"121,256"
Department for Work and Pensions,Corporate,02/09/2014,PROFESSIONAL ADVICE & OPINION VAT RECOVERABLE,STR LEGAL SERVICES,CABINET OFFICE RM SHARED SERVICES,2004857,"121,014"
Department for Work and Pensions,Housing Benefits,12/09/2014,HOUSING BENEFIT ADMINISTRATION,HB ENGLAND,ROTHERHAM BOROUGH COUNCIL,2033287705,"118,374"
Department for Work and Pensions,Housing Benefits,12/09/2014,HOUSING BENEFIT ADMINISTRATION,HB ENGLAND,LONDON BOROUGH OF BROMLEY,2033287764,"117,741"
Department for Work and Pensions,Housing Benefits,12/09/2014,HOUSING BENEFIT ADMINISTRATION,HB ENGLAND,EAST RIDING OF YORKSHIRE BOROUGH COUNCIL,2033287838,"117,477"
Department for Work and Pensions,Corporate,09/09/2014,CIVIL SERVICE OCCUPATIONAL HEALTH SERVICE,HR OHS,OH ASSIST,2033274786,"117,145"
Department for Work and Pensions,Housing Benefits,12/09/2014,HOUSING BENEFIT ADMINISTRATION,HB ENGLAND,CHESHIRE EAST BOROUGH COUNCIL,2033287668,"116,839"
Department for Work and Pensions,Housing Benefits,12/09/2014,HOUSING BENEFIT ADMINISTRATION,HB ENGLAND,LONDON BOROUGH OF KENSINGTON & CHELSEA,2033287523,"116,235"
Department for Work and Pensions,Employment Programmes,16/09/2014,RESIDENTIAL TRAINING COSTS,WWEG EP DELIVERY WELFARE TO WORK PRODUCT SUPPORT,RNCB HEREFORD,2033290087,"115,978"
Department for Work and Pensions,Housing Benefits,12/09/2014,HOUSING BENEFIT ADMINISTRATION,HB ENGLAND,BARNSLEY BOROUGH COUNCIL,2033287706,"115,860"
Department for Work and Pensions,Housing Benefits,12/09/2014,HOUSING BENEFIT ADMINISTRATION,HB ENGLAND,LONDON BOROUGH OF HARROW,2033287555,"115,692"
Department for Work and Pensions,Housing Benefits,12/09/2014,HOUSING BENEFIT ADMINISTRATION,HB ENGLAND,BLACKPOOL BOROUGH COUNCIL,2033287739,"114,002"
Department for Work and Pensions,Housing Benefits,12/09/2014,HOUSING BENEFIT ADMINISTRATION,HB ENGLAND,DERBY CITY COUNCIL,2033287663,"112,833"
Department for Work and Pensions,Employment Programmes,30/09/2014,SERVICE FEE,WWEG EP WORK CHOICE LEICESTERSHIRE AND NORTHAMPTONSHIRE,WORKING LINKS,2033316867,"112,509"
Department for Work and Pensions,Employment Programmes,12/09/2014,SERVICE FEE,"WWEG EP SUPPORT GRTR MANCHESTER CNTRL, GRTR MANCHESTER E AND W",STANDGUIDE LTD,2033287163,"112,091"
Department for Work and Pensions,Corporate,22/09/2014,NON-TREDDS IS IT APPS DEV MANDAY,CIO INFRASTRUCTURE & SERVICE REMEDIATION,IBM UNITED KINGDOM LTD,2033302046,"112,019"
Department for Work and Pensions,Corporate,24/09/2014,"FURNITURE, FIXTURES & FITTINGS (NON-PRIME)",CHG ESTATES RATIONALISATION FORMER JCP OPS,NORTH KESTEVEN DISTRICT COUNCIL,2033304291,"111,067"
Department for Work and Pensions,Corporate,30/09/2014,PRIME FACILITY PRICE,FG CD SHEFFIELD PORTERBROOK HOUSE,TELEREAL TRILLIUM,2033316621,"110,731"
Department for Work and Pensions,Child Maintenance and Enforcement Commission,12/09/2014,REMOTE STORAGE COSTS VAT RECOV,CS CENTRALLY HELD BUDGETS FILESTORES,CAPITA BUSINESS SERVICES LTD,1000217831,"110,439"
Department for Work and Pensions,Housing Benefits,12/09/2014,HOUSING BENEFIT ADMINISTRATION,HB WALES,RHONDDA CYNON TAFF COUNTY BOROUGH COUNCIL,2033287729,"110,356"
Department for Work and Pensions,Corporate,02/09/2014,BBC TV LIC O/75'S,STR BBC TV LIC O 75s DEL P,BBC PUBLIC SERVICE BROADCASTING,1006690,"110,192"
Department for Work and Pensions,Employment Programmes,12/09/2014,SERVICE FEE,"WWEG EP SUPPORT KENT, SURREY AND SUSSEX",PINNACLE PEOPLE,2033285323,"110,187"
Department for Work and Pensions,Corporate,24/09/2014,PIP GP FACTUAL REPORTS,FG HS PIP LOT 2,CAPITA BUSINESS SERVICES LTD,2033306955,"109,612"
Department for Work and Pensions,Corporate,15/09/2014,NEW ENTERPRISE ALLOWANCE MENTOR MATCHING,OPS WDC WSD NE DURHAM AND TEES VALLEY DISTRICT OFFICE,NORTH EAST ENTERPRISE AGENCIES LTD,2033288566,"109,560"
Department for Work and Pensions,Corporate,17/09/2014,NEW ENTERPRISE ALLOWANCE MENTOR MATCHING,OPS WDC WSD NE DURHAM AND TEES VALLEY DISTRICT OFFICE,NORTH EAST ENTERPRISE AGENCIES LTD,2033292056,"109,560"
Department for Work and Pensions,Corporate,05/09/2014,CIVIL SERVICE OCCUPATIONAL HEALTH SERVICE,HR OHS,ATOS ORIGIN IT SERVICES UK LTD,2033272246,"108,638"
Department for Work and Pensions,Corporate,24/09/2014,NEW ENTERPRISE ALLOWANCE MENTOR MATCHING,OPS WDC WSD NE N AND E YORKS AND HUMBER DISTRICT OFFICE,COLLEGE AT THE GRANGE,2033304611,"107,960"
Department for Work and Pensions,Housing Benefits,12/09/2014,HOUSING BENEFIT ADMINISTRATION,HB ENGLAND,PETERBOROUGH CITY COUNCIL,2033287492,"107,919"
Department for Work and Pensions,Housing Benefits,12/09/2014,HOUSING BENEFIT ADMINISTRATION,HB ENGLAND,LONDON BOROUGH OF REDBRIDGE,2033287667,"107,906"
Department for Work and Pensions,Employment Programmes,12/09/2014,SERVICE FEE,"WWEG EP SUPPORT CHESHIRE, HALTON AND WARR, MERSEYSIDE",REED IN PARTNERSHIP LTD,2033286332,"107,713"
Department for Work and Pensions,Housing Benefits,12/09/2014,HOUSING BENEFIT ADMINISTRATION,HB WALES,SWANSEA CITY COUNCIL,2033287728,"106,523"
Department for Work and Pensions,Corporate,16/09/2014,SIAM MANAGEMENT SERVICES,CIO ITLR SIAM,HP ENTERPRISE SERVICES UK LTD,2033290515,"106,376"
Department for Work and Pensions,Housing Benefits,12/09/2014,HOUSING BENEFIT ADMINISTRATION,HB ENGLAND,GATESHEAD BOROUGH COUNCIL,2033287704,"106,277"
Department for Work and Pensions,Corporate,19/09/2014,RENTALS UNDER OPERATING LEASES: HIRE OF PHOTOCOPYING EQUIPMENT,CHG NSP DIGITAL,HM REVENUE AND CUSTOMS,2004895,"105,939"
Department for Work and Pensions,Corporate,30/09/2014,HOSTING GMS SERVICES,OPS OPE C&I IT WINTER FUEL,HP ENTERPRISE SERVICES UK LTD,2033316034,"105,125"
Department for Work and Pensions,Corporate,18/09/2014,NEW ENTERPRISE ALLOWANCE MENTOR MATCHING,OPS WDC WSD LN SOUTH LONDON DISTRICT OFFICE,IXION HOLDINGS LTD,2033298667,"104,667"
Department for Work and Pensions,Housing Benefits,12/09/2014,HOUSING BENEFIT ADMINISTRATION,HB ENGLAND,STOCKPORT BOROUGH COUNCIL,2033287731,"103,345"
Department for Work and Pensions,Housing Benefits,12/09/2014,HOUSING BENEFIT ADMINISTRATION,HB ENGLAND,BOURNEMOUTH BOROUGH COUNCIL,2033287854,"103,219"
Department for Work and Pensions,Housing Benefits,12/09/2014,HOUSING BENEFIT ADMINISTRATION,HB ENGLAND,MIDDLESBROUGH COUNCIL,2033287532,"102,115"
Department for Work and Pensions,Housing Benefits,12/09/2014,HOUSING BENEFIT ADMINISTRATION,HB ENGLAND,CALDERDALE BOROUGH COUNCIL,2033287526,"101,678"
Department for Work and Pensions,Housing Benefits,12/09/2014,HOUSING BENEFIT ADMINISTRATION,HB ENGLAND,SHROPSHIRE COUNCIL,2033287641,"100,692"
Department for Work and Pensions,Employment Programmes,01/09/2014,WP JSA 25+ SUSTAINMENT OUTCOME PAYMENT,WWEG EP EAST OF ENGLAND INGEUS UK,INGEUS UK LTD,2033258141,"100,620"
Department for Work and Pensions,Employment Programmes,01/09/2014,WP JSA 25+ SUSTAINMENT OUTCOME PAYMENT,WWEG EP SCOTLAND INGEUS UK,INGEUS UK LTD,2033258141,"100,405"
Department for Work and Pensions,Corporate,24/09/2014,CONTRACTORS & STAFF SUBSTITUTIONS,CHG UC DESIGN & BUILD PROGRAMME MANAGER,CAPITA BUSINESS SERVICES LTD,2033308151,"100,330"
Department for Work and Pensions,Housing Benefits,12/09/2014,HOUSING BENEFIT ADMINISTRATION,HB ENGLAND,KNOWSLEY BOROUGH COUNCIL,2033287715,"100,009"
Department for Work and Pensions,Housing Benefits,12/09/2014,HOUSING BENEFIT ADMINISTRATION,HB ENGLAND,STOCKTON  BOROUGH COUNCIL,2033287775,"99,631"
Department for Work and Pensions,Employment Programmes,12/09/2014,SERVICE FEE,"WWEG EP SUPPORT N AND E YORKSHIRE AND HUMBER, TEES VALLEY",PERTEMPS,2033286732,"99,121"
Department for Work and Pensions,Housing Benefits,12/09/2014,HOUSING BENEFIT ADMINISTRATION,HB ENGLAND,NORTH TYNESIDE BOROUGH COUNCIL,2033287703,"99,018"
Department for Work and Pensions,Corporate,23/09/2014,COURIER COSTS,FG OPS FIN DM CONTRACTS,DX NETWORK SERVICES LTD,2033303323,"98,803"
Department for Work and Pensions,Corporate,19/09/2014,AR PRIME RECOVERIES,BALANCE SHEET,TELEREAL TRILLIUM,2033299090,"98,792"
Department for Work and Pensions,Corporate,11/09/2014,FSF - TRAVEL COSTS TO ADVISER INTERVIEWS - JSA CLIENTS,OPS WDC WSD NW MERSEYSIDE DISTRICT OFFICE,MERSEYTRAVEL,2033283401,"97,303"
Department for Work and Pensions,Housing Benefits,12/09/2014,HOUSING BENEFIT ADMINISTRATION,HB SCOTLAND,DUNDEE CITY COUNCIL,2033287530,"97,070"
Department for Work and Pensions,Corporate,15/09/2014,PRIME BILLABLE EXTRAS PRIME CONTRACT MANAGEMENT (PCM),OPS WDC DIRECTOR AND SUPPORT OFFICE,TELEREAL TRILLIUM,2033288176,"95,889"
Department for Work and Pensions,Child Maintenance and Enforcement Commission,19/09/2014,BAILIFF TRACE,EXTERNAL CONTRACTS CENTRALLY HELD INLAND REVENUE TRACING,HMRC,2001226,"95,402"
Department for Work and Pensions,Housing Benefits,12/09/2014,HOUSING BENEFIT ADMINISTRATION,HB ENGLAND,ST HELENS BOROUGH COUNCIL,2033287707,"95,057"
Department for Work and Pensions,Housing Benefits,12/09/2014,HOUSING BENEFIT ADMINISTRATION,HB ENGLAND,LUTON BOROUGH COUNCIL,2033287536,"94,899"
Department for Work and Pensions,Corporate,19/09/2014,NEW ENTERPRISE ALLOWANCE MENTOR MATCHING,OPS WDC WSD NE EMPLOYER AND PARTNERSHIPS,GATESHEAD COUNCIL,2033300179,"94,716"
Department for Work and Pensions,Housing Benefits,12/09/2014,HOUSING BENEFIT ADMINISTRATION,HB ENGLAND,NORTHAMPTON BOROUGH COUNCIL,2033287552,"94,618"
Department for Work and Pensions,Housing Benefits,12/09/2014,HOUSING BENEFIT ADMINISTRATION,HB ENGLAND,NORTH EAST LINCOLNSHIRE COUNCIL,2033287712,"94,533"
Department for Work and Pensions,Corporate,02/09/2014,CONTRACTORS & STAFF SUBSTITUTIONS,CHG IT TRANSFORMATION PROG,CAPITA BUSINESS SERVICES LTD,2033259231,"94,092"
Department for Work and Pensions,Corporate,30/09/2014,CONTRACTORS & STAFF SUBSTITUTIONS,CHG UC DESIGN & BUILD PROGRAMME MANAGER,CAPITA BUSINESS SERVICES LTD,2033316557,"93,923"
Department for Work and Pensions,Housing Benefits,12/09/2014,HOUSING BENEFIT ADMINISTRATION,HB ENGLAND,SOUTHEND ON SEA BOROUGH COUNCIL,2033287787,"93,837"
Department for Work and Pensions,Corporate,04/09/2014,NON-TREDDS IS IT CONSULTANCY (HOSTING) NON ADVICE,CHG STATE PENSION REFORM SINGLE TIER,VALTECH LTD,2033269218,"93,525"
Department for Work and Pensions,Corporate,16/09/2014,SOFTWARE LICENCES,CHG DIGITAL JOBCENTRES,SPECIALIST COMPUTER CENTRES PLC,2033290226,"93,100"
Department for Work and Pensions,Employment Programmes,12/09/2014,SERVICE FEE,"WWEG EP SUPPORT HAMPSHIRE AND ISLE OF WIGHT, BERKS, BUCKS AND OXON",A4E LTD,2033285388,"93,043"
Department for Work and Pensions,Corporate,09/09/2014,DESKTOP FIXED PRICE CONTRACTS,CIO ITLR DESKTOP,HP ENTERPRISE SERVICES UK LTD,2033274989,"93,010"
Department for Work and Pensions,Corporate,16/09/2014,DESKTOP FIXED PRICE CONTRACTS,CIO ITLR DESKTOP,HP ENTERPRISE SERVICES UK LTD,2033290515,"93,010"
Department for Work and Pensions,Housing Benefits,12/09/2014,HOUSING BENEFIT ADMINISTRATION,HB SCOTLAND,RENFREWSHIRE COUNCIL,2033287575,"92,646"
Department for Work and Pensions,Employment Programmes,12/09/2014,SERVICE FEE,"WWEG EP SUPPORT COVENTRY AND WARWICKSHIRE, MARCHES, STAFFORDSHIRE",LEARNDIRECT LTD,2033285917,"91,360"
Department for Work and Pensions,Housing Benefits,12/09/2014,HOUSING BENEFIT ADMINISTRATION,HB ENGLAND,LONDON BOROUGH OF BEXLEY,2033287765,"91,253"
Department for Work and Pensions,Housing Benefits,12/09/2014,HOUSING BENEFIT ADMINISTRATION,HB ENGLAND,THANET DISTRICT COUNCIL,2033287639,"91,127"
Department for Work and Pensions,Corporate,30/09/2014,PRIME BUSINESS RATES,FG CD LEEDS QUARRY HOUSE,TELEREAL TRILLIUM,2033316620,"91,047"
Department for Work and Pensions,Corporate,30/09/2014,PRIME FACILITY PRICE,FG CD BRADFORD AMBLER MILL,TELEREAL TRILLIUM,2033316621,"90,824"
Department for Work and Pensions,Employment Programmes,12/09/2014,SERVICE FEE,WWEG EP SUPPORT WEST YORKSHIRE,A4E LTD,2033285388,"90,807"
Department for Work and Pensions,Corporate,17/09/2014,CONTRACTED OUT OFFICE SERVICES,FG OPS FIN DM ENFORCEMENT,COMMERCIAL COLLECTION SERVICES LTD,2033294664,"90,727"
Department for Work and Pensions,Corporate,26/09/2014,NON-TREDDS IS IT APPS DEV MANDAY,CIO INFRASTRUCTURE & SERVICE REMEDIATION,ACCENTURE UK LTD,2033311385,"90,600"
Department for Work and Pensions,Employment Programmes,12/09/2014,SERVICE FEE,"WWEG EP SUPPORT NORTHUMBRIA, SOUTH TYNE AND WEAR VALLEY",ESG HOLDINGS LTD,2033285322,"90,581"
Department for Work and Pensions,Housing Benefits,12/09/2014,HOUSING BENEFIT ADMINISTRATION,HB ENGLAND,LONDON BOROUGH OF MERTON,2033287612,"90,534"
Department for Work and Pensions,Corporate,11/09/2014,CONTRACTED OUT OFFICE SERVICES,FG OPS FIN DM ENFORCEMENT,AKINIKA,2033283642,"90,193"
Department for Work and Pensions,Corporate,23/09/2014,NON-TREDDS IS IT APPS DEV MANDAY,OPS OPE CD IT REL - OTHER,ACCENTURE UK LTD,2033303278,"89,557"
Department for Work and Pensions,Corporate,30/09/2014,PRIME FACILITY PRICE,FG CD DEARNE VALLEY DISCOVERY HOUSE,TELEREAL TRILLIUM,2033316621,"89,496"
Department for Work and Pensions,Housing Benefits,12/09/2014,HOUSING BENEFIT ADMINISTRATION,HB ENGLAND,SOUTH GLOUCESTERSHIRE COUNCIL,2033287590,"89,087"
Department for Work and Pensions,Corporate,30/09/2014,PRIME FACILITY PRICE,FG CD MANCHESTER ANCHORAGE HOUSE,TELEREAL TRILLIUM,2033316621,"88,978"
Department for Work and Pensions,Housing Benefits,12/09/2014,HOUSING BENEFIT ADMINISTRATION,HB ENGLAND,SOUTH TYNESIDE METROPOLITAN BOROUGH COUNCIL,2033287682,"88,830"
Department for Work and Pensions,Housing Benefits,12/09/2014,HOUSING BENEFIT ADMINISTRATION,HB ENGLAND,TORBAY  COUNCIL,2033287619,"88,198"
Department for Work and Pensions,Housing Benefits,12/09/2014,HOUSING BENEFIT ADMINISTRATION,HB SCOTLAND,HIGHLAND COUNCIL,2033287759,"88,148"
Department for Work and Pensions,Corporate,26/09/2014,NEW ENTERPRISE ALLOWANCE MENTOR MATCHING,OPS WDC WSD NE WEST YORKSHIRE DISTRICT OFFICE,WYEA LTD,2033310366,"87,800"
Department for Work and Pensions,Housing Benefits,12/09/2014,HOUSING BENEFIT ADMINISTRATION,HB ENGLAND,NORTH SOMERSET COUNCIL,2033287563,"87,034"
Department for Work and Pensions,Housing Benefits,12/09/2014,HOUSING BENEFIT ADMINISTRATION,HB ENGLAND,BOROUGH OF TELFORD & WREKIN COUNCIL,2033287625,"86,878"
Department for Work and Pensions,Corporate,30/09/2014,PRIME FACILITY PRICE,FG CD SHEFFIELD ROCKINGHAM HOUSE,TELEREAL TRILLIUM,2033316621,"85,861"
Department for Work and Pensions,Corporate,15/09/2014,NEW ENTERPRISE ALLOWANCE MENTOR MATCHING,OPS WDC WSD NE SOUTH YORKSHIRE DISTRICT OFFICE,DONCASTER CHAMBER,2033288365,"85,857"
Department for Work and Pensions,Housing Benefits,12/09/2014,HOUSING BENEFIT ADMINISTRATION,HB ENGLAND,NORWICH CITY COUNCIL,2033287512,"85,421"
Department for Work and Pensions,Employment Programmes,16/09/2014,INNOVATION FUND,WWEG EP NATIONAL,NOTTINGHAM CITY COUNCIL,2033289679,"85,200"
Department for Work and Pensions,Housing Benefits,12/09/2014,HOUSING BENEFIT ADMINISTRATION,HB ENGLAND,TRAFFORD BOROUGH COUNCIL,2033287551,"84,725"
Department for Work and Pensions,Employment Programmes,12/09/2014,SERVICE FEE,"WWEG EP SUPPORT DERBYSHIRE, SOUTH YORKSHIRE",A4E LTD,2033285388,"84,600"
Department for Work and Pensions,Corporate,19/09/2014,POSTAGE,CHG CLASS 3A VOLUNTARY NATIONAL INSURANCE CONTS,HM REVENUE AND CUSTOMS,2004895,"83,919"
Department for Work and Pensions,Housing Benefits,12/09/2014,HOUSING BENEFIT ADMINISTRATION,HB ENGLAND,SWINDON BOROUGH COUNCIL,2033287633,"83,732"
Department for Work and Pensions,Corporate,11/09/2014,MOTABILITY ADMINISTRATION GRANT,STR MOTABILITY,MOTABILITY,2033284048,"83,330"
Department for Work and Pensions,Corporate,05/09/2014,FSF - REMOVING OTHER BARRIERS TO WORK  - JSA JOBSEEKERS,OPS WDC WSD SE DEVON CORNWALL & SOMERSET DISTRICT,CAREERS SOUTH WEST LTD,2033270897,"83,063"
Department for Work and Pensions,Housing Benefits,12/09/2014,HOUSING BENEFIT ADMINISTRATION,HB ENGLAND,LONDON BOROUGH OF HAVERING,2033287666,"82,361"
Department for Work and Pensions,Employment Programmes,12/09/2014,SERVICE FEE,WWEG EP SUPPORT BIRMINGHAM AND SOLIHULL,INGEUS UK LTD,2033285488,"82,233"
Department for Work and Pensions,Employment Programmes,05/09/2014,WP JSA 25+ SUSTAINMENT OUTCOME PAYMENT,WWEG EP EAST OF ENGLAND INGEUS UK,INGEUS UK LTD,2033271955,"81,270"
Department for Work and Pensions,Housing Benefits,12/09/2014,HOUSING BENEFIT ADMINISTRATION,HB ENGLAND,READING BOROUGH COUNCIL,2033287582,"81,122"
Department for Work and Pensions,Employment Programmes,12/09/2014,WP JSA 25+ SUSTAINMENT OUTCOME PAYMENT,WWEG EP EAST OF ENGLAND INGEUS UK,INGEUS UK LTD,2033285488,"81,055"
Department for Work and Pensions,Housing Benefits,12/09/2014,HOUSING BENEFIT ADMINISTRATION,HB ENGLAND,LONDON BOROUGH OF SUTTON,2033287761,"80,867"
Department for Work and Pensions,Corporate,24/09/2014,CONTRACTORS & STAFF SUBSTITUTIONS,CHG IT TRANSFORMATION PROG,CAPITA BUSINESS SERVICES LTD,2033308151,"80,757"
Department for Work and Pensions,Corporate,22/09/2014,STAFF TRAINING VAT RECOVERABLE,HR FAST STREAM PROGRAMME,CAPITA CIVIL SERVICE LEARNING,2033301310,"80,490"
Department for Work and Pensions,Corporate,03/09/2014,PROFESSIONAL ADVICE & OPINION VAT RECOVERABLE,F&C IGS INFO SERVICES,ORC INTERNATIONAL LTD,2033260322,"80,249"
Department for Work and Pensions,Corporate,22/09/2014,PROFESSIONAL ADVICE & OPINION VAT RECOVERABLE,F&C IGS INFO SERVICES,ORC INTERNATIONAL LTD,2033301896,"80,249"
Department for Work and Pensions,Housing Benefits,12/09/2014,HOUSING BENEFIT ADMINISTRATION,HB SCOTLAND,WEST LOTHIAN COUNCIL,2033287511,"80,020"
Department for Work and Pensions,Corporate,30/09/2014,PRIME FACILITY PRICE,FG CD NUNEATON DISCOVERY HOUSE,TELEREAL TRILLIUM,2033316621,"80,014"
Department for Work and Pensions,Employment Programmes,12/09/2014,SERVICE FEE,"WWEG EP SUPPORT ADGI,EDIN,LOTH AND BORDRS,LNRK AND EAST DUN",LEARNDIRECT LTD,2033285917,"80,012"
Department for Work and Pensions,Employment Programmes,30/09/2014,WP JSA 25+ SUSTAINMENT OUTCOME PAYMENT,WWEG EP SOUTH EAST SURR SUSSX AND KENT AVANTA ENTERPRISE,AVANTA ENTERPRISE LTD,2033316360,"79,980"
Department for Work and Pensions,Housing Benefits,12/09/2014,HOUSING BENEFIT ADMINISTRATION,HB SCOTLAND,NORTH AYRSHIRE COUNCIL,2033287537,"79,851"
Department for Work and Pensions,Housing Benefits,12/09/2014,HOUSING BENEFIT ADMINISTRATION,HB ENGLAND,BURY METROPOLITAN BOROUGH COUNCIL,2033287734,"79,607"
Department for Work and Pensions,Corporate,16/09/2014,TREDDS APPS DEV MANDAYS,CHG ELECTRONIC SIGNING,HP ENTERPRISE SERVICES UK LTD,2033290515,"79,118"
Department for Work and Pensions,Employment Programmes,12/09/2014,SERVICE FEE,"WWEG EP SUPP H ISLS,C COAST AND GRAM,F VALL,FIFE AND TSID",LEARNDIRECT LTD,2033285917,"78,658"
Department for Work and Pensions,Housing Benefits,12/09/2014,HOUSING BENEFIT ADMINISTRATION,HB ENGLAND,BASILDON DISTRICT COUNCIL,2033287515,"78,096"
Department for Work and Pensions,Housing Benefits,12/09/2014,HOUSING BENEFIT ADMINISTRATION,HB ENGLAND,WARRINGTON BOROUGH COUNCIL,2033287586,"77,610"
Department for Work and Pensions,Housing Benefits,12/09/2014,HOUSING BENEFIT ADMINISTRATION,HB ENGLAND,REDCAR & CLEVELAND BOROUGH  COUNCIL,2033287757,"77,385"
Department for Work and Pensions,Employment Programmes,19/09/2014,WP JSA 25+ SUSTAINMENT OUTCOME PAYMENT,WWEG EP SCOTLAND INGEUS UK,INGEUS UK LTD,2033300207,"76,970"
Department for Work and Pensions,Employment Programmes,19/09/2014,WP JSA 25+ SUSTAINMENT OUTCOME PAYMENT,WWEG EP EAST MIDLANDS A4E,A4E LTD,2033299100,"76,540"
Department for Work and Pensions,Housing Benefits,12/09/2014,HOUSING BENEFIT ADMINISTRATION,HB SCOTLAND,ABERDEEN CITY COUNCIL,2033287826,"76,501"
Department for Work and Pensions,Housing Benefits,12/09/2014,HOUSING BENEFIT ADMINISTRATION,HB ENGLAND,SLOUGH BOROUGH COUNCIL,2033287494,"76,369"
Department for Work and Pensions,Employment Programmes,19/09/2014,WP JSA 25+ SUSTAINMENT OUTCOME PAYMENT,WWEG EP EAST OF ENGLAND INGEUS UK,INGEUS UK LTD,2033300207,"76,325"
Department for Work and Pensions,Child Maintenance and Enforcement Commission,26/09/2014,PROFESSIONAL SERVICES NON VAT RECOVERABLE,FAMILY SUPPORT SERVICES,CHILDREN 1ST,1000218762,"76,191"
Department for Work and Pensions,Housing Benefits,12/09/2014,HOUSING BENEFIT ADMINISTRATION,HB ENGLAND,CENTRAL BEDFORDSHIRE DISTRICT COUNCIL,2033287834,"76,081"
Department for Work and Pensions,Employment Programmes,26/09/2014,WP JSA 25+ SUSTAINMENT OUTCOME PAYMENT,WWEG EP EAST OF ENGLAND INGEUS UK,INGEUS UK LTD,2033311182,"75,895"
Department for Work and Pensions,Employment Programmes,30/09/2014,WP JSA 25+ SUSTAINMENT OUTCOME PAYMENT,WWEG EP WEST YORKSHIRE BEST LTD,INTERSERVE WORKING FUTURES,2033316932,"75,895"
Department for Work and Pensions,Housing Benefits,12/09/2014,HOUSING BENEFIT ADMINISTRATION,HB WALES,CAERPHILLY COUNTY BOROUGH COUNCIL,2033287638,"75,767"
Department for Work and Pensions,Corporate,30/09/2014,DESKTOP SERVICES,CIO ITLR DESKTOP,HP ENTERPRISE SERVICES UK LTD,2033316034,"75,756"
Department for Work and Pensions,Corporate,10/09/2014,CONSULTANTS VAT RECOVERABLE,CHG IT TRANSFORMATION PROG,ADVALUS LTD,2033277263,"75,750"
Department for Work and Pensions,Child Maintenance and Enforcement Commission,30/09/2014,APPS DEV INDEX ARR,CHANGE,HP ENTERPRISE SERVICES UK LTD,1000218923,"75,602"
Department for Work and Pensions,Corporate,04/09/2014,CONTRACTED OUT OFFICE SERVICES,FG OPS FIN DM ENFORCEMENT,COMMERCIAL COLLECTION SERVICES LTD,2033269553,"75,522"
Department for Work and Pensions,Corporate,23/09/2014,PRINTING/BINDING,FG CD CORPORATE CHARGES,XEROX UK LTD 3W,2033303458,"75,366"
Department for Work and Pensions,Corporate,12/09/2014,NEW ENTERPRISE ALLOWANCE MENTOR MATCHING,OPS WDC WSD LN BEDS AND HERTS DISTRICT OFFICE,WENTA,2033285339,"75,160"
Department for Work and Pensions,Employment Programmes,19/09/2014,WP JSA 25+ SUSTAINMENT OUTCOME PAYMENT,WWEG EP EAST LONDON A4E,A4E LTD,2033299100,"75,035"
Department for Work and Pensions,Employment Programmes,05/09/2014,WP JSA 25+ SUSTAINMENT OUTCOME PAYMENT,WWEG EP SCOTLAND INGEUS UK,INGEUS UK LTD,2033271955,"74,605"
Department for Work and Pensions,Housing Benefits,12/09/2014,HOUSING BENEFIT ADMINISTRATION,HB ENGLAND,NORTH LINCOLNSHIRE COUNCIL,2033287767,"74,453"
Department for Work and Pensions,Housing Benefits,12/09/2014,HOUSING BENEFIT ADMINISTRATION,HB SCOTLAND,DUMFRIES & GALLOWAY COUNCIL,2033287631,"74,237"
Department for Work and Pensions,Corporate,15/09/2014,HOSTING PRINT SERVICES,CIO ITLR HOSTING DEL P,HP ENTERPRISE SERVICES UK LTD,2033288635,"74,148"
Department for Work and Pensions,Housing Benefits,12/09/2014,HOUSING BENEFIT ADMINISTRATION,HB ENGLAND,TENDRING DISTRICT COUNCIL,2033287542,"73,448"
Department for Work and Pensions,Housing Benefits,12/09/2014,HOUSING BENEFIT ADMINISTRATION,HB ENGLAND,BLACKBURN BOROUGH COUNCIL,2033287795,"73,248"
Department for Work and Pensions,Housing Benefits,12/09/2014,HOUSING BENEFIT ADMINISTRATION,HB WALES,NEWPORT CITY COUNCIL,2033287825,"73,237"
Department for Work and Pensions,Corporate,16/09/2014,NEW ENTERPRISE ALLOWANCE MENTOR MATCHING,OPS WDC WSD NW GREATER MANCHESTER E AND W DO,BLUE ORCHID,2033289345,"72,833"
Department for Work and Pensions,Housing Benefits,12/09/2014,HOUSING BENEFIT ADMINISTRATION,HB ENGLAND,HALTON BOROUGH COUNCIL,2033287806,"72,695"
Department for Work and Pensions,Housing Benefits,12/09/2014,HOUSING BENEFIT ADMINISTRATION,HB ENGLAND,BEDFORD BOROUGH COUNCIL,2033287554,"72,681"
Department for Work and Pensions,Child Maintenance and Enforcement Commission,02/09/2014,PROFESSIONAL SERVICES NON VAT RECOVERABLE,FAMILY SUPPORT SERVICES,ONE PLUS ONE MARRIAGE & PARTNERSHIP RESEARCH,1000216978,"72,540"
Department for Work and Pensions,Corporate,25/09/2014,NEW ENTERPRISE ALLOWANCE MENTOR MATCHING,OPS WDC WSD NW GTR MANCHESTER CENTRAL AND CHESHIRE DO,BLUE ORCHID,2033309325,"72,066"
Department for Work and Pensions,Employment Programmes,26/09/2014,WP JSA 25+ SUSTAINMENT OUTCOME PAYMENT,WWEG EP SCOTLAND INGEUS UK,INGEUS UK LTD,2033311182,"72,025"
Department for Work and Pensions,Employment Programmes,16/09/2014,RESIDENTIAL TRAINING COSTS,WWEG EP DELIVERY WELFARE TO WORK PRODUCT SUPPORT,QUEEN ALEXANDRA COLLEGE,2033289354,"72,008"
Department for Work and Pensions,Corporate,16/09/2014,TREDDS APPS DEV MANDAYS,F&C IGS DIRECTOR AND SUPPORT,HP ENTERPRISE SERVICES UK LTD,2033290515,"71,861"
Department for Work and Pensions,Corporate,22/09/2014,RECRUITMENT & ASSESSMENT SERVICES AGENCY,HR CSR,HM REVENUE AND CUSTOMS,2004896,"71,525"
Department for Work and Pensions,Corporate,16/09/2014,POSTAGE,FG CD CENTRAL CONTRACTS,ROYAL MAIL GROUP PLC,2033290259,"71,474"
Department for Work and Pensions,Employment Programmes,12/09/2014,WP JSA 25+ SUSTAINMENT OUTCOME PAYMENT,WWEG EP EAST LONDON A4E,A4E LTD,2033285388,"71,380"
Department for Work and Pensions,Corporate,16/09/2014,POSTAGE,OPS BEN DD SERVICE CENTRE 5 - SPECIALIST OPERATIONS,ROYAL MAIL GROUP PLC,2033290259,"70,798"
Department for Work and Pensions,Employment Programmes,30/09/2014,WP JSA 25+ SUSTAINMENT OUTCOME PAYMENT,WWEG EP SCOTLAND WORKING LINKS,WORKING LINKS,2033316867,"70,735"
Department for Work and Pensions,Corporate,12/09/2014,STAFF TRAINING VAT RECOVERABLE,HR CONTRACTUAL L AND D,CAPITA CIVIL SERVICE LEARNING,2033287112,"70,703"
Department for Work and Pensions,Employment Programmes,15/09/2014,RESIDENTIAL TRAINING COSTS,WWEG EP DELIVERY WELFARE TO WORK PRODUCT SUPPORT,DONCASTER DEAF TRUST,2033288686,"70,677"
Department for Work and Pensions,Corporate,01/09/2014,CONTRACTED OUT OFFICE SERVICES,FG CD CENTRAL CONTRACTS,XEROX UK LTD 3W,2033257353,"70,651"
Department for Work and Pensions,Employment Programmes,01/09/2014,WP JSA 25+ SUSTAINMENT OUTCOME PAYMENT,WWEG EP NORTH WEST MERS HAL CUMB AND LANCS INGEUS UK,INGEUS UK LTD,2033258141,"70,520"
Department for Work and Pensions,Employment Programmes,01/09/2014,WP JSA 25+ SUSTAINMENT OUTCOME PAYMENT,WWEG EP SCOTLAND WORKING LINKS,WORKING LINKS,2033258145,"70,520"
Department for Work and Pensions,Housing Benefits,12/09/2014,HOUSING BENEFIT ADMINISTRATION,HB ENGLAND,ISLE OF WIGHT COUNTY COUNCIL,2033287837,"70,499"
Department for Work and Pensions,Housing Benefits,12/09/2014,HOUSING BENEFIT ADMINISTRATION,HB WALES,NEATH PORT TALBOT COUNTY BOROUGH COUNCIL,2033287609,"70,099"
Department for Work and Pensions,Employment Programmes,19/09/2014,WP JSA 25+ SUSTAINMENT OUTCOME PAYMENT,WWEG EP NORTH WEST MERS HAL CUMB AND LANCS A4E,A4E LTD,2033299100,"70,090"
Department for Work and Pensions,Housing Benefits,12/09/2014,HOUSING BENEFIT ADMINISTRATION,HB SCOTLAND,ABERDEENSHIRE COUNCIL,2033287529,"69,745"
Department for Work and Pensions,Corporate,18/09/2014,FSF - SUPPORT CONTRACT MODULES FOR JSA JOBSEEKERS,OPS WDC WSD CE BLACK COUNTRY DISTRICT OFFICE,A4E LTD,2033297341,"69,729"
Department for Work and Pensions,Corporate,22/09/2014,NON-TREDDS IS IT APPS DEV MANDAY,CIO CIS RELEASE 2,IBM UNITED KINGDOM LTD,2033302045,"69,280"
Department for Work and Pensions,Housing Benefits,12/09/2014,HOUSING BENEFIT ADMINISTRATION,HB WALES,CARMARTHENSHIRE COUNTY COUNCIL,2033287513,"69,164"
Department for Work and Pensions,Corporate,02/09/2014,STAFF RELATED COSTS,STR SPARE,HM TREASURY,2004858,"68,640"
Department for Work and Pensions,Employment Programmes,03/09/2014,WP JSA 25+ SUSTAINMENT OUTCOME PAYMENT,WWEG EP SOUTH EAST SURR SUSSX AND KENT AVANTA ENTERPRISE,AVANTA ENTERPRISE LTD,2033261831,"68,585"
Department for Work and Pensions,Employment Programmes,01/09/2014,WP JSA 25+ SUSTAINMENT OUTCOME PAYMENT,WWEG EP NORTH EAST INGEUS UK,INGEUS UK LTD,2033258141,"68,585"
Department for Work and Pensions,Housing Benefits,12/09/2014,HOUSING BENEFIT ADMINISTRATION,HB SCOTLAND,FALKIRK DISTRICT COUNCIL,2033287726,"68,578"
Department for Work and Pensions,Corporate,12/09/2014,SOC SEC RESEARCH BUDGET,STR ANALYSIS CAD,SHEFFIELD HALLAM UNIVERSITY,2033285442,"68,106"
Department for Work and Pensions,Employment Programmes,12/09/2014,WP JSA 25+ SUSTAINMENT OUTCOME PAYMENT,WWEG EP SCOTLAND INGEUS UK,INGEUS UK LTD,2033285488,"67,940"
Department for Work and Pensions,Housing Benefits,12/09/2014,HOUSING BENEFIT ADMINISTRATION,HB ENGLAND,PRESTON BOROUGH COUNCIL,2033287608,"67,922"
Department for Work and Pensions,Housing Benefits,12/09/2014,HOUSING BENEFIT ADMINISTRATION,HB ENGLAND,THURROCK BOROUGH COUNCIL,2033287588,"67,788"
Department for Work and Pensions,Corporate,17/09/2014,ACCOUNTS PAYABLE UNAPPROVED INVOICES,OPS WDC WSD LN NORTH LONDON DISTRICT OFFICE,LIVABILITY,2033294933,"67,720"
Department for Work and Pensions,Employment Programmes,16/09/2014,RESIDENTIAL TRAINING COSTS,WWEG EP DELIVERY WELFARE TO WORK PRODUCT SUPPORT,PORTLAND COLLEGE,2033290286,"67,666"
Department for Work and Pensions,Corporate,15/09/2014,AMS SERVICES,CIO ITLR AMS,HP ENTERPRISE SERVICES UK LTD,2033288635,"67,612"
Department for Work and Pensions,Employment Programmes,01/09/2014,WP JSA 25+ SUSTAINMENT OUTCOME PAYMENT,WWEG EP EAST MIDLANDS INGEUS UK,INGEUS UK LTD,2033258141,"67,510"
Department for Work and Pensions,Corporate,11/09/2014,NEW ENTERPRISE ALLOWANCE MENTOR MATCHING,OPS WDC WSD NW CUMBRIA AND LANCASHIRE DISTRICT OFFICE,CUMBRIA CHAMBER OF COMMERCE,2033283411,"67,440"
Department for Work and Pensions,Corporate,16/09/2014,TREDDS IS IT MGT CONSULTANCY NON ADVICE,CHG IT TRANSFORMATION PROG,HP ENTERPRISE SERVICES UK LTD,2033290515,"67,338"
Department for Work and Pensions,Housing Benefits,12/09/2014,HOUSING BENEFIT ADMINISTRATION,HB ENGLAND,HASTINGS BOROUGH COUNCIL,2033287615,"66,895"
Department for Work and Pensions,Housing Benefits,12/09/2014,HOUSING BENEFIT ADMINISTRATION,HB ENGLAND,SOLIHULL METROPOLITAN BOROUGH COUNCIL,2033287533,"66,881"
Department for Work and Pensions,Housing Benefits,12/09/2014,HOUSING BENEFIT ADMINISTRATION,HB ENGLAND,IPSWICH BOROUGH COUNCIL,2033287547,"66,356"
Department for Work and Pensions,Corporate,25/09/2014,AGENCY PAYMENTS TO LOCAL AUTHORITIES,CHG UC PROGRAMME RECHARGES,WIGAN COUNCIL,2033308841,"65,941"
Department for Work and Pensions,Employment Programmes,02/09/2014,WP JSA 25+ SUSTAINMENT OUTCOME PAYMENT,WWEG EP EAST LONDON CAREERS DEVELOPMENT GROUP,CAREERS DEVELOPMENT GROUP,2033259117,"65,575"
Department for Work and Pensions,Housing Benefits,12/09/2014,HOUSING BENEFIT ADMINISTRATION,HB ENGLAND,EAST LINDSEY DISTRICT COUNCIL,2033287602,"65,464"
Department for Work and Pensions,Housing Benefits,12/09/2014,HOUSING BENEFIT ADMINISTRATION,HB ENGLAND,OXFORD CITY COUNCIL,2033287745,"65,202"
Department for Work and Pensions,Housing Benefits,12/09/2014,HOUSING BENEFIT ADMINISTRATION,HB ENGLAND,HEREFORDSHIRE COUNCIL,2033287720,"65,017"
Department for Work and Pensions,Employment Programmes,12/09/2014,SERVICE FEE,WWEG EP SUPPORT CUMBRIA AND LANCASHIRE,LEARNDIRECT LTD,2033285917,"64,886"
Department for Work and Pensions,Corporate,30/09/2014,AR PRIME RECOVERIES,BALANCE SHEET,TELEREAL TRILLIUM,2033316619,"64,798"
Department for Work and Pensions,Corporate,23/09/2014,NON-TREDDS IS IT APPS DEV MANDAY,CHG UC DESIGN & BUILD PROGRAMME MANAGER,ACCENTURE UK LTD,2033303278,"64,464"
Department for Work and Pensions,Housing Benefits,12/09/2014,HOUSING BENEFIT ADMINISTRATION,HB ENGLAND,HARTLEPOOL BOROUGH COUNCIL,2033287683,"64,437"
Department for Work and Pensions,Housing Benefits,12/09/2014,HOUSING BENEFIT ADMINISTRATION,HB SCOTLAND,WEST DUNBARTONSHIRE COUNCIL,2033287845,"64,224"
Department for Work and Pensions,Housing Benefits,12/09/2014,HOUSING BENEFIT ADMINISTRATION,HB ENGLAND,LONDON BOROUGH OF RICHMOND UPON THAMES,2033287505,"64,213"
Department for Work and Pensions,Housing Benefits,12/09/2014,HOUSING BENEFIT ADMINISTRATION,HB SCOTLAND,EAST AYRSHIRE COUNCIL FINANCE DEPARTMENT,2033287698,"64,100"
Department for Work and Pensions,Corporate,19/09/2014,PRIME VARIABLE CHARGE,FG CD CMG ESTATES PRIME COSTS,TELEREAL TRILLIUM,2033299090,"63,846"
Department for Work and Pensions,Housing Benefits,12/09/2014,HOUSING BENEFIT ADMINISTRATION,HB ENGLAND,COLCHESTER BOROUGH COUNCIL,2033287580,"63,683"
Department for Work and Pensions,Corporate,12/09/2014,RENEWALS OF SOFTWARE SUPPORT AND MAINTENANCE,CIO ITLR HOSTING DEL P,HP ENTERPRISE SERVICES UK LTD,2033286335,"63,569"
Department for Work and Pensions,Employment Programmes,12/09/2014,WP JSA 25+ SUSTAINMENT OUTCOME PAYMENT,WWEG EP NORTH WEST MERS HAL CUMB AND LANCS INGEUS UK,INGEUS UK LTD,2033285488,"63,425"
Department for Work and Pensions,Employment Programmes,24/09/2014,INNOVATION FUND,WWEG EP NATIONAL,INDIGO PROJECT SOLUTIONS LTD,2033304328,"63,360"
Department for Work and Pensions,Housing Benefits,12/09/2014,HOUSING BENEFIT ADMINISTRATION,HB ENGLAND,BATH & NORTH EAST SOMERSET COUNCIL,2033287557,"62,682"
Department for Work and Pensions,Corporate,22/09/2014,NON-TREDDS IS IT APPS DEV MANDAY,CHG SCANNING & DIGITAL STORAGE,IBM UNITED KINGDOM LTD,2033302045,"62,645"
Department for Work and Pensions,Employment Programmes,03/09/2014,WP JSA 25+ SUSTAINMENT OUTCOME PAYMENT,WWEG EP SOUTH EAST SURR SUSSX AND KENT G4S,G4S REGIONAL MANAGEMENT UK & I LTD,2033260721,"62,350"
Department for Work and Pensions,Employment Programmes,12/09/2014,SERVICE FEE,WWEG EP SUPPORT BLACK COUNTRY,A4E LTD,2033285388,"62,320"
Department for Work and Pensions,Housing Benefits,12/09/2014,HOUSING BENEFIT ADMINISTRATION,HB WALES,BRIDGEND COUNTY BOROUGH COUNCIL,2033287613,"62,211"
Department for Work and Pensions,Employment Programmes,25/09/2014,WP JSA 25+ SUSTAINMENT OUTCOME PAYMENT,WWEG EP EAST LONDON A4E,A4E LTD,2033308995,"61,705"
Department for Work and Pensions,Employment Programmes,19/09/2014,WP JSA 25+ SUSTAINMENT OUTCOME PAYMENT,WWEG EP NORTH WEST MERS HAL CUMB AND LANCS INGEUS UK,INGEUS UK LTD,2033300207,"61,490"
Department for Work and Pensions,Corporate,12/09/2014,NEW ENTERPRISE ALLOWANCE MENTOR MATCHING,OPS WDC WSD NW MERSEYSIDE DISTRICT OFFICE,BLUE ORCHID,2033286045,"61,448"
Department for Work and Pensions,Employment Programmes,12/09/2014,WP JSA 25+ SUSTAINMENT OUTCOME PAYMENT,WWEG EP EAST MIDLANDS INGEUS UK,INGEUS UK LTD,2033285488,"61,275"
Department for Work and Pensions,Employment Programmes,25/09/2014,INNOVATION FUND,WWEG EP NATIONAL,TRIODOS NEW HORIZONS LTD,2033309382,"61,255"
Department for Work and Pensions,Employment Programmes,12/09/2014,WP JSA 25+ SUSTAINMENT OUTCOME PAYMENT,WWEG EP NORTH WEST MERS HAL CUMB AND LANCS A4E,A4E LTD,2033285388,"61,060"
Department for Work and Pensions,Housing Benefits,12/09/2014,HOUSING BENEFIT ADMINISTRATION,HB ENGLAND,SOUTH SOMERSET DISTRICT COUNCIL,2033287600,"61,040"
Department for Work and Pensions,Housing Benefits,12/09/2014,HOUSING BENEFIT ADMINISTRATION,HB ENGLAND,CITY OF YORK COUNCIL,2033287587,"60,994"
Department for Work and Pensions,Housing Benefits,12/09/2014,HOUSING BENEFIT ADMINISTRATION,HB ENGLAND,ARUN DISTRICT COUNCIL,2033287657,"60,621"
Department for Work and Pensions,Housing Benefits,12/09/2014,HOUSING BENEFIT ADMINISTRATION,HB ENGLAND,SWALE BOROUGH COUNCIL,2033287815,"60,591"
Department for Work and Pensions,Corporate,02/09/2014,RENEWALS OF SOFTWARE SUPPORT AND MAINTENANCE,CIO ITLR SOFTWARE CMG DEL P,SPECIALIST COMPUTER CENTRES PLC,2033258656,"60,466"
Department for Work and Pensions,Corporate,30/09/2014,PRIME BUSINESS RATES,FG CD PEEL PARK,TELEREAL TRILLIUM,2033316620,"60,246"
Department for Work and Pensions,Corporate,30/09/2014,PRIME FACILITY PRICE,FG CD CORBY DISCOVERY HOUSE,TELEREAL TRILLIUM,2033316621,"60,125"
Department for Work and Pensions,Corporate,30/09/2014,PRIME FACILITY PRICE,FG CD PRESTON HOLBORN HOUSE,TELEREAL TRILLIUM,2033316621,"60,027"
Department for Work and Pensions,Employment Programmes,05/09/2014,WP JSA 25+ SUSTAINMENT OUTCOME PAYMENT,WWEG EP EAST MIDLANDS INGEUS UK,INGEUS UK LTD,2033271955,"59,770"
Department for Work and Pensions,Employment Programmes,19/09/2014,WP JSA 25+ SUSTAINMENT OUTCOME PAYMENT,WWEG EP EAST MIDLANDS INGEUS UK,INGEUS UK LTD,2033300207,"59,770"
Department for Work and Pensions,Housing Benefits,12/09/2014,HOUSING BENEFIT ADMINISTRATION,HB ENGLAND,GLOUCESTER CITY COUNCIL,2033287833,"59,688"
Department for Work and Pensions,Housing Benefits,12/09/2014,HOUSING BENEFIT ADMINISTRATION,HB ENGLAND,SCARBOROUGH BOROUGH COUNCIL,2033287768,"59,619"
Department for Work and Pensions,Housing Benefits,12/09/2014,HOUSING BENEFIT ADMINISTRATION,HB ENGLAND,ROYAL BOROUGH OF KINGSTON UPON THAMES,2033287508,"59,167"
Department for Work and Pensions,Employment Programmes,01/09/2014,WP JSA 25+ SUSTAINMENT OUTCOME PAYMENT,WWEG EP WEST YORKSHIRE INGEUS UK,INGEUS UK LTD,2033258141,"58,910"
Department for Work and Pensions,Corporate,12/09/2014,NEW ENTERPRISE ALLOWANCE MENTOR MATCHING,OPS WDC WSD LN EAST LONDON DISTRICT OFFICE,NETWORK PROJECTS LTD,2033286951,"58,786"
Department for Work and Pensions,Employment Programmes,12/09/2014,WP JSA 25+ SUSTAINMENT OUTCOME PAYMENT,WWEG EP EAST MIDLANDS A4E,A4E LTD,2033285388,"58,480"
Department for Work and Pensions,Housing Benefits,12/09/2014,HOUSING BENEFIT ADMINISTRATION,HB ENGLAND,BASINGSTOKE DISTRICT COUNCIL,2033287522,"58,363"
Department for Work and Pensions,Employment Programmes,05/09/2014,WP JSA 25+ SUSTAINMENT OUTCOME PAYMENT,WWEG EP EAST MIDLANDS A4E,A4E LTD,2033270843,"58,265"
Department for Work and Pensions,Employment Programmes,03/09/2014,WP JSA 25+ SUSTAINMENT OUTCOME PAYMENT,WWEG EP SCOTLAND WORKING LINKS,WORKING LINKS,2033264085,"58,265"
Department for Work and Pensions,Corporate,30/09/2014,PRIME FACILITY PRICE,FG CD CLARKE HOUSE,TELEREAL TRILLIUM,2033316621,"58,189"
Department for Work and Pensions,Corporate,24/09/2014,CONTRACTORS & STAFF SUBSTITUTIONS,CIO CSD HEAD OF SERVICE MAINTENANCE,CAPITA BUSINESS SERVICES LTD,2033308151,"58,166"
Department for Work and Pensions,Corporate,02/09/2014,CONTRACTORS & STAFF SUBSTITUTIONS,CHG UC DESIGN & BUILD PROGRAMME MANAGER,CAPITA BUSINESS SERVICES LTD,2033259231,"58,103"
Department for Work and Pensions,Corporate,15/09/2014,CONTRACTORS & STAFF SUBSTITUTIONS,CIO COO IT DIRECTOR,CAPITA BUSINESS SERVICES LTD,2033288299,"58,093"
Department for Work and Pensions,Corporate,18/09/2014,NON PRIME UTILITIES,FG CD DWP GAS & ELECTRICITY PAYMENTS / RECHARGES,BRITISH GAS BUSINESS SCC UTILITIES ONLY,2033298057,"57,657"
Department for Work and Pensions,Employment Programmes,09/09/2014,ACCESS TO WORK - ADAPTATION TO PREMISES,WWEG EP WALES COUNTRY,JRJ LOGISTICS LTD,2033274351,"57,620"
Department for Work and Pensions,Housing Benefits,12/09/2014,HOUSING BENEFIT ADMINISTRATION,HB ENGLAND,KINGS LYNN & WEST NORFOLK BOROUGH COUNCIL,2033287696,"57,485"
Department for Work and Pensions,Employment Programmes,22/09/2014,WP JSA 25+ SUSTAINMENT OUTCOME PAYMENT,WWEG EP EAST OF ENGLAND SEETEC,SEETEC BUSINESS TECHNOLOGY CENTRE LTD,2033300724,"57,405"
Department for Work and Pensions,Employment Programmes,15/09/2014,WP JSA 25+ SUSTAINMENT OUTCOME PAYMENT,WWEG EP SOUTH EAST SURR SUSSX AND KENT G4S,G4S REGIONAL MANAGEMENT UK & I LTD,2033288149,"57,190"
Department for Work and Pensions,Corporate,18/09/2014,NEW ENTERPRISE ALLOWANCE MENTOR MATCHING,OPS WDC WSD SE SURREY AND SUSSEX DISTRICT OFFICE,LETS DO BUSINESS,2033298907,"57,065"
Department for Work and Pensions,Employment Programmes,15/09/2014,WP JSA 25+ SUSTAINMENT OUTCOME PAYMENT,WWEG EP SCOTLAND WORKING LINKS,WORKING LINKS,2033288900,"56,975"
Department for Work and Pensions,European Social Fund,03/09/2014,MA ESF(D) PROGRAMME EXPENDITURE EC PREFUNDED THIRD PARTIES,WWEG EUROPEAN SOCIAL FUND PROGRAMME 2007-2013,CORNWALL VOLUNTARY SECTOR FORUM TA,5000001693,"56,798"
Department for Work and Pensions,Employment Programmes,05/09/2014,WP JSA 25+ SUSTAINMENT OUTCOME PAYMENT,WWEG EP EAST LONDON A4E,A4E LTD,2033270843,"56,760"
Department for Work and Pensions,Corporate,11/09/2014,FSF - SUPPORT CONTRACT MODULES FOR JSA JOBSEEKERS,OPS WDC WSD SE SURREY AND SUSSEX EXTERNAL RELATIONS TEAM,PINNACLE PEOPLE,2033284458,"56,760"
Department for Work and Pensions,Corporate,15/09/2014,NEW ENTERPRISE ALLOWANCE MENTOR MATCHING,OPS WDC WSD LN KENT DISTRICT OFFICE,NETWORK PROJECTS LTD,2033288341,"56,734"
Department for Work and Pensions,Housing Benefits,12/09/2014,HOUSING BENEFIT ADMINISTRATION,HB ENGLAND,GREAT YARMOUTH COUNCIL,2033287721,"56,678"
Department for Work and Pensions,Corporate,12/09/2014,NEW ENTERPRISE ALLOWANCE MENTOR MATCHING,OPS WDC WSD CE EAST ANGLIA DISTRICT OFFICE,IXION HOLDINGS LTD,2033287451,"56,567"
Department for Work and Pensions,Employment Programmes,05/09/2014,WP JSA 25+ SUSTAINMENT OUTCOME PAYMENT,WWEG EP NORTH WEST MERS HAL CUMB AND LANCS INGEUS UK,INGEUS UK LTD,2033271955,"56,330"
Department for Work and Pensions,Employment Programmes,03/09/2014,WP JSA 25+ SUSTAINMENT OUTCOME PAYMENT,WWEG EP EAST OF ENGLAND SEETEC,SEETEC BUSINESS TECHNOLOGY CENTRE LTD,2033262020,"56,330"
Department for Work and Pensions,Employment Programmes,12/09/2014,SERVICE FEE,"WWEG EP SUPPORT SOUTH EAST WALES, NORTH AND MID WALES",A4E LTD,2033285388,"56,174"
Department for Work and Pensions,Housing Benefits,12/09/2014,HOUSING BENEFIT ADMINISTRATION,HB ENGLAND,BURNLEY BOROUGH COUNCIL,2033287534,"55,367"
Department for Work and Pensions,Housing Benefits,12/09/2014,HOUSING BENEFIT ADMINISTRATION,HB ENGLAND,WYCOMBE DISTRICT COUNCIL,2033287779,"55,097"
Department for Work and Pensions,Housing Benefits,12/09/2014,HOUSING BENEFIT ADMINISTRATION,HB ENGLAND,BRAINTREE DISTRICT COUNCIL,2033287689,"54,836"
Department for Work and Pensions,Housing Benefits,12/09/2014,HOUSING BENEFIT ADMINISTRATION,HB ENGLAND,EASTBOURNE BOROUGH COUNCIL,2033287591,"54,707"
Department for Work and Pensions,Housing Benefits,12/09/2014,HOUSING BENEFIT ADMINISTRATION,HB SCOTLAND,PERTH & KINROSS COUNCIL,2033287766,"54,211"
Department for Work and Pensions,Employment Programmes,26/09/2014,WP JSA 25+ SUSTAINMENT OUTCOME PAYMENT,WWEG EP EAST OF ENGLAND SEETEC,SEETEC BUSINESS TECHNOLOGY CENTRE LTD,2033310441,"54,180"
Department for Work and Pensions,Housing Benefits,12/09/2014,HOUSING BENEFIT ADMINISTRATION,HB ENGLAND,HUNTINGDON DISTRICT COUNCIL,2033287777,"54,087"
Department for Work and Pensions,Employment Programmes,01/09/2014,WP JSA 25+ SUSTAINMENT OUTCOME PAYMENT,WWEG EP WEST LONDON INGEUS UK,INGEUS UK LTD,2033258141,"53,965"
Department for Work and Pensions,Employment Programmes,19/09/2014,WP JSA 25+ SUSTAINMENT OUTCOME PAYMENT,WWEG EP NORTH EAST INGEUS UK,INGEUS UK LTD,2033300207,"53,750"
Department for Work and Pensions,Employment Programmes,05/09/2014,WP JSA 25+ SUSTAINMENT OUTCOME PAYMENT,WWEG EP EAST OF ENGLAND SEETEC,SEETEC BUSINESS TECHNOLOGY CENTRE LTD,2033271019,"53,750"
Department for Work and Pensions,Employment Programmes,08/09/2014,WP JSA 25+ SUSTAINMENT OUTCOME PAYMENT,WWEG EP NORTH EAST AVANTA ENTERPRISE,AVANTA ENTERPRISE LTD,2033273641,"53,535"
Department for Work and Pensions,Housing Benefits,12/09/2014,HOUSING BENEFIT ADMINISTRATION,HB ENGLAND,AYLESBURY VALE DISTRICT COUNCIL,2033287782,"53,488"
Department for Work and Pensions,Housing Benefits,12/09/2014,HOUSING BENEFIT ADMINISTRATION,HB WALES,WREXHAM COUNTY BOROUGH COUNCIL,2033287535,"53,357"
Department for Work and Pensions,Employment Programmes,05/09/2014,WP JSA 25+ SUSTAINMENT OUTCOME PAYMENT,WWEG EP NORTH EAST INGEUS UK,INGEUS UK LTD,2033271955,"53,320"
Department for Work and Pensions,Employment Programmes,26/09/2014,WP JSA 25+ SUSTAINMENT OUTCOME PAYMENT,WWEG EP EAST LONDON SEETEC,SEETEC BUSINESS TECHNOLOGY CENTRE LTD,2033310441,"53,320"
Department for Work and Pensions,Housing Benefits,12/09/2014,HOUSING BENEFIT ADMINISTRATION,HB ENGLAND,LANCASTER CITY COUNCIL,2033287687,"53,248"
Department for Work and Pensions,Housing Benefits,12/09/2014,HOUSING BENEFIT ADMINISTRATION,HB ENGLAND,WAVENEY DISTRICT COUNCIL,2033287805,"53,190"
Department for Work and Pensions,Employment Programmes,05/09/2014,WP JSA 25+ SUSTAINMENT OUTCOME PAYMENT,WWEG EP NORTH WEST MERS HAL CUMB AND LANCS A4E,A4E LTD,2033270843,"53,105"
Department for Work and Pensions,Employment Programmes,25/09/2014,WP JSA 25+ SUSTAINMENT OUTCOME PAYMENT,WWEG EP EAST MIDLANDS A4E,A4E LTD,2033308995,"53,105"
Department for Work and Pensions,Employment Programmes,26/09/2014,WP JSA 25+ SUSTAINMENT OUTCOME PAYMENT,WWEG EP EAST MIDLANDS INGEUS UK,INGEUS UK LTD,2033311182,"53,105"
Department for Work and Pensions,Employment Programmes,25/09/2014,WP JSA 25+ SUSTAINMENT OUTCOME PAYMENT,WWEG EP NORTH WEST MERS HAL CUMB AND LANCS A4E,A4E LTD,2033308995,"52,890"
Department for Work and Pensions,Housing Benefits,12/09/2014,HOUSING BENEFIT ADMINISTRATION,HB ENGLAND,DARLINGTON BOROUGH COUNCIL,2033287576,"52,780"
Department for Work and Pensions,Employment Programmes,12/09/2014,WP JSA 25+ SUSTAINMENT OUTCOME PAYMENT,WWEG EP EAST LONDON SEETEC,SEETEC BUSINESS TECHNOLOGY CENTRE LTD,2033285979,"52,460"
Department for Work and Pensions,Housing Benefits,12/09/2014,HOUSING BENEFIT ADMINISTRATION,HB SCOTLAND,INVERCLYDE DISTRICT COUNCIL,2033287699,"52,418"
Department for Work and Pensions,Housing Benefits,12/09/2014,HOUSING BENEFIT ADMINISTRATION,HB ENGLAND,CRAWLEY BOROUGH COUNCIL,2033287800,"52,346"
Department for Work and Pensions,Housing Benefits,12/09/2014,HOUSING BENEFIT ADMINISTRATION,HB ENGLAND,DACORUM BOROUGH COUNCIL,2033287664,"52,275"
Department for Work and Pensions,Housing Benefits,12/09/2014,HOUSING BENEFIT ADMINISTRATION,HB ENGLAND,POOLE BOROUGH COUNCIL,2033287595,"52,012"
Department for Work and Pensions,Employment Programmes,18/09/2014,WP JSA 25+ SUSTAINMENT OUTCOME PAYMENT,WWEG EP SOUTH EAST SURR SUSSX AND KENT AVANTA ENTERPRISE,AVANTA ENTERPRISE LTD,2033298257,"51,815"
Department for Work and Pensions,Housing Benefits,12/09/2014,HOUSING BENEFIT ADMINISTRATION,HB ENGLAND,EXETER CITY COUNCIL,2033287647,"51,814"
Department for Work and Pensions,Employment Programmes,05/09/2014,INNOVATION FUND,WWEG EP NATIONAL,3SC,2033270921,"51,732"
Department for Work and Pensions,Housing Benefits,12/09/2014,HOUSING BENEFIT ADMINISTRATION,HB SCOTLAND,SOUTH AYRSHIRE COUNCIL,2033287629,"51,719"
Department for Work and Pensions,Housing Benefits,12/09/2014,HOUSING BENEFIT ADMINISTRATION,HB WALES,FLINTSHIRE COUNTY COUNCIL,2033287632,"51,699"
Department for Work and Pensions,Housing Benefits,12/09/2014,HOUSING BENEFIT ADMINISTRATION,HB ENGLAND,LINCOLN CITY COUNCIL,2033287748,"51,471"
Department for Work and Pensions,Employment Programmes,03/09/2014,WP JSA 25+ JOB OUTCOME PAYMENTWP JSA 25+ JOB OUTCOME PAYMENT,WWEG EP EAST LONDON CAREERS DEVELOPMENT GROUP,CAREERS DEVELOPMENT GROUP,2033260622,"51,450"
Department for Work and Pensions,Employment Programmes,11/09/2014,WP JSA 25+ SUSTAINMENT OUTCOME PAYMENT,WWEG EP NORTH EAST AVANTA ENTERPRISE,AVANTA ENTERPRISE LTD,2033284512,"51,385"
Department for Work and Pensions,Housing Benefits,12/09/2014,HOUSING BENEFIT ADMINISTRATION,HB ENGLAND,MAIDSTONE BOROUGH COUNCIL,2033287818,"51,184"
Department for Work and Pensions,Housing Benefits,12/09/2014,HOUSING BENEFIT ADMINISTRATION,HB ENGLAND,CHELMSFORD BOROUGH COUNCIL,2033287565,"51,120"
Department for Work and Pensions,Corporate,15/09/2014,CONTRACTORS & STAFF SUBSTITUTIONS,F&C CD STRATEGY AND BUSINESS MANAGEMENT,CAPITA BUSINESS SERVICES LTD,2033288299,"51,073"
Department for Work and Pensions,Employment Programmes,12/09/2014,SERVICE FEE,WWEG EP SUPPORT LEICESTERSHIRE AND NORTHAMPTONSHIRE,INGEUS UK LTD,2033285488,"51,038"
Department for Work and Pensions,Housing Benefits,12/09/2014,HOUSING BENEFIT ADMINISTRATION,HB SCOTLAND,SCOTTISH BORDERS COUNCIL,2033287685,"51,007"
Department for Work and Pensions,Corporate,02/09/2014,CONTRACTORS & STAFF SUBSTITUTIONS,CIO COO IT DIRECTOR,CAPITA BUSINESS SERVICES LTD,2033259231,"51,001"
Department for Work and Pensions,Employment Programmes,09/09/2014,WP JSA 25+ SUSTAINMENT OUTCOME PAYMENT,WWEG EP EAST LONDON CAREERS DEVELOPMENT GROUP,CAREERS DEVELOPMENT GROUP,2033275673,"50,955"
Department for Work and Pensions,Corporate,16/09/2014,RENEWALS OF SOFTWARE SUPPORT AND MAINTENANCE,CHG PIP RECURRENT,SPECIALIST COMPUTER CENTRES PLC,2033290226,"50,807"
Department for Work and Pensions,Corporate,26/09/2014,STAFF TRAINING VAT RECOVERABLE,HR CONTRACTUAL L AND D,CAPITA CIVIL SERVICE LEARNING,2033311760,"50,648"
Department for Work and Pensions,Corporate,24/09/2014,CONTRACTORS & STAFF SUBSTITUTIONS,CIO ADC DIRECTOR,CAPITA BUSINESS SERVICES LTD,2033308151,"50,519"
Department for Work and Pensions,Corporate,08/09/2014,NEW ENTERPRISE ALLOWANCE MENTOR MATCHING,OPS WDC WSD LN WEST LONDON DISTRICT OFFICE,GLE ONE LONDON LTD,2033273936,"50,464"
Department for Work and Pensions,Employment Programmes,22/09/2014,WP JSA 25+ SUSTAINMENT OUTCOME PAYMENT,WWEG EP SCOTLAND WORKING LINKS,WORKING LINKS,2033302584,"50,310"
Department for Work and Pensions,Employment Programmes,01/09/2014,WP JSA 25+ SUSTAINMENT OUTCOME PAYMENT,WWEG EP NORTH EAST AVANTA ENTERPRISE,AVANTA ENTERPRISE LTD,2033257349,"50,095"
Department for Work and Pensions,Corporate,01/09/2014,CONSULTANTS VAT RECOVERABLE,STR LM AND COND DIRECTOR AND SUPPORT,THE BOSTON CONSULTING GROUP,2033257575,"50,000"
Department for Work and Pensions,Employment Programmes,23/09/2014,ESF 2011-13 SUPPORT FOR FAMILIES WITH MULTIPLE PROBLEMS JSA CUSTOMERS PROGRESS MEASURE - INITIAL 25% PAYMENT,CPA8 SOUTH EAST SKILLS TRAINING UK,SKILLS TRAINING UK LIMITED,2033303175,"49,900"
Department for Work and Pensions,Employment Programmes,12/09/2014,SERVICE FEE,WWEG EP SUPPORT CORNWALL AND DEVON,WORKING LINKS,2033285503,"49,813"
Department for Work and Pensions,Corporate,10/09/2014,NEW ENTERPRISE ALLOWANCE MENTOR MATCHING,OPS WDC WSD CE LINCOLNSHIRE NOTTINGHAMSHIRE RUTLAND DO,NBV ENTERPRISE SOLUTIONS LTD,2033282349,"49,718"
Department for Work and Pensions,Housing Benefits,12/09/2014,HOUSING BENEFIT ADMINISTRATION,HB ENGLAND,NUNEATON BOROUGH COUNCIL,2033287823,"49,675"
Department for Work and Pensions,Employment Programmes,01/09/2014,WP JSA 25+ SUSTAINMENT OUTCOME PAYMENT,WWEG EP WEST LONDON MAXIMUS EMPLOYMENT UK,MAXIMUS EMPLOYMENT UK LTD,2033257308,"49,665"
Department for Work and Pensions,Child Maintenance and Enforcement Commission,09/09/2014,PROFESSIONAL SERVICES NON VAT RECOVERABLE,FAMILY SUPPORT SERVICES,SILLS & BETTERIDGE SOLICITORS,1000217525,"49,586"
Department for Work and Pensions,Housing Benefits,12/09/2014,HOUSING BENEFIT ADMINISTRATION,HB ENGLAND,CHESTERFIELD BOROUGH COUNCIL,2033287660,"49,514"
Department for Work and Pensions,Corporate,24/09/2014,FSF - PARTNERSHIP GRANTS - TO HELP JSA CLIENTS INTO WORK,OPS WDC WSD LN SOUTH LONDON DISTRICT OFFICE,LONDON BOROUGH OF LAMBETH,1006721,"49,500"
Department for Work and Pensions,Housing Benefits,12/09/2014,HOUSING BENEFIT ADMINISTRATION,HB WALES,CONWY COUNTY BOROUGH  COUNCIL,2033287809,"49,474"
Department for Work and Pensions,Employment Programmes,19/09/2014,WP JSA 25+ SUSTAINMENT OUTCOME PAYMENT,WWEG EP SOUTH EAST TV HANTS AND IOW A4E,A4E LTD,2033299100,"49,450"
Department for Work and Pensions,Employment Programmes,24/09/2014,WP JSA 25+ SUSTAINMENT OUTCOME PAYMENT,WWEG EP SOUTH EAST SURR SUSSX AND KENT AVANTA ENTERPRISE,AVANTA ENTERPRISE LTD,2033304595,"49,450"
Department for Work and Pensions,Housing Benefits,12/09/2014,HOUSING BENEFIT ADMINISTRATION,HB ENGLAND,SHEPWAY DISTRICT COUNCIL,2033287684,"49,347"
Department for Work and Pensions,Housing Benefits,12/09/2014,HOUSING BENEFIT ADMINISTRATION,HB ENGLAND,NORTH HERTFORDSHIRE DISTRICT COUNCIL,2033287507,"49,314"
Department for Work and Pensions,Housing Benefits,12/09/2014,HOUSING BENEFIT ADMINISTRATION,HB ENGLAND,NEW FOREST DISTRICT COUNCIL,2033287501,"49,311"
Department for Work and Pensions,Corporate,24/09/2014,FSF - PARTNERSHIP GRANTS - TO HELP JSA CLIENTS INTO WORK,OPS WDC WSD LN SOUTH LONDON DISTRICT OFFICE,LONDON BOROUGH OF LAMBETH,1006720,"49,280"
Department for Work and Pensions,Corporate,09/09/2014,FSF - SUPPORT CONTRACT MODULES FOR JSA JOBSEEKERS,OPS WDC WSD WL SOUTH WEST WALES DISTRICT OFFICE,CAPITAL TRAINING GROUP,2033274140,"48,929"
Department for Work and Pensions,Corporate,30/09/2014,FSF - SUPPORT CONTRACT MODULES FOR JSA JOBSEEKERS,OPS WDC WSD WL SOUTH WEST WALES DISTRICT OFFICE,CAPITAL TRAINING GROUP LTD,2033316554,"48,929"
Department for Work and Pensions,Housing Benefits,12/09/2014,HOUSING BENEFIT ADMINISTRATION,HB ENGLAND,CANTERBURY CITY COUNCIL,2033287835,"48,906"
Department for Work and Pensions,Housing Benefits,12/09/2014,HOUSING BENEFIT ADMINISTRATION,HB ENGLAND,DOVER DISTRICT COUNCIL,2033287819,"48,826"
Department for Work and Pensions,Employment Programmes,05/09/2014,WP JSA 25+ SUSTAINMENT OUTCOME PAYMENT,WWEG EP WEST LONDON INGEUS UK,INGEUS UK LTD,2033271955,"48,805"
Department for Work and Pensions,Employment Programmes,26/09/2014,WP JSA 25+ SUSTAINMENT OUTCOME PAYMENT,WWEG EP NORTH WEST MERS HAL CUMB AND LANCS INGEUS UK,INGEUS UK LTD,2033311182,"48,805"
Department for Work and Pensions,Housing Benefits,12/09/2014,HOUSING BENEFIT ADMINISTRATION,HB ENGLAND,ASHFIELD DISTRICT COUNCIL,2033287531,"48,754"
Department for Work and Pensions,Housing Benefits,12/09/2014,HOUSING BENEFIT ADMINISTRATION,HB ENGLAND,BRECKLAND DISTRICT COUNCIL,2033287723,"48,716"
Department for Work and Pensions,Corporate,09/09/2014,POSTAGE,FG CD NEWCASTLE ESTATE,UK MAIL,2033274852,"48,643"
Department for Work and Pensions,Housing Benefits,12/09/2014,HOUSING BENEFIT ADMINISTRATION,HB ENGLAND,CHARNWOOD BOROUGH COUNCIL,2033287810,"48,583"
Department for Work and Pensions,Housing Benefits,12/09/2014,HOUSING BENEFIT ADMINISTRATION,HB WALES,GWYNEDD COUNCIL,2033287488,"48,501"
Department for Work and Pensions,Housing Benefits,12/09/2014,HOUSING BENEFIT ADMINISTRATION,HB ENGLAND,TEIGNBRIDGE DISTRICT COUNCIL,2033287621,"48,394"
Department for Work and Pensions,Employment Programmes,05/09/2014,WP JSA 25+ SUSTAINMENT OUTCOME PAYMENT,WWEG EP EAST LONDON SEETEC,SEETEC BUSINESS TECHNOLOGY CENTRE LTD,2033271019,"48,375"
Department for Work and Pensions,Housing Benefits,12/09/2014,HOUSING BENEFIT ADMINISTRATION,HB ENGLAND,MANSFIELD DISTRICT COUNCIL,2033287659,"48,355"
Department for Work and Pensions,Corporate,24/09/2014,CONTRACTORS & STAFF SUBSTITUTIONS,CIO COO IT DIRECTOR,CAPITA BUSINESS SERVICES LTD,2033308151,"48,152"
Department for Work and Pensions,Housing Benefits,12/09/2014,HOUSING BENEFIT ADMINISTRATION,HB WALES,TORFAEN BOROUGH COUNCIL,2033287754,"48,014"
Department for Work and Pensions,European Social Fund,11/09/2014,MA ESF(D) PROGRAMME EXPENDITURE EC PREFUNDED OGDS,WWEG EUROPEAN SOCIAL FUND PROGRAMME 2007-2013,SKILLS FUNDING AGENCY,5000001697,"48,000"
Department for Work and Pensions,Employment Programmes,12/09/2014,WP JSA 25+ SUSTAINMENT OUTCOME PAYMENT,WWEG EP NORTH EAST INGEUS UK,INGEUS UK LTD,2033285488,"47,945"
Department for Work and Pensions,Housing Benefits,12/09/2014,HOUSING BENEFIT ADMINISTRATION,HB ENGLAND,WYRE BOROUGH COUNCIL,2033287710,"47,916"
Department for Work and Pensions,Employment Programmes,05/09/2014,WP JSA 25+ SUSTAINMENT OUTCOME PAYMENT,WWEG EP WEST YORKSHIRE BEST LTD,INTERSERVE WORKING FUTURES,2033272024,"47,730"
Department for Work and Pensions,Housing Benefits,12/09/2014,HOUSING BENEFIT ADMINISTRATION,HB ENGLAND,WEST BERKSHIRE COUNCIL,2033287503,"47,698"
Department for Work and Pensions,Corporate,10/09/2014,NETWORK SERVICES,CIO ITLR NETWORK,BT GLOBAL SERVICES,2033280077,"47,639"
Department for Work and Pensions,Employment Programmes,12/09/2014,SERVICE FEE,"WWEG EP SUPPORT SOUTH WEST WALES, SOUTH WALES VALLEYS",CAPITAL TRAINING GROUP LTD,2033285849,"47,561"
Department for Work and Pensions,Employment Programmes,16/09/2014,INNOVATION FUND,WWEG EP NATIONAL,PREVISTA LTD,2033289804,"47,456"
Department for Work and Pensions,Employment Programmes,08/09/2014,WP JSA 25+ SUSTAINMENT OUTCOME PAYMENT,WWEG EP SOUTH EAST SURR SUSSX AND KENT AVANTA ENTERPRISE,AVANTA ENTERPRISE LTD,2033273641,"47,300"
Department for Work and Pensions,Housing Benefits,12/09/2014,HOUSING BENEFIT ADMINISTRATION,HB ENGLAND,CHERWELL DISTRICT COUNCIL,2033287802,"47,278"
Department for Work and Pensions,Housing Benefits,12/09/2014,HOUSING BENEFIT ADMINISTRATION,HB ENGLAND,SEDGEMOOR DISTRICT COUNCIL,2033287665,"47,181"
Department for Work and Pensions,Employment Programmes,01/09/2014,WP JSA 25+ SUSTAINMENT OUTCOME PAYMENT,WWEG EP WEST LONDON REED IN PARTNERSHIP,REED IN PARTNERSHIP LTD,2033258462,"47,085"
Department for Work and Pensions,Housing Benefits,12/09/2014,HOUSING BENEFIT ADMINISTRATION,HB ENGLAND,HAVANT BOROUGH COUNCIL,2033287584,"46,931"
Department for Work and Pensions,Employment Programmes,01/09/2014,WP JSA 25+ SUSTAINMENT OUTCOME PAYMENT,WWEG EP SOUTH EAST TV HANTS AND IOW MAXIMUS EMPLOYMENT,MAXIMUS EMPLOYMENT UK LTD,2033257308,"46,870"
Department for Work and Pensions,Employment Programmes,03/09/2014,WP JSA 25+ SUSTAINMENT OUTCOME PAYMENT,WWEG EP EAST LONDON SEETEC,SEETEC BUSINESS TECHNOLOGY CENTRE LTD,2033262020,"46,870"
Department for Work and Pensions,Employment Programmes,02/09/2014,WP JSA 25+ SUSTAINMENT OUTCOME PAYMENT,WWEG EP SCOTLAND WORKING LINKS,WORKING LINKS,2033259217,"46,870"
Department for Work and Pensions,Corporate,30/09/2014,CONTRACTORS & STAFF SUBSTITUTIONS,CIO COO IT DIRECTOR,CAPITA BUSINESS SERVICES LTD,2033316557,"46,820"
Department for Work and Pensions,Employment Programmes,09/09/2014,WP JSA 25+ SUSTAINMENT OUTCOME PAYMENT,WWEG EP NORTH WEST GM CHES AND WARR AVANTA ENTERPRISE,AVANTA ENTERPRISE LTD,2033274417,"46,655"
Department for Work and Pensions,Employment Programmes,19/09/2014,WP JSA 25+ SUSTAINMENT OUTCOME PAYMENT,WWEG EP EAST LONDON CAREERS DEVELOPMENT GROUP,CAREERS DEVELOPMENT GROUP,2033299788,"46,655"
Department for Work and Pensions,Employment Programmes,09/09/2014,WP JSA 25+ SUSTAINMENT OUTCOME PAYMENT,WWEG EP NORTH WEST GM CHES AND WARR G4S,G4S REGIONAL MANAGEMENT UK & I LTD,2033275885,"46,655"
Department for Work and Pensions,Employment Programmes,30/09/2014,WP JSA 25+ SUSTAINMENT OUTCOME PAYMENT,WWEG EP EAST LONDON CAREERS DEVELOPMENT GROUP,CAREERS DEVELOPMENT GROUP,2033316040,"46,440"
Department for Work and Pensions,Housing Benefits,12/09/2014,HOUSING BENEFIT ADMINISTRATION,HB ENGLAND,PENDLE BOROUGH COUNCIL,2033287614,"46,326"
Department for Work and Pensions,Employment Programmes,12/09/2014,WP JSA 25+ SUSTAINMENT OUTCOME PAYMENT,WWEG EP EAST OF ENGLAND SEETEC,SEETEC BUSINESS TECHNOLOGY CENTRE LTD,2033285979,"46,225"
Department for Work and Pensions,Employment Programmes,08/09/2014,WP JSA 25+ SUSTAINMENT OUTCOME PAYMENT,WWEG EP SCOTLAND WORKING LINKS,WORKING LINKS,2033274125,"46,225"
Department for Work and Pensions,Housing Benefits,12/09/2014,HOUSING BENEFIT ADMINISTRATION,HB ENGLAND,HYNDBURN BOROUGH COUNCIL,2033287793,"46,130"
Department for Work and Pensions,Housing Benefits,12/09/2014,HOUSING BENEFIT ADMINISTRATION,HB ENGLAND,HARLOW DISTRICT COUNCIL,2033287538,"45,706"
Department for Work and Pensions,Housing Benefits,12/09/2014,HOUSING BENEFIT ADMINISTRATION,HB ENGLAND,NEWCASTLE UNDER LYME BOROUGH COUNCIL,2033287574,"45,611"
Department for Work and Pensions,Employment Programmes,26/09/2014,WP JSA 25+ SUSTAINMENT OUTCOME PAYMENT,WWEG EP NORTH EAST INGEUS UK,INGEUS UK LTD,2033311182,"45,580"
Department for Work and Pensions,Employment Programmes,22/09/2014,WP JSA 25+ SUSTAINMENT OUTCOME PAYMENT,WWEG EP WALES WORKING LINKS WALES,WORKING LINKS,2033302584,"45,365"
Department for Work and Pensions,Corporate,16/09/2014,NON PRIME PROPERTY COSTS,FG CD OPS ESTATES NON-PRIME COSTS,HINCKLEY & BOSWORTH COUNCIL,2033289207,"45,281"
Department for Work and Pensions,Corporate,08/09/2014,MEDICAL OPINIONS (EMP) DISABILITY LIVING ALLOWANCE (DLA),OPS BEN DD DISABILITY CSD SUPPORT,ATOS HEALTHCARE,2033273584,"45,106"
Department for Work and Pensions,Housing Benefits,12/09/2014,HOUSING BENEFIT ADMINISTRATION,HB WALES,VALE OF GLAMORGAN COUNCIL,2033287852,"45,095"
Department for Work and Pensions,Corporate,30/09/2014,PRIME UTILITIES,FG CD CMG ESTATES PRIME COSTS,TELEREAL TRILLIUM,2033316619,"45,067"
Department for Work and Pensions,Corporate,18/09/2014,FSF - PARTNERSHIP GRANTS - TO HELP JSA CLIENTS INTO WORK,OPS WDC WSD LN SOUTH LONDON DISTRICT OFFICE,LONDON BOROUGH OF SUTTON,1006708,"45,000"
Department for Work and Pensions,Employment Programmes,19/09/2014,WP JSA 25+ SUSTAINMENT OUTCOME PAYMENT,WWEG EP WEST LONDON INGEUS UK,INGEUS UK LTD,2033300207,"44,935"
Department for Work and Pensions,Employment Programmes,02/09/2014,WP JSA 25+ SUSTAINMENT OUTCOME PAYMENT,WWEG EP EAST LONDON SEETEC,SEETEC BUSINESS TECHNOLOGY CENTRE LTD,2033258761,"44,935"
Department for Work and Pensions,Housing Benefits,12/09/2014,HOUSING BENEFIT ADMINISTRATION,HB WALES,PEMBROKESHIRE COUNTY COUNCIL,2033287579,"44,736"
Department for Work and Pensions,Housing Benefits,12/09/2014,HOUSING BENEFIT ADMINISTRATION,HB ENGLAND,BASSETLAW DISTRICT COUNCIL,2033287655,"44,729"
Department for Work and Pensions,Housing Benefits,12/09/2014,HOUSING BENEFIT ADMINISTRATION,HB SCOTLAND,ANGUS COUNCIL,2033287717,"44,727"
Department for Work and Pensions,Employment Programmes,16/09/2014,WP JSA 25+ SUSTAINMENT OUTCOME PAYMENT,WWEG EP EAST LONDON CAREERS DEVELOPMENT GROUP,CAREERS DEVELOPMENT GROUP,2033290390,"44,505"
Department for Work and Pensions,Corporate,22/09/2014,NON-TREDDS IS IT APPS DEV MANDAY,CIO GFTS DEV,IBM UNITED KINGDOM LTD,2033302045,"44,415"
Department for Work and Pensions,Housing Benefits,12/09/2014,HOUSING BENEFIT ADMINISTRATION,HB WALES,POWYS COUNTY COUNCIL,2033287743,"44,348"
Department for Work and Pensions,Employment Programmes,30/09/2014,WP JSA 25+ SUSTAINMENT OUTCOME PAYMENT,WWEG EP SOUTH EAST SURR SUSSX AND KENT G4S,G4S REGIONAL MANAGEMENT UK & I LTD,2033315897,"44,290"
Department for Work and Pensions,Housing Benefits,12/09/2014,HOUSING BENEFIT ADMINISTRATION,HB ENGLAND,AMBER VALLEY BOROUGH COUNCIL,2033287812,"44,206"
Department for Work and Pensions,Housing Benefits,12/09/2014,HOUSING BENEFIT ADMINISTRATION,HB ENGLAND,FENLAND DISTRICT COUNCIL,2033287589,"44,102"
Department for Work and Pensions,Employment Programmes,02/09/2014,WP JSA 25+ SUSTAINMENT OUTCOME PAYMENT,WWEG EP EAST OF ENGLAND SEETEC,SEETEC BUSINESS TECHNOLOGY CENTRE LTD,2033258761,"44,075"
Department for Work and Pensions,Employment Programmes,12/09/2014,WP JSA 25+ SUSTAINMENT OUTCOME PAYMENT,WWEG EP SOUTH EAST TV HANTS AND IOW A4E,A4E LTD,2033285388,"43,860"
Department for Work and Pensions,Housing Benefits,12/09/2014,HOUSING BENEFIT ADMINISTRATION,HB ENGLAND,CAMBRIDGE CITY COUNCIL,2033287686,"43,851"
Department for Work and Pensions,Housing Benefits,12/09/2014,HOUSING BENEFIT ADMINISTRATION,HB ENGLAND,WELWYN HATFIELD DISTRICT COUNCIL,2033287475,"43,795"
Department for Work and Pensions,Corporate,16/09/2014,TREDDS APPS DEV MANDAYS,CHG WAITING DAYS (CONDITIONALITY),HP ENTERPRISE SERVICES UK LTD,2033290515,"43,654"
Department for Work and Pensions,Employment Programmes,26/09/2014,WP JSA 25+ SUSTAINMENT OUTCOME PAYMENT,WWEG EP WEST LONDON INGEUS UK,INGEUS UK LTD,2033311182,"43,645"
Department for Work and Pensions,Housing Benefits,12/09/2014,HOUSING BENEFIT ADMINISTRATION,HB ENGLAND,SOUTH KESTEVEN DISTRICT COUNCIL,2033287725,"43,446"
Department for Work and Pensions,Housing Benefits,12/09/2014,HOUSING BENEFIT ADMINISTRATION,HB ENGLAND,HARROGATE BOROUGH COUNCIL,2033287669,"43,388"
Department for Work and Pensions,Housing Benefits,12/09/2014,HOUSING BENEFIT ADMINISTRATION,HB ENGLAND,CITY OF CARLISLE DISTRICT COUNCIL,2033287677,"43,303"
Department for Work and Pensions,Employment Programmes,01/09/2014,WP JSA 25+ SUSTAINMENT OUTCOME PAYMENT,WWEG EP W MIDLANDS BIRM SOL BC FOURSTAR EMP AND SKILLS,EOS WORKS LTD,2033257309,"43,215"
Department for Work and Pensions,Corporate,22/09/2014,STATIONERY/ PUBLICATIONS/IT CONSUMABLES,COMMS DIRECTOR & SUPPORT,GORKANA GROUP LTD,2033302551,"43,211"
Department for Work and Pensions,Corporate,15/09/2014,NON PRIME PROPERTY COSTS,FG CD OPS ESTATES NON-PRIME COSTS,COPELAND BOROUGH COUNCIL,2033288334,"43,175"
Department for Work and Pensions,Housing Benefits,12/09/2014,HOUSING BENEFIT ADMINISTRATION,HB ENGLAND,WATFORD BOROUGH COUNCIL,2033287713,"43,123"
Department for Work and Pensions,Corporate,25/09/2014,NETWORK SERVICES,CIO ITLR NETWORK,BT GLOBAL SERVICES,2033309933,"43,056"
Department for Work and Pensions,Housing Benefits,12/09/2014,HOUSING BENEFIT ADMINISTRATION,HB ENGLAND,ASHFORD BOROUGH COUNCIL,2033287836,"43,035"
Department for Work and Pensions,Employment Programmes,29/09/2014,WP JSA 25+ JOB OUTCOME PAYMENTWP JSA 25+ JOB OUTCOME PAYMENT,WWEG EP EAST LONDON CAREERS DEVELOPMENT GROUP,CAREERS DEVELOPMENT GROUP,2033315175,"42,996"
Department for Work and Pensions,Corporate,30/09/2014,PRIME FACILITY PRICE,FG CD TOMLINSON HOUSE,TELEREAL TRILLIUM,2033316621,"42,933"
Department for Work and Pensions,Housing Benefits,12/09/2014,HOUSING BENEFIT ADMINISTRATION,HB ENGLAND,WORCESTER CITY COUNCIL,2033287556,"42,859"
Department for Work and Pensions,Employment Programmes,12/09/2014,WP JSA 25+ SUSTAINMENT OUTCOME PAYMENT,WWEG EP NORTH EAST AVANTA ENTERPRISE,AVANTA ENTERPRISE LTD,2033287182,"42,785"
Department for Work and Pensions,Housing Benefits,12/09/2014,HOUSING BENEFIT ADMINISTRATION,HB ENGLAND,EREWASH BOROUGH COUNCIL,2033287674,"42,769"
Department for Work and Pensions,Housing Benefits,12/09/2014,HOUSING BENEFIT ADMINISTRATION,HB ENGLAND,CHELTENHAM BOROUGH COUNCIL,2033287847,"42,742"
Department for Work and Pensions,Housing Benefits,12/09/2014,HOUSING BENEFIT ADMINISTRATION,HB ENGLAND,REIGATE & BANSTEAD BOROUGH COUNCIL,2033287844,"42,675"
Department for Work and Pensions,Housing Benefits,12/09/2014,HOUSING BENEFIT ADMINISTRATION,HB ENGLAND,TAUNTON DEANE BOROUGH COUNCIL,2033287623,"42,668"
Department for Work and Pensions,Housing Benefits,12/09/2014,HOUSING BENEFIT ADMINISTRATION,HB ENGLAND,WORTHING BOROUGH COUNCIL,2033287798,"42,536"
Department for Work and Pensions,Housing Benefits,12/09/2014,HOUSING BENEFIT ADMINISTRATION,HB WALES,BLAENAU GWENT COUNTY BOROUGH COUNCIL,2033287495,"42,516"
Department for Work and Pensions,Corporate,02/09/2014,CONTRACTORS & STAFF SUBSTITUTIONS,CHG UC PROGRAMME DIRECTOR,CAPITA BUSINESS SERVICES LTD,2033259231,"42,409"
Department for Work and Pensions,Housing Benefits,12/09/2014,HOUSING BENEFIT ADMINISTRATION,HB ENGLAND,WYRE FOREST DISTRICT COUNCIL,2033287496,"42,407"
Department for Work and Pensions,Corporate,23/09/2014,NON-TREDDS IS IT APPS DEV MANDAY,CHG SCANNING & DIGITAL STORAGE,ACCENTURE UK LTD,2033303278,"42,403"
Department for Work and Pensions,Child Maintenance and Enforcement Commission,16/09/2014,AMS MANDAYS,FS PHASE 2 - HPES COSTS,HP ENTERPRISE SERVICES UK LTD,1000217958,"42,147"
Department for Work and Pensions,Housing Benefits,12/09/2014,HOUSING BENEFIT ADMINISTRATION,HB ENGLAND,GEDLING BOROUGH COUNCIL,2033287653,"42,146"
Department for Work and Pensions,Employment Programmes,05/09/2014,WP JSA 25+ SUSTAINMENT OUTCOME PAYMENT,WWEG EP WEST YORKSHIRE INGEUS UK,INGEUS UK LTD,2033271955,"42,140"
Department for Work and Pensions,Employment Programmes,29/09/2014,WP JSA 25+ SUSTAINMENT OUTCOME PAYMENT,WWEG EP SCOTLAND WORKING LINKS,WORKING LINKS,2033313962,"42,140"
Department for Work and Pensions,Corporate,15/09/2014,FSF - TRAINING PAYMENTS TO PROVIDERS - JSA JOBSEEKERS,OPS WDC WSD WL SOUTH WEST WALES DISTRICT OFFICE,PEMBROKESHIRE COUNTY COUNCIL,2033289002,"42,063"
Department for Work and Pensions,Employment Programmes,26/09/2014,WP JSA 25+ SUSTAINMENT OUTCOME PAYMENT,WWEG EP SOUTH EAST SURR SUSSX AND KENT AVANTA ENTERPRISE,AVANTA ENTERPRISE LTD,2033310893,"41,925"
Department for Work and Pensions,Housing Benefits,12/09/2014,HOUSING BENEFIT ADMINISTRATION,HB ENGLAND,MENDIP DISTRICT COUNCIL,2033287624,"41,904"
Department for Work and Pensions,Housing Benefits,12/09/2014,HOUSING BENEFIT ADMINISTRATION,HB WALES,DENBIGHSHIRE COUNTY COUNCIL,2033287610,"41,869"
Department for Work and Pensions,Housing Benefits,12/09/2014,HOUSING BENEFIT ADMINISTRATION,HB ENGLAND,GOSPORT BOROUGH COUNCIL,2033287518,"41,724"
Department for Work and Pensions,Employment Programmes,30/09/2014,WP JSA 25+ SUSTAINMENT OUTCOME PAYMENT,WWEG EP NORTH EAST AVANTA ENTERPRISE,AVANTA ENTERPRISE LTD,2033316360,"41,710"
Department for Work and Pensions,Employment Programmes,08/09/2014,WP JSA 25+ JOB OUTCOME PAYMENTWP JSA 25+ JOB OUTCOME PAYMENT,WWEG EP EAST MIDLANDS A4E,A4E LTD,2033272590,"41,664"
Department for Work and Pensions,Housing Benefits,12/09/2014,HOUSING BENEFIT ADMINISTRATION,HB ENGLAND,GRAVESHAM BOROUGH COUNCIL,2033287636,"41,663"
Department for Work and Pensions,Housing Benefits,12/09/2014,HOUSING BENEFIT ADMINISTRATION,HB ENGLAND,EAST STAFFORDSHIRE DISTRICT COUNCIL,2033287598,"41,595"
Department for Work and Pensions,Employment Programmes,09/09/2014,WP JSA 25+ SUSTAINMENT OUTCOME PAYMENT,WWEG EP SOUTH EAST SURR SUSSX AND KENT G4S,G4S REGIONAL MANAGEMENT UK & I LTD,2033275885,"41,495"
Department for Work and Pensions,Corporate,17/09/2014,NON ICONS NETWORK SERVICES,CIO ITLR NETWORK,VODAFONE LTD,2033295213,"41,454"
Department for Work and Pensions,Corporate,16/09/2014,TREDDS APPS DEV MANDAYS,CHG PIP ORG DESIGN & REASSESSMENT,HP ENTERPRISE SERVICES UK LTD,2033290515,"41,307"
Department for Work and Pensions,Housing Benefits,12/09/2014,HOUSING BENEFIT ADMINISTRATION,HB ENGLAND,HERTSMERE BOROUGH COUNCIL,2033287478,"41,191"
Department for Work and Pensions,Housing Benefits,12/09/2014,HOUSING BENEFIT ADMINISTRATION,HB ENGLAND,GUILDFORD BOROUGH COUNCIL,2033287481,"41,190"
Department for Work and Pensions,Housing Benefits,12/09/2014,HOUSING BENEFIT ADMINISTRATION,HB ENGLAND,RUSHMOOR BOROUGH COUNCIL,2033287500,"40,951"
Department for Work and Pensions,Employment Programmes,15/09/2014,Youth Contract Wage Incentive Payment,WWEG EP NORTH EAST INGEUS UK,NORTHUMBRIA HEALTHCARE NHS TRUST,2033288909,"40,950"
Department for Work and Pensions,Corporate,09/09/2014,COURIER COSTS,FG CD COURIER,TNT UK LTD,2033275559,"40,859"
Department for Work and Pensions,Employment Programmes,26/09/2014,WP JSA 25+ SUSTAINMENT OUTCOME PAYMENT,WWEG EP WEST YORKSHIRE INGEUS UK,INGEUS UK LTD,2033311182,"40,850"
Department for Work and Pensions,Housing Benefits,12/09/2014,HOUSING BENEFIT ADMINISTRATION,HB ENGLAND,EAST HERTFORDSHIRE DISTRICT COUNCIL,2033287578,"40,808"
Department for Work and Pensions,Housing Benefits,12/09/2014,HOUSING BENEFIT ADMINISTRATION,HB ENGLAND,EAST DEVON DISTRICT COUNCIL,2033287648,"40,758"
Department for Work and Pensions,Employment Programmes,12/09/2014,WP JSA 25+ SUSTAINMENT OUTCOME PAYMENT,WWEG EP WEST YORKSHIRE INGEUS UK,INGEUS UK LTD,2033285488,"40,635"
Department for Work and Pensions,Housing Benefits,12/09/2014,HOUSING BENEFIT ADMINISTRATION,HB ENGLAND,CANNOCK CHASE DISTRICT COUNCIL,2033287599,"40,276"
Department for Work and Pensions,Housing Benefits,12/09/2014,HOUSING BENEFIT ADMINISTRATION,HB ENGLAND,NORTH DEVON DISTRICT COUNCIL,2033287646,"40,207"
Department for Work and Pensions,Employment Programmes,04/09/2014,WP JSA 25+ JOB OUTCOME PAYMENTWP JSA 25+ JOB OUTCOME PAYMENT,WWEG EP W MIDLANDS COV WARW STAFFS AND MARCHES SERCO,SERCO LTD,2033269030,"40,200"
Department for Work and Pensions,Corporate,02/09/2014,CONTRACTORS & STAFF SUBSTITUTIONS,CIO ADC DIRECTOR,CAPITA BUSINESS SERVICES LTD,2033259231,"40,191"
Department for Work and Pensions,Housing Benefits,12/09/2014,HOUSING BENEFIT ADMINISTRATION,HB ENGLAND,BRACKNELL FOREST BOROUGH COUNCIL,2033287504,"40,155"
Department for Work and Pensions,Employment Programmes,30/09/2014,WP JSA 18-24 JOB SUSTAINMENT OUTCOME PAYMENT,WWEG EP WEST YORKSHIRE BEST LTD,INTERSERVE WORKING FUTURES,2033316932,"40,120"
Department for Work and Pensions,Employment Programmes,01/09/2014,WP JSA 25+ SUSTAINMENT OUTCOME PAYMENT,WWEG EP WEST YORKSHIRE BEST LTD,INTERSERVE WORKING FUTURES,2033257816,"39,990"
Department for Work and Pensions,Housing Benefits,12/09/2014,HOUSING BENEFIT ADMINISTRATION,HB ENGLAND,WINDSOR & MAIDENHEAD BOROUGH COUNCIL,2033287502,"39,986"
Department for Work and Pensions,Corporate,15/09/2014,NEW ENTERPRISE ALLOWANCE MENTOR MATCHING,OPS WDC WSD LN ESSEX DISTRICT OFFICE,IXION HOLDINGS LTD,2033288641,"39,766"
Department for Work and Pensions,Corporate,11/09/2014,SIAM FIXED PRICE CONTRACTS,CIO ITLR DIGITAL TOWER DEL P,HP LTD,2033283858,"39,734"
Department for Work and Pensions,Housing Benefits,12/09/2014,HOUSING BENEFIT ADMINISTRATION,HB ENGLAND,STEVENAGE BOROUGH COUNCIL,2033287477,"39,660"
Department for Work and Pensions,Employment Programmes,26/09/2014,WP JSA 25+ SUSTAINMENT OUTCOME PAYMENT,WWEG EP EAST LONDON CAREERS DEVELOPMENT GROUP,CAREERS DEVELOPMENT GROUP,2033311509,"39,560"
Department for Work and Pensions,Housing Benefits,12/09/2014,HOUSING BENEFIT ADMINISTRATION,HB ENGLAND,BROXBOURNE BOROUGH COUNCIL,2033287479,"39,442"
Department for Work and Pensions,Housing Benefits,12/09/2014,HOUSING BENEFIT ADMINISTRATION,HB ENGLAND,WEST LANCASHIRE DISTRICT COUNCIL,2033287773,"39,375"
Department for Work and Pensions,Employment Programmes,25/09/2014,WP JSA 25+ SUSTAINMENT OUTCOME PAYMENT,WWEG EP SOUTH EAST TV HANTS AND IOW A4E,A4E LTD,2033308995,"39,345"
Department for Work and Pensions,Employment Programmes,30/09/2014,WP JSA 25+ SUSTAINMENT OUTCOME PAYMENT,WWEG EP NORTH WEST GM CHES AND WARR AVANTA ENTERPRISE,AVANTA ENTERPRISE LTD,2033316360,"39,345"
Department for Work and Pensions,Employment Programmes,19/09/2014,WP JSA 25+ SUSTAINMENT OUTCOME PAYMENT,WWEG EP WEST LONDON MAXIMUS EMPLOYMENT UK,MAXIMUS EMPLOYMENT UK LTD,2033299403,"39,345"
Department for Work and Pensions,Employment Programmes,23/09/2014,WP JSA 25+ SUSTAINMENT OUTCOME PAYMENT,WWEG EP WEST LONDON MAXIMUS EMPLOYMENT UK,MAXIMUS EMPLOYMENT UK LTD,2033303146,"39,345"
Department for Work and Pensions,Child Maintenance and Enforcement Commission,23/09/2014,TREDDS APPS DEV MANDAYS,MI PROJECT TACTICAL,HP ENTERPRISE SERVICES UK LTD,1000218427,"39,324"
Department for Work and Pensions,Corporate,15/09/2014,FSF - SUPPORT CONTRACT MODULES FOR JSA JOBSEEKERS,OPS WDC WSD WL SOUTH EAST WALES DISTRICT OFFICE,A4E LTD,2033288229,"39,321"
Department for Work and Pensions,Employment Programmes,12/09/2014,SERVICE FEE,WWEG EP SUPPORT NOTTINGHAM,INGEUS UK LTD,2033285488,"39,214"
Department for Work and Pensions,Corporate,25/09/2014,STAFF TRAINING VAT RECOVERABLE,HR CONTRACTUAL L AND D,CAPITA CIVIL SERVICE LEARNING,2033310232,"39,193"
Department for Work and Pensions,Employment Programmes,04/09/2014,WP JSA 25+ JOB OUTCOME PAYMENTWP JSA 25+ JOB OUTCOME PAYMENT,WWEG EP W MIDLANDS COV WARW STAFFS AND MARCHES ESG,ESG HOLDINGS LIMITED,2033270090,"39,180"
Department for Work and Pensions,Employment Programmes,05/09/2014,WP JSA 25+ SUSTAINMENT OUTCOME PAYMENT,WWEG EP WEST LONDON MAXIMUS EMPLOYMENT UK,MAXIMUS EMPLOYMENT UK LTD,2033271148,"39,130"
Department for Work and Pensions,Housing Benefits,12/09/2014,HOUSING BENEFIT ADMINISTRATION,HB ENGLAND,CORBY BOROUGH COUNCIL,2033287510,"38,793"
Department for Work and Pensions,Employment Programmes,01/09/2014,WP JSA 25+ SUSTAINMENT OUTCOME PAYMENT,WWEG EP NORTH WEST GM CHES AND WARR AVANTA ENTERPRISE,AVANTA ENTERPRISE LTD,2033257349,"38,700"
Department for Work and Pensions,Employment Programmes,24/09/2014,WP JSA 25+ SUSTAINMENT OUTCOME PAYMENT,WWEG EP NORTH EAST AVANTA ENTERPRISE,AVANTA ENTERPRISE LTD,2033304595,"38,700"
Department for Work and Pensions,Employment Programmes,30/09/2014,WP JSA 25+ SUSTAINMENT OUTCOME PAYMENT,WWEG EP NORTH WEST GM CHES AND WARR G4S,G4S REGIONAL MANAGEMENT UK & I LTD,2033315897,"38,700"
Department for Work and Pensions,Housing Benefits,12/09/2014,HOUSING BENEFIT ADMINISTRATION,HB SCOTLAND,EAST LOTHIAN DISTRICT COUNCIL,2033287702,"38,616"
Department for Work and Pensions,Housing Benefits,12/09/2014,HOUSING BENEFIT ADMINISTRATION,HB SCOTLAND,ARGYLL & BUTE COUNCIL,2033287550,"38,521"
Department for Work and Pensions,Employment Programmes,15/09/2014,WP JSA 25+ SUSTAINMENT OUTCOME PAYMENT,WWEG EP NORTH WEST GM CHES AND WARR G4S,G4S REGIONAL MANAGEMENT UK & I LTD,2033288149,"38,485"
Department for Work and Pensions,Housing Benefits,12/09/2014,HOUSING BENEFIT ADMINISTRATION,HB ENGLAND,CHICHESTER DISTRICT COUNCIL,2033287801,"37,962"
Department for Work and Pensions,Housing Benefits,12/09/2014,HOUSING BENEFIT ADMINISTRATION,HB ENGLAND,NORTH NORFOLK DISTRICT COUNCIL,2033287697,"37,909"
Department for Work and Pensions,Employment Programmes,19/09/2014,WP JSA 25+ SUSTAINMENT OUTCOME PAYMENT,WWEG EP WEST YORKSHIRE INGEUS UK,INGEUS UK LTD,2033300207,"37,840"
Department for Work and Pensions,Employment Programmes,19/09/2014,WP JSA 25+ SUSTAINMENT OUTCOME PAYMENT,WWEG EP SCOTLAND WORKING LINKS,WORKING LINKS,2033300210,"37,840"
Department for Work and Pensions,Corporate,18/09/2014,STAFF TRAINING VAT RECOVERABLE,HR CONTRACTUAL L AND D,CAPITA CIVIL SERVICE LEARNING,2033298689,"37,710"
Department for Work and Pensions,Housing Benefits,12/09/2014,HOUSING BENEFIT ADMINISTRATION,HB ENGLAND,STAFFORD BOROUGH COUNCIL,2033287486,"37,652"
Department for Work and Pensions,Corporate,12/09/2014,TREDDS APPS DEV MANDAYS,CIO SECURITY IMPROVEMENT PROGRAMME,HP ENTERPRISE SERVICES UK LTD,2033286335,"37,652"
Department for Work and Pensions,Employment Programmes,01/09/2014,WP JSA 25+ SUSTAINMENT OUTCOME PAYMENT,WWEG EP EAST LONDON CAREERS DEVELOPMENT GROUP,CAREERS DEVELOPMENT GROUP,2033257927,"37,625"
Department for Work and Pensions,Employment Programmes,22/09/2014,WP JSA 25+ SUSTAINMENT OUTCOME PAYMENT,WWEG EP EAST LONDON SEETEC,SEETEC BUSINESS TECHNOLOGY CENTRE LTD,2033300724,"37,625"
Department for Work and Pensions,Housing Benefits,12/09/2014,HOUSING BENEFIT ADMINISTRATION,HB ENGLAND,TONBRIDGE & MALLING DISTRICT COUNCIL,2033287814,"37,522"
Department for Work and Pensions,Housing Benefits,12/09/2014,HOUSING BENEFIT ADMINISTRATION,HB ENGLAND,EPPING FOREST DISTRICT COUNCIL,2033287564,"37,442"
Department for Work and Pensions,Housing Benefits,12/09/2014,HOUSING BENEFIT ADMINISTRATION,HB ENGLAND,ALLERDALE DISTRICT COUNCIL,2033287756,"37,405"
Department for Work and Pensions,Employment Programmes,04/09/2014,WP JSA 25+ JOB OUTCOME PAYMENTWP JSA 25+ JOB OUTCOME PAYMENT,WWEG EP SCOTLAND WORKING LINKS,WORKING LINKS,2033268907,"37,296"
Department for Work and Pensions,Employment Programmes,04/09/2014,WP JSA 25+ JOB OUTCOME PAYMENTWP JSA 25+ JOB OUTCOME PAYMENT,WWEG EP SOUTH EAST SURR SUSSX AND KENT AVANTA ENTERPRISE,AVANTA ENTERPRISE LTD,2033270718,"37,200"
Department for Work and Pensions,Employment Programmes,09/09/2014,WP JSA 25+ SUSTAINMENT OUTCOME PAYMENT,WWEG EP SCOTLAND WORKING LINKS,WORKING LINKS,2033275028,"37,195"
Department for Work and Pensions,Housing Benefits,12/09/2014,HOUSING BENEFIT ADMINISTRATION,HB ENGLAND,WARWICK DISTRICT COUNCIL,2033287485,"37,091"
Department for Work and Pensions,Child Maintenance and Enforcement Commission,12/09/2014,PROFESSIONAL SERVICES NON VAT RECOVERABLE,FAMILY SUPPORT SERVICES,HOWELLS LLP,1000217785,"37,074"
Department for Work and Pensions,Employment Programmes,01/09/2014,WP JSA 18-24 JOB SUSTAINMENT OUTCOME PAYMENT,WWEG EP SCOTLAND INGEUS UK,INGEUS UK LTD,2033258141,"37,060"
Department for Work and Pensions,Employment Programmes,05/09/2014,WP JSA 25+ SUSTAINMENT OUTCOME PAYMENT,WWEG EP SOUTH EAST TV HANTS AND IOW A4E,A4E LTD,2033270843,"36,980"
Department for Work and Pensions,Employment Programmes,12/09/2014,WP JSA 25+ SUSTAINMENT OUTCOME PAYMENT,WWEG EP WEST LONDON INGEUS UK,INGEUS UK LTD,2033285488,"36,980"
Department for Work and Pensions,Employment Programmes,03/09/2014,ESF 2011-13 SUPPORT FOR FAMILIES WITH MULTIPLE PROBLEMS JSA CUSTOMERS. FIRST PROGRESS MEASURE PAYMENT.,CPA8 SOUTH EAST SKILLS TRAINING UK,SKILLS TRAINING UK LIMITED,2033260399,"36,936"
Department for Work and Pensions,Housing Benefits,12/09/2014,HOUSING BENEFIT ADMINISTRATION,HB ENGLAND,NEWARK DISTRICT COUNCIL,2033287652,"36,814"
Department for Work and Pensions,Employment Programmes,04/09/2014,WP JSA 25+ SUSTAINMENT OUTCOME PAYMENT,WWEG EP SCOTLAND WORKING LINKS,WORKING LINKS,2033268907,"36,765"
Department for Work and Pensions,Housing Benefits,12/09/2014,HOUSING BENEFIT ADMINISTRATION,HB ENGLAND,TUNBRIDGE WELLS BOROUGH COUNCIL,2033287796,"36,741"
Department for Work and Pensions,Housing Benefits,12/09/2014,HOUSING BENEFIT ADMINISTRATION,HB ENGLAND,WEALDEN DISTRICT COUNCIL,2033287568,"36,583"
Department for Work and Pensions,Employment Programmes,30/09/2014,Youth Contract Wage Incentive Payment,WWEG EP SCOTLAND WORKING LINKS,NORTH LANARKSHIRE COUNCIL,2033317574,"36,400"
Department for Work and Pensions,Employment Programmes,01/09/2014,WP JSA 18-24 JOB SUSTAINMENT OUTCOME PAYMENT,WWEG EP NORTH EAST INGEUS UK,INGEUS UK LTD,2033258141,"36,380"
Department for Work and Pensions,Corporate,16/09/2014,TREDDS APPS DEV MANDAYS,CIO IT OGD SPVA,HP ENTERPRISE SERVICES UK LTD,2033290515,"36,293"
Department for Work and Pensions,Corporate,08/09/2014,NON-TREDDS IS IT APPS DEV MANDAY,CHG LA DATA SHARING PROG,IBM UNITED KINGDOM LTD,2033272479,"36,223"
Department for Work and Pensions,Employment Programmes,05/09/2014,WP JSA 25+ SUSTAINMENT OUTCOME PAYMENT,WWEG EP SOUTH EAST TV HANTS AND IOW MAXIMUS EMPLOYMENT,MAXIMUS EMPLOYMENT UK LTD,2033271148,"36,120"
Department for Work and Pensions,Housing Benefits,12/09/2014,HOUSING BENEFIT ADMINISTRATION,HB ENGLAND,SOUTH NORFOLK DISTRICT COUNCIL,2033287780,"36,054"
Department for Work and Pensions,Housing Benefits,12/09/2014,HOUSING BENEFIT ADMINISTRATION,HB ENGLAND,EASTLEIGH BOROUGH COUNCIL,2033287520,"36,037"
Department for Work and Pensions,Housing Benefits,12/09/2014,HOUSING BENEFIT ADMINISTRATION,HB SCOTLAND,MIDLOTHIAN COUNCIL,2033287528,"36,018"
Department for Work and Pensions,Housing Benefits,12/09/2014,HOUSING BENEFIT ADMINISTRATION,HB ENGLAND,ELMBRIDGE BOROUGH COUNCIL,2033287544,"35,969"
Department for Work and Pensions,Employment Programmes,01/09/2014,WP JSA 25+ JOB OUTCOME PAYMENTWP JSA 25+ JOB OUTCOME PAYMENT,WWEG EP NORTH WEST GM CHES AND WARR G4S,G4S REGIONAL MANAGEMENT UK & I LTD,2033257344,"35,964"
Department for Work and Pensions,Corporate,12/09/2014,TREDDS APPS DEV FIXED PRICE CONTRACTS,CHG ELECTRONIC SIGNING,HP ENTERPRISE SERVICES UK LTD,2033286335,"35,900"
Department for Work and Pensions,Housing Benefits,12/09/2014,HOUSING BENEFIT ADMINISTRATION,HB ENGLAND,CHORLEY BOROUGH COUNCIL,2033287794,"35,869"
Department for Work and Pensions,Housing Benefits,12/09/2014,HOUSING BENEFIT ADMINISTRATION,HB ENGLAND,TEST VALLEY BOROUGH COUNCIL,2033287585,"35,769"
Department for Work and Pensions,Employment Programmes,01/09/2014,WP JSA 18-24 JOB SUSTAINMENT OUTCOME PAYMENT,WWEG EP EAST OF ENGLAND INGEUS UK,INGEUS UK LTD,2033258141,"35,700"
Department for Work and Pensions,Employment Programmes,15/09/2014,WP JSA 25+ SUSTAINMENT OUTCOME PAYMENT,WWEG EP SOUTH EAST SURR SUSSX AND KENT AVANTA ENTERPRISE,AVANTA ENTERPRISE LTD,2033288061,"35,690"
Department for Work and Pensions,Corporate,22/09/2014,NON-TREDDS IS IT APPS DEV MANDAY,CIO INFRASTRUCTURE & SERVICE REMEDIATION,IBM UNITED KINGDOM LTD,2033302045,"35,636"
Department for Work and Pensions,Housing Benefits,12/09/2014,HOUSING BENEFIT ADMINISTRATION,HB ENGLAND,ST EDMUNDSBURY BOROUGH COUNCIL,2033287559,"35,585"
Department for Work and Pensions,Housing Benefits,12/09/2014,HOUSING BENEFIT ADMINISTRATION,HB ENGLAND,KETTERING BOROUGH COUNCIL,2033287693,"35,504"
Department for Work and Pensions,Employment Programmes,19/09/2014,WP JSA 25+ SUSTAINMENT OUTCOME PAYMENT,WWEG EP SOUTH EAST TV HANTS AND IOW MAXIMUS EMPLOYMENT,MAXIMUS EMPLOYMENT UK LTD,2033299403,"35,475"
Department for Work and Pensions,Employment Programmes,15/09/2014,WP JSA 25+ SUSTAINMENT OUTCOME PAYMENT,WWEG EP EAST OF ENGLAND SEETEC,SEETEC BUSINESS TECHNOLOGY CENTRE LTD,2033288744,"35,475"
Department for Work and Pensions,Employment Programmes,29/09/2014,WP JSA 25+ SUSTAINMENT OUTCOME PAYMENT,WWEG EP EAST OF ENGLAND SEETEC,SEETEC BUSINESS TECHNOLOGY CENTRE LTD,2033315156,"35,475"
Department for Work and Pensions,Employment Programmes,05/09/2014,WP JSA 25+ SUSTAINMENT OUTCOME PAYMENT,WWEG EP SCOTLAND WORKING LINKS,WORKING LINKS,2033272056,"35,475"
Department for Work and Pensions,Employment Programmes,12/09/2014,WP JSA 25+ SUSTAINMENT OUTCOME PAYMENT,WWEG EP SCOTLAND WORKING LINKS,WORKING LINKS,2033285503,"35,475"
Department for Work and Pensions,Child Maintenance and Enforcement Commission,01/09/2014,COURIER COSTS,COMMUNICATIONS CURRENT SCHEME,XEROX UK LTD 3W,1000216926,"35,473"
Department for Work and Pensions,Housing Benefits,12/09/2014,HOUSING BENEFIT ADMINISTRATION,HB ENGLAND,RUGBY BOROUGH COUNCIL,2033287822,"35,340"
Department for Work and Pensions,Employment Programmes,10/09/2014,WP JSA 25+ SUSTAINMENT OUTCOME PAYMENT,WWEG EP SOUTH EAST SURR SUSSX AND KENT G4S,G4S REGIONAL MANAGEMENT UK & I LTD,2033283041,"35,260"
Department for Work and Pensions,Employment Programmes,15/09/2014,WP JSA 25+ SUSTAINMENT OUTCOME PAYMENT,WWEG EP EAST LONDON CAREERS DEVELOPMENT GROUP,CAREERS DEVELOPMENT GROUP,2033288441,"35,045"
Department for Work and Pensions,Housing Benefits,12/09/2014,HOUSING BENEFIT ADMINISTRATION,HB ENGLAND,WYCHAVON DISTRICT COUNCIL,2033287561,"34,923"
Department for Work and Pensions,Corporate,17/09/2014,NON ICONS NETWORK SERVICES,CIO ITLR NETWORK,TMOBILE LTD,2033291836,"34,883"
Department for Work and Pensions,Employment Programmes,08/09/2014,WP JSA 25+ SUSTAINMENT OUTCOME PAYMENT,WWEG EP EAST OF ENGLAND SEETEC,SEETEC BUSINESS TECHNOLOGY CENTRE LTD,2033273014,"34,830"
Department for Work and Pensions,Employment Programmes,08/09/2014,WP JSA 25+ JOB OUTCOME PAYMENTWP JSA 25+ JOB OUTCOME PAYMENT,WWEG EP NORTH WEST MERS HAL CUMB AND LANCS A4E,A4E LTD,2033272590,"34,752"
Department for Work and Pensions,Housing Benefits,12/09/2014,HOUSING BENEFIT ADMINISTRATION,HB ENGLAND,SUFFOLK COASTAL DISTRICT COUNCIL,2033287545,"34,564"
Department for Work and Pensions,Housing Benefits,12/09/2014,HOUSING BENEFIT ADMINISTRATION,HB ENGLAND,STRATFORD ON AVON DISTRICT COUNCIL,2033287821,"34,510"
Department for Work and Pensions,Housing Benefits,12/09/2014,HOUSING BENEFIT ADMINISTRATION,HB ENGLAND,WEYMOUTH & PORTLAND BOROUGH COUNCIL,2033287592,"34,451"
Department for Work and Pensions,Employment Programmes,23/09/2014,WP JSA 25+ SUSTAINMENT OUTCOME PAYMENT,WWEG EP SOUTH EAST TV HANTS AND IOW MAXIMUS EMPLOYMENT,MAXIMUS EMPLOYMENT UK LTD,2033303146,"34,400"
Department for Work and Pensions,Corporate,19/09/2014,NEW ENTERPRISE ALLOWANCE MENTOR MATCHING,OPS WDC WSD SE GREATER WESSEX DISTRICT OFFICE,OUTSET CIC,2033299988,"34,358"
Department for Work and Pensions,Housing Benefits,12/09/2014,HOUSING BENEFIT ADMINISTRATION,HB ENGLAND,WEST LINDSEY DISTRICT COUNCIL,2033287724,"34,331"
Department for Work and Pensions,Corporate,01/09/2014,VALUATION OFFICE,[CLOSED] OPS BEN BD NE SPECIAL OPERATIONS,VALUATION OFFICE AGENCY,2033258367,"34,310"
Department for Work and Pensions,Housing Benefits,12/09/2014,HOUSING BENEFIT ADMINISTRATION,HB ENGLAND,ROTHER DISTRICT COUNCIL,2033287569,"34,268"
Department for Work and Pensions,Employment Programmes,19/09/2014,WP JSA NEET SUSTAINMENT OUTCOME PAYMENT,WWEG EP EAST MIDLANDS A4E,A4E LTD,2033299100,"34,250"
Department for Work and Pensions,Housing Benefits,12/09/2014,HOUSING BENEFIT ADMINISTRATION,HB ENGLAND,BOROUGH OF WELLINGBOROUGH,2033287671,"34,179"
Department for Work and Pensions,Corporate,30/09/2014,FSF - SUPPORT CONTRACT MODULES FOR JSA JOBSEEKERS,OPS WDC WSD WL NORTH AND MID WALES DISTRICT OFFICE,A4E LTD,2033316902,"34,120"
Department for Work and Pensions,Employment Programmes,01/09/2014,WP JSA 25+ SUSTAINMENT OUTCOME PAYMENT,WWEG EP W MIDLANDS BIRM SOL BC PERTEMPS,PERTEMPS,2033257547,"33,970"
Department for Work and Pensions,Corporate,25/09/2014,RENEWALS OF SOFTWARE SUPPORT AND MAINTENANCE,CHG SCANNING & DIGITAL STORAGE,SPECIALIST COMPUTER CENTRES PLC,2033309240,"33,923"
Department for Work and Pensions,Housing Benefits,12/09/2014,HOUSING BENEFIT ADMINISTRATION,HB ENGLAND,HIGH PEAK BOROUGH COUNCIL,2033287673,"33,855"
Department for Work and Pensions,Housing Benefits,12/09/2014,HOUSING BENEFIT ADMINISTRATION,HB ENGLAND,LEWES DISTRICT COUNCIL,2033287804,"33,774"
Department for Work and Pensions,Employment Programmes,17/09/2014,WP JSA 25+ SUSTAINMENT OUTCOME PAYMENT,WWEG EP NORTH EAST AVANTA ENTERPRISE,AVANTA ENTERPRISE LTD,2033294624,"33,755"
Department for Work and Pensions,Employment Programmes,22/09/2014,WP JSA 25+ SUSTAINMENT OUTCOME PAYMENT,WWEG EP NORTH EAST AVANTA ENTERPRISE,AVANTA ENTERPRISE LTD,2033301415,"33,755"
Department for Work and Pensions,Corporate,16/09/2014,PUBLICITY RES'H/EVAL,CHG STATE PENSION REFORM SINGLE TIER,MARKET & OPINION RESEARCH INTERNATIONAL T/A IPSOS MORI,2033289518,"33,625"
Department for Work and Pensions,Housing Benefits,12/09/2014,HOUSING BENEFIT ADMINISTRATION,HB ENGLAND,DARTFORD BOROUGH COUNCIL,2033287781,"33,617"
Department for Work and Pensions,Housing Benefits,12/09/2014,HOUSING BENEFIT ADMINISTRATION,HB ENGLAND,BROXTOWE BOROUGH COUNCIL,2033287654,"33,592"
Department for Work and Pensions,Housing Benefits,12/09/2014,HOUSING BENEFIT ADMINISTRATION,HB ENGLAND,SOUTH RIBBLE BOROUGH COUNCIL C,2033287774,"33,436"
Department for Work and Pensions,Employment Programmes,08/09/2014,WP JSA 25+ SUSTAINMENT OUTCOME PAYMENT,WWEG EP EAST LONDON CAREERS DEVELOPMENT GROUP,CAREERS DEVELOPMENT GROUP,2033273985,"33,325"
Department for Work and Pensions,Employment Programmes,12/09/2014,WP JSA 25+ SUSTAINMENT OUTCOME PAYMENT,WWEG EP WEST LONDON MAXIMUS EMPLOYMENT UK,MAXIMUS EMPLOYMENT UK LTD,2033285514,"33,325"
Department for Work and Pensions,Employment Programmes,05/09/2014,WP JSA 25+ SUSTAINMENT OUTCOME PAYMENT,WWEG EP NORTH WEST GM CHES AND WARR SEETEC,SEETEC BUSINESS TECHNOLOGY CENTRE LTD,2033271019,"33,325"
Department for Work and Pensions,Housing Benefits,12/09/2014,HOUSING BENEFIT ADMINISTRATION,HB ENGLAND,BOROUGH OF REDDITCH,2033287497,"33,223"
Department for Work and Pensions,Corporate,15/09/2014,NON-TREDDS IS IT SERVICES (AMS),CIO ITLR AMS,INFORMATION SERVICES GROUP EUROPE LTD,2033289144,"33,180"
Department for Work and Pensions,Housing Benefits,12/09/2014,HOUSING BENEFIT ADMINISTRATION,HB ENGLAND,ST ALBANS DISTRICT COUNCIL,2033287747,"33,133"
Department for Work and Pensions,Employment Programmes,23/09/2014,WP JSA 25+ SUSTAINMENT OUTCOME PAYMENT,WWEG EP EAST LONDON CAREERS DEVELOPMENT GROUP,CAREERS DEVELOPMENT GROUP,2033303561,"33,110"
Department for Work and Pensions,Employment Programmes,08/09/2014,WP JSA 25+ SUSTAINMENT OUTCOME PAYMENT,WWEG EP W MIDLANDS BIRM SOL BC FOURSTAR EMP AND SKILLS,EOS WORKS LTD,2033273042,"33,110"
Department for Work and Pensions,Employment Programmes,10/09/2014,WP JSA 25+ SUSTAINMENT OUTCOME PAYMENT,WWEG EP NORTH WEST GM CHES AND WARR G4S,G4S REGIONAL MANAGEMENT UK & I LTD,2033283041,"33,110"
Department for Work and Pensions,Child Maintenance and Enforcement Commission,23/09/2014,PROFESSIONAL SERVICES NON VAT RECOVERABLE,FAMILY SUPPORT SERVICES,RESOLUTION,1000218399,"33,095"
Department for Work and Pensions,Corporate,08/09/2014,STAFF TRAINING VAT RECOVERABLE,HR CONTRACTUAL L AND D,CAPITA CIVIL SERVICE LEARNING,2033273882,"33,089"
Department for Work and Pensions,Housing Benefits,12/09/2014,HOUSING BENEFIT ADMINISTRATION,HB ENGLAND,WEST DORSET DISTRICT COUNCIL,2033287593,"33,011"
Department for Work and Pensions,Housing Benefits,12/09/2014,HOUSING BENEFIT ADMINISTRATION,HB ENGLAND,MID SUSSEX DISTRICT COUNCIL,2033287637,"33,004"
Department for Work and Pensions,Housing Benefits,12/09/2014,HOUSING BENEFIT ADMINISTRATION,HB ENGLAND,VALE OF WHITE HORSE DISTRICT COUNCIL,2033287627,"32,776"
Department for Work and Pensions,Corporate,15/09/2014,CONTRACTORS & STAFF SUBSTITUTIONS,F&C IGS INFO SERVICES,CAPITA BUSINESS SERVICES LTD,2033288299,"32,731"
Department for Work and Pensions,Employment Programmes,23/09/2014,WP JSA 25+ SUSTAINMENT OUTCOME PAYMENT,WWEG EP EAST OF ENGLAND SEETEC,SEETEC BUSINESS TECHNOLOGY CENTRE LTD,2033303133,"32,680"
Department for Work and Pensions,Housing Benefits,12/09/2014,HOUSING BENEFIT ADMINISTRATION,HB ENGLAND,SOUTH OXFORDSHIRE DISTRICT COUNCIL,2033287651,"32,598"
Department for Work and Pensions,Housing Benefits,12/09/2014,HOUSING BENEFIT ADMINISTRATION,HB ENGLAND,SEVENOAKS DISTRICT COUNCIL,2033287816,"32,570"
Department for Work and Pensions,Corporate,23/09/2014,NETWORK SERVICES,CIO ITLR NETWORK,BT GLOBAL SERVICES,2033303324,"32,365"
Department for Work and Pensions,Employment Programmes,17/09/2014,WP JSA 25+ SUSTAINMENT OUTCOME PAYMENT,WWEG EP WEST YORKSHIRE BEST LTD,INTERSERVE WORKING FUTURES,2033291259,"32,250"
Department for Work and Pensions,Employment Programmes,03/09/2014,WP JSA 25+ SUSTAINMENT OUTCOME PAYMENT,WWEG EP S WEST DEV COR DOR AND SOM PROSPECTS SERVICES,PROSPECTS SERVICES LTD,2033261423,"32,250"
Department for Work and Pensions,Employment Programmes,08/09/2014,WP JSA 25+ SUSTAINMENT OUTCOME PAYMENT,WWEG EP WEST LONDON REED IN PARTNERSHIP,REED IN PARTNERSHIP LTD,2033272677,"32,250"
Department for Work and Pensions,Employment Programmes,26/09/2014,WP JSA 25+ SUSTAINMENT OUTCOME PAYMENT,WWEG EP NORTH WEST GM CHES AND WARR SEETEC,SEETEC BUSINESS TECHNOLOGY CENTRE LTD,2033310441,"32,250"
Department for Work and Pensions,Employment Programmes,08/09/2014,WP JSA 25+ JOB OUTCOME PAYMENTWP JSA 25+ JOB OUTCOME PAYMENT,WWEG EP EAST LONDON A4E,A4E LTD,2033272590,"32,202"
Department for Work and Pensions,Housing Benefits,12/09/2014,HOUSING BENEFIT ADMINISTRATION,HB ENGLAND,HORSHAM DISTRICT COUNCIL,2033287799,"32,091"
Department for Work and Pensions,Child Maintenance and Enforcement Commission,04/09/2014,POSTAGE,CS CENTRALLY HELD BUDGETS FACILITIES CONTRACTS,ROYAL MAIL GROUP PLC,1000217169,"32,078"
Department for Work and Pensions,Corporate,12/09/2014,NEW ENTERPRISE ALLOWANCE MENTOR MATCHING,OPS WDC WSD NW MERSEYSIDE DISTRICT OFFICE,ST HELENS CHAMBERS LTD,2033287453,"32,040"
Department for Work and Pensions,Employment Programmes,18/09/2014,WP JSA 25+ SUSTAINMENT OUTCOME PAYMENT,WWEG EP SOUTH EAST SURR SUSSX AND KENT G4S,G4S REGIONAL MANAGEMENT UK & I LTD,2033296977,"32,035"
Department for Work and Pensions,Employment Programmes,12/09/2014,WP JSA 25+ SUSTAINMENT OUTCOME PAYMENT,WWEG EP S WEST DEV COR DOR AND SOM PROSPECTS SERVICES,PROSPECTS SERVICES LTD,2033286004,"32,035"
Department for Work and Pensions,Employment Programmes,04/09/2014,WP JSA 25+ JOB OUTCOME PAYMENTWP JSA 25+ JOB OUTCOME PAYMENT,WWEG EP SOUTH EAST SURR SUSSX AND KENT G4S,G4S REGIONAL MANAGEMENT UK & I LTD,2033270017,"32,016"
Department for Work and Pensions,Corporate,18/09/2014,AGENCY PAYMENTS TO LOCAL AUTHORITIES,CHG UC PROGRAMME RECHARGES,OLDHAM COUNCIL,2033298360,"32,007"
Department for Work and Pensions,Employment Programmes,18/09/2014,RESIDENTIAL TRAINING COSTS,WWEG EP DELIVERY WELFARE TO WORK PRODUCT SUPPORT,RNIB ROYAL NATIONAL INSTITUTE FOR THE BLIND,2033296970,"32,004"
Department for Work and Pensions,Employment Programmes,19/09/2014,WP JSA 18-24 JOB SUSTAINMENT OUTCOME PAYMENT,WWEG EP EAST MIDLANDS A4E,A4E LTD,2033299100,"31,960"
Department for Work and Pensions,Employment Programmes,12/09/2014,ACCESS TO WORK - PAYMENT FOR SUPPORT WORKERS,WWEG EP LONDON REGION,RED BEE MEDIA LTD,2033285633,"31,948"
Department for Work and Pensions,Employment Programmes,01/09/2014,WP JSA 18-24 JOB SUSTAINMENT OUTCOME PAYMENT,WWEG EP NORTH WEST MERS HAL CUMB AND LANCS INGEUS UK,INGEUS UK LTD,2033258141,"31,790"
Department for Work and Pensions,Employment Programmes,01/09/2014,WP JSA 18-24 JOB SUSTAINMENT OUTCOME PAYMENT,WWEG EP EAST MIDLANDS INGEUS UK,INGEUS UK LTD,2033258141,"31,620"
Department for Work and Pensions,Employment Programmes,22/09/2014,WP JSA 25+ SUSTAINMENT OUTCOME PAYMENT,WWEG EP SOUTH EAST SURR SUSSX AND KENT G4S,G4S REGIONAL MANAGEMENT UK & I LTD,2033301836,"31,605"
Department for Work and Pensions,Employment Programmes,19/09/2014,WP JSA 25+ SUSTAINMENT OUTCOME PAYMENT,WWEG EP EAST LONDON SEETEC,SEETEC BUSINESS TECHNOLOGY CENTRE LTD,2033300167,"31,605"
Department for Work and Pensions,Housing Benefits,12/09/2014,HOUSING BENEFIT ADMINISTRATION,HB WALES,MERTHYR TYDFIL BOROUGH COUNCIL,2033287730,"31,534"
Department for Work and Pensions,Employment Programmes,01/09/2014,WP JSA 25+ JOB OUTCOME PAYMENTWP JSA 25+ JOB OUTCOME PAYMENT,WWEG EP SCOTLAND WORKING LINKS,WORKING LINKS,2033258145,"31,488"
Department for Work and Pensions,Employment Programmes,05/09/2014,WP JSA 18-24 JOB SUSTAINMENT OUTCOME PAYMENT,WWEG EP NORTH EAST INGEUS UK,INGEUS UK LTD,2033271955,"31,450"
Department for Work and Pensions,Housing Benefits,12/09/2014,HOUSING BENEFIT ADMINISTRATION,HB ENGLAND,BOSTON BOROUGH COUNCIL,2033287749,"31,374"
Department for Work and Pensions,Corporate,15/09/2014,CONTRACTORS & STAFF SUBSTITUTIONS,CIO CSD HEAD OF SERVICE MAINTENANCE,CAPITA BUSINESS SERVICES LTD,2033288299,"31,347"
Department for Work and Pensions,Employment Programmes,22/09/2014,WP JSA 25+ SUSTAINMENT OUTCOME PAYMENT,WWEG EP NORTH WEST GM CHES AND WARR G4S,G4S REGIONAL MANAGEMENT UK & I LTD,2033301836,"31,175"
Department for Work and Pensions,Corporate,24/09/2014,SECURE PRINTING,FG CD SECURE PRINT,XEROX UK LTD 3W,2033304967,"31,175"
Department for Work and Pensions,Employment Programmes,12/09/2014,SERVICE FEE,WWEG EP SUPPORT GLASGOW,REED IN PARTNERSHIP LTD,2033286332,"31,165"
Department for Work and Pensions,Housing Benefits,12/09/2014,HOUSING BENEFIT ADMINISTRATION,HB ENGLAND,SOUTH CAMBRIDGESHIRE DISTRICT COUNCIL,2033287776,"31,048"
Department for Work and Pensions,Corporate,01/09/2014,NON-TREDDS IS IT SERVICES (AMS),CIO ITPD AM CUSTOMER FACING SYS,ACCENTURE UK LTD,2033258280,"30,975"
Department for Work and Pensions,Employment Programmes,10/09/2014,WP JSA 25+ SUSTAINMENT OUTCOME PAYMENT,WWEG EP NORTH EAST AVANTA ENTERPRISE,AVANTA ENTERPRISE LTD,2033278177,"30,960"
Department for Work and Pensions,Employment Programmes,19/09/2014,WP JSA 25+ SUSTAINMENT OUTCOME PAYMENT,WWEG EP SOUTH EAST SURR SUSSX AND KENT AVANTA ENTERPRISE,AVANTA ENTERPRISE LTD,2033299429,"30,960"
Department for Work and Pensions,Corporate,30/09/2014,CONTRACTORS & STAFF SUBSTITUTIONS,CHG STATE PENSION REFORM SINGLE TIER,CAPITA BUSINESS SERVICES LTD,2033316557,"30,942"
Department for Work and Pensions,Employment Programmes,12/09/2014,WP JSA 18-24 JOB SUSTAINMENT OUTCOME PAYMENT,WWEG EP NORTH WEST MERS HAL CUMB AND LANCS A4E,A4E LTD,2033285388,"30,940"
Department for Work and Pensions,Housing Benefits,12/09/2014,HOUSING BENEFIT ADMINISTRATION,HB ENGLAND,NORTH EAST DERBYSHIRE DISTRICT COUNCIL,2033287650,"30,911"
Department for Work and Pensions,Housing Benefits,12/09/2014,HOUSING BENEFIT ADMINISTRATION,HB ENGLAND,FOREST OF DEAN DISTRICT COUNCIL,2033287541,"30,901"
Department for Work and Pensions,Housing Benefits,12/09/2014,HOUSING BENEFIT ADMINISTRATION,HB ENGLAND,BROADLAND DISTRICT COUNCIL,2033287722,"30,878"
Department for Work and Pensions,Housing Benefits,12/09/2014,HOUSING BENEFIT ADMINISTRATION,HB ENGLAND,STROUD DISTRICT COUNCIL,2033287540,"30,865"
Department for Work and Pensions,Housing Benefits,12/09/2014,HOUSING BENEFIT ADMINISTRATION,HB ENGLAND,EAST HAMPSHIRE DISTRICT COUNCIL,2033287521,"30,775"
Department for Work and Pensions,Employment Programmes,05/09/2014,WP JSA 25+ SUSTAINMENT OUTCOME PAYMENT,WWEG EP W MIDLANDS BIRM SOL BC NEWCASTLE COLLEGE GROUP,NEWCASTLE COLLEGE GROUP,2033271927,"30,745"
Department for Work and Pensions,Housing Benefits,12/09/2014,HOUSING BENEFIT ADMINISTRATION,HB ENGLAND,BOLSOVER DISTRICT COUNCIL,2033287848,"30,737"
Department for Work and Pensions,Housing Benefits,12/09/2014,HOUSING BENEFIT ADMINISTRATION,HB SCOTLAND,THE MORAY COUNCIL,2033287630,"30,731"
Department for Work and Pensions,Employment Programmes,25/09/2014,Youth Contract Wage Incentive Payment,WWEG EP SCOTLAND WORKING LINKS,NORTH LANARKSHIRE COUNCIL,2033309431,"30,713"
Department for Work and Pensions,Corporate,04/09/2014,FSF - SUPPORT CONTRACT MODULES FOR JSA JOBSEEKERS,OPS WDC WSD CE EMPLOYER AND PARTNERSHIPS MIDLAND SHIRES,LEARNDIRECT LTD,2033270380,"30,656"
Department for Work and Pensions,Housing Benefits,12/09/2014,HOUSING BENEFIT ADMINISTRATION,HB ENGLAND,WOKING BOROUGH COUNCIL,2033287840,"30,550"
Department for Work and Pensions,Employment Programmes,19/09/2014,WP JSA 25+ SUSTAINMENT OUTCOME PAYMENT,WWEG EP W MIDLANDS BIRM SOL BC FOURSTAR EMP AND SKILLS,EOS WORKS LTD,2033299404,"30,530"
Department for Work and Pensions,Employment Programmes,30/09/2014,WP JSA 25+ SUSTAINMENT OUTCOME PAYMENT,WWEG EP NORTH EAST Y AND H G4S,G4S REGIONAL MANAGEMENT UK & I LTD,2033315897,"30,530"
Department for Work and Pensions,Corporate,16/09/2014,TREDDS APPS DEV MANDAYS,CHG HDAS IT ENABLEMENT,HP ENTERPRISE SERVICES UK LTD,2033290515,"30,380"
Department for Work and Pensions,Corporate,30/09/2014,SOC SEC RESEARCH BUDGET,STR CHANGE DEPT OF BUS STRATEGY - DEL A,JIGSAW RESEARCH LTD,2033317370,"30,325"
Department for Work and Pensions,Housing Benefits,12/09/2014,HOUSING BENEFIT ADMINISTRATION,HB ENGLAND,SPELTHORNE BOROUGH COUNCIL,2033287842,"30,324"
Department for Work and Pensions,Housing Benefits,12/09/2014,HOUSING BENEFIT ADMINISTRATION,HB ENGLAND,WINCHESTER CITY COUNCIL,2033287499,"30,158"
Department for Work and Pensions,Employment Programmes,04/09/2014,WP JSA 25+ SUSTAINMENT OUTCOME PAYMENT,WWEG EP NORTH WEST GM CHES AND WARR AVANTA ENTERPRISE,AVANTA ENTERPRISE LTD,2033270718,"30,100"
Department for Work and Pensions,Employment Programmes,01/09/2014,WP JSA 25+ SUSTAINMENT OUTCOME PAYMENT,WWEG EP W MIDLANDS BIRM SOL BC NEWCASTLE COLLEGE GROUP,NEWCASTLE COLLEGE GROUP,2033258208,"30,100"
Department for Work and Pensions,Corporate,18/09/2014,NEW ENTERPRISE ALLOWANCE MENTOR MATCHING,OPS WDC WSD SE GREATER WESSEX DISTRICT OFFICE,ENTERPRISE FIRST,2033297568,"30,080"
Department for Work and Pensions,Housing Benefits,12/09/2014,HOUSING BENEFIT ADMINISTRATION,HB ENGLAND,BARROW BOROUGH COUNCIL,2033287846,"30,037"
Department for Work and Pensions,Housing Benefits,12/09/2014,HOUSING BENEFIT ADMINISTRATION,HB ENGLAND,WEST OXFORDSHIRE DISTRICT COUNCIL,2033287626,"30,023"
Department for Work and Pensions,Corporate,08/09/2014,NON-TREDDS APPS DEV FIXED PRICE CONTRACTS,CHG REAL TIME INFORMATION,AUDIT COMMISSION,1006697,"30,000"
Department for Work and Pensions,Corporate,16/09/2014,PROFESSIONAL ADVICE & OPINION VAT RECOVERABLE,FG CD ESTATES PROFESSIONAL FEES,DELOITTE LLP,2033290965,"30,000"
Department for Work and Pensions,Corporate,22/09/2014,COST VARIANCE ACCOUNT,CHG LABOUR MARKET PROG MANAGER & PMO,OXFORD SAID BUSINESS SCHOOL LTD,2033301514,"30,000"
Department for Work and Pensions,Housing Benefits,12/09/2014,HOUSING BENEFIT ADMINISTRATION,HB ENGLAND,SOUTH STAFFORDSHIRE DISTRICT COUNCIL,2033287573,"29,991"
Department for Work and Pensions,Corporate,12/09/2014,NEW ENTERPRISE ALLOWANCE MENTOR MATCHING,OPS WDC WSD SC NORTH OF SCOTLAND DO,CLAVERHOUSE TRAINING,2033285901,"29,940"
Department for Work and Pensions,Employment Programmes,03/09/2014,WP JSA 25+ SUSTAINMENT OUTCOME PAYMENT,WWEG EP NORTH WEST GM CHES AND WARR G4S,G4S REGIONAL MANAGEMENT UK & I LTD,2033260721,"29,885"
Department for Work and Pensions,Employment Programmes,23/09/2014,WP JSA 25+ SUSTAINMENT OUTCOME PAYMENT,WWEG EP EAST LONDON SEETEC,SEETEC BUSINESS TECHNOLOGY CENTRE LTD,2033303133,"29,885"
Department for Work and Pensions,Housing Benefits,12/09/2014,HOUSING BENEFIT ADMINISTRATION,HB ENGLAND,WAVERLEY BOROUGH COUNCIL,2033287603,"29,852"
Department for Work and Pensions,Corporate,11/09/2014,FSF - SUPPORT CONTRACT MODULES FOR JSA JOBSEEKERS,OPS WDC WSD SC GLASGOW LANARKSHIRE E DUMBARTONSHIRE DO,LEARNDIRECT LTD,2033284913,"29,721"
Department for Work and Pensions,Housing Benefits,12/09/2014,HOUSING BENEFIT ADMINISTRATION,HB ENGLAND,ROSSENDALE BOROUGH COUNCIL,2033287791,"29,702"
Department for Work and Pensions,Housing Benefits,12/09/2014,HOUSING BENEFIT ADMINISTRATION,HB ENGLAND,SOUTH HOLLAND DISTRICT COUNCIL,2033287487,"29,697"
Department for Work and Pensions,Employment Programmes,03/09/2014,WP JSA 25+ SUSTAINMENT OUTCOME PAYMENT,WWEG EP NORTH EAST AVANTA ENTERPRISE,AVANTA ENTERPRISE LTD,2033261831,"29,670"
Department for Work and Pensions,Employment Programmes,17/09/2014,WP JSA 25+ SUSTAINMENT OUTCOME PAYMENT,WWEG EP EAST LONDON SEETEC,SEETEC BUSINESS TECHNOLOGY CENTRE LTD,2033295154,"29,670"
Department for Work and Pensions,Employment Programmes,19/09/2014,WP JSA 18-24 JOB SUSTAINMENT OUTCOME PAYMENT,WWEG EP NORTH WEST MERS HAL CUMB AND LANCS A4E,A4E LTD,2033299100,"29,580"
Department for Work and Pensions,Employment Programmes,19/09/2014,WP JSA 25+ SUSTAINMENT OUTCOME PAYMENT,WWEG EP SOUTH YORKSHIRE A4E,A4E LTD,2033299100,"29,455"
Department for Work and Pensions,Employment Programmes,18/09/2014,WP JSA 25+ SUSTAINMENT OUTCOME PAYMENT,WWEG EP EAST LONDON CAREERS DEVELOPMENT GROUP,CAREERS DEVELOPMENT GROUP,2033298025,"29,455"
Department for Work and Pensions,Employment Programmes,01/09/2014,WP JSA 25+ SUSTAINMENT OUTCOME PAYMENT,WWEG EP W MIDLANDS COV WARW STAFFS AND MARCHES ESG,ESG HOLDINGS LIMITED,2033257657,"29,455"
Department for Work and Pensions,Employment Programmes,01/09/2014,WP JSA 25+ SUSTAINMENT OUTCOME PAYMENT,WWEG EP EAST OF ENGLAND SEETEC,SEETEC BUSINESS TECHNOLOGY CENTRE LTD,2033258545,"29,455"
Department for Work and Pensions,Employment Programmes,05/09/2014,WP JSA 18-24 JOB SUSTAINMENT OUTCOME PAYMENT,WWEG EP NORTH WEST MERS HAL CUMB AND LANCS INGEUS UK,INGEUS UK LTD,2033271955,"29,410"
Department for Work and Pensions,Employment Programmes,05/09/2014,WP JSA 18-24 JOB SUSTAINMENT OUTCOME PAYMENT,WWEG EP EAST OF ENGLAND INGEUS UK,INGEUS UK LTD,2033271955,"29,410"
Department for Work and Pensions,Employment Programmes,19/09/2014,WP JSA 18-24 JOB SUSTAINMENT OUTCOME PAYMENT,WWEG EP EAST OF ENGLAND INGEUS UK,INGEUS UK LTD,2033300207,"29,410"
Department for Work and Pensions,Employment Programmes,04/09/2014,WP JSA 25+ JOB OUTCOME PAYMENTWP JSA 25+ JOB OUTCOME PAYMENT,WWEG EP SOUTH YORKSHIRE SERCO,SERCO LTD,2033269030,"29,400"
Department for Work and Pensions,Corporate,30/09/2014,PRIME FACILITY PRICE,FG CD NOTTINGHAM EQUINOX HOUSE,TELEREAL TRILLIUM,2033316621,"29,321"
Department for Work and Pensions,Housing Benefits,12/09/2014,HOUSING BENEFIT ADMINISTRATION,HB ENGLAND,CASTLE POINT DISTRICT COUNCIL,2033287566,"29,264"
Department for Work and Pensions,Employment Programmes,10/09/2014,WP JSA 25+ SUSTAINMENT OUTCOME PAYMENT,WWEG EP SOUTH EAST SURR SUSSX AND KENT AVANTA ENTERPRISE,AVANTA ENTERPRISE LTD,2033278177,"29,240"
Department for Work and Pensions,Employment Programmes,17/09/2014,WP JSA 25+ SUSTAINMENT OUTCOME PAYMENT,WWEG EP NORTH WEST GM CHES AND WARR G4S,G4S REGIONAL MANAGEMENT UK & I LTD,2033294610,"29,240"
Department for Work and Pensions,Employment Programmes,02/09/2014,WP JSA 25+ SUSTAINMENT OUTCOME PAYMENT,WWEG EP NORTH WEST GM CHES AND WARR SEETEC,SEETEC BUSINESS TECHNOLOGY CENTRE LTD,2033258761,"29,240"
Department for Work and Pensions,Employment Programmes,01/09/2014,WP JSA 25+ SUSTAINMENT OUTCOME PAYMENT,WWEG EP WALES WORKING LINKS WALES,WORKING LINKS,2033258145,"29,240"
Department for Work and Pensions,Housing Benefits,12/09/2014,HOUSING BENEFIT ADMINISTRATION,HB ENGLAND,NORTH KESTEVEN DISTRICT COUNCIL,2033287746,"29,116"
Department for Work and Pensions,Employment Programmes,16/09/2014,WP JSA 25+ SUSTAINMENT OUTCOME PAYMENT,WWEG EP NORTH WEST GM CHES AND WARR AVANTA ENTERPRISE,AVANTA ENTERPRISE LTD,2033291003,"29,025"
Department for Work and Pensions,Employment Programmes,15/09/2014,WP JSA 25+ SUSTAINMENT OUTCOME PAYMENT,WWEG EP WEST LONDON REED IN PARTNERSHIP,REED IN PARTNERSHIP LTD,2033288569,"29,025"
Department for Work and Pensions,Corporate,30/09/2014,CONTRACTORS & STAFF SUBSTITUTIONS,CHG UC PROGRAMME MANAGER,CAPITA BUSINESS SERVICES LTD,2033316557,"29,017"
Department for Work and Pensions,Housing Benefits,12/09/2014,HOUSING BENEFIT ADMINISTRATION,HB ENGLAND,HINCKLEY & BOSWORTH BOROUGH COUNCIL,2033287771,"28,906"
Department for Work and Pensions,Employment Programmes,12/09/2014,WP JSA 18-24 JOB SUSTAINMENT OUTCOME PAYMENT,WWEG EP EAST MIDLANDS INGEUS UK,INGEUS UK LTD,2033285488,"28,900"
Department for Work and Pensions,Employment Programmes,15/09/2014,WP JSA 18-24 JOB SUSTAINMENT OUTCOME PAYMENT,WWEG EP SCOTLAND WORKING LINKS,WORKING LINKS,2033288900,"28,900"
Department for Work and Pensions,Employment Programmes,22/09/2014,WP JSA 25+ SUSTAINMENT OUTCOME PAYMENT,WWEG EP NORTH WEST GM CHES AND WARR AVANTA ENTERPRISE,AVANTA ENTERPRISE LTD,2033301415,"28,810"
Department for Work and Pensions,Employment Programmes,19/09/2014,WP JSA 25+ SUSTAINMENT OUTCOME PAYMENT,WWEG EP WEST YORKSHIRE BEST LTD,INTERSERVE WORKING FUTURES,2033300158,"28,810"
Department for Work and Pensions,Employment Programmes,12/09/2014,WP JSA 25+ SUSTAINMENT OUTCOME PAYMENT,WWEG EP SOUTH EAST TV HANTS AND IOW MAXIMUS EMPLOYMENT,MAXIMUS EMPLOYMENT UK LTD,2033285514,"28,810"
Department for Work and Pensions,Housing Benefits,12/09/2014,HOUSING BENEFIT ADMINISTRATION,HB ENGLAND,COPELAND BOROUGH COUNCIL,2033287676,"28,613"
Department for Work and Pensions,Employment Programmes,25/09/2014,WP JSA 25+ SUSTAINMENT OUTCOME PAYMENT,WWEG EP SOUTH YORKSHIRE A4E,A4E LTD,2033308995,"28,595"
Department for Work and Pensions,Housing Benefits,12/09/2014,HOUSING BENEFIT ADMINISTRATION,HB SCOTLAND,STIRLING COUNCIL,2033287788,"28,452"
Department for Work and Pensions,Corporate,25/09/2014,NON PRIME PROPERTY COSTS,FG CD OPS ESTATES NON-PRIME COSTS,WYCHAVON DISTRICT COUNCIL,2033310190,"28,401"
Department for Work and Pensions,Employment Programmes,12/09/2014,WP JSA 25+ SUSTAINMENT OUTCOME PAYMENT,WWEG EP W MIDLANDS BIRM SOL BC FOURSTAR EMP AND SKILLS,EOS WORKS LTD,2033285515,"28,380"
Department for Work and Pensions,Employment Programmes,26/09/2014,WP JSA 25+ JOB OUTCOME PAYMENTWP JSA 25+ JOB OUTCOME PAYMENT,WWEG EP EAST MIDLANDS A4E,A4E LTD,2033311531,"28,272"
Department for Work and Pensions,Housing Benefits,12/09/2014,HOUSING BENEFIT ADMINISTRATION,HB SCOTLAND,EAST DUNBARTONSHIRE COUNCIL,2033287832,"28,231"
Department for Work and Pensions,Housing Benefits,12/09/2014,HOUSING BENEFIT ADMINISTRATION,HB ENGLAND,SOUTH HAMS DISTRICT COUNCIL,2033287622,"28,208"
Department for Work and Pensions,Employment Programmes,02/09/2014,WP JSA 25+ SUSTAINMENT OUTCOME PAYMENT,WWEG EP WEST YORKSHIRE BEST LTD,INTERSERVE WORKING FUTURES,2033259343,"28,165"
Department for Work and Pensions,Employment Programmes,03/09/2014,WP JSA 25+ SUSTAINMENT OUTCOME PAYMENT,WWEG EP NORTH WEST GM CHES AND WARR SEETEC,SEETEC BUSINESS TECHNOLOGY CENTRE LTD,2033262020,"28,165"
Department for Work and Pensions,Corporate,02/09/2014,STAFF TRAINING VAT RECOVERABLE,OPS WDC WSD CE GROUP DIRECTORS OFFICE,CAPITA CIVIL SERVICE LEARNING,2033258876,"28,164"
Department for Work and Pensions,Corporate,25/09/2014,NEW ENTERPRISE ALLOWANCE MENTOR MATCHING,OPS WDC WSD WL SOUTH WEST WALES DISTRICT OFFICE,A4E LTD,2033308905,"28,147"
Department for Work and Pensions,Corporate,30/09/2014,PRIME BUSINESS RATES,FG CD SHEFFIELD KINGS COURT,TELEREAL TRILLIUM,2033316620,"28,117"
Department for Work and Pensions,Housing Benefits,12/09/2014,HOUSING BENEFIT ADMINISTRATION,HB ENGLAND,NORTH WEST LEICESTER DISTRICT COUNCIL,2033287752,"28,023"
Department for Work and Pensions,Child Maintenance and Enforcement Commission,24/09/2014,PUBLICITY RES'H/EVAL,FAMILY SUPPORT SERVICES,GFK NOP LTD,1000218576,"28,000"
Department for Work and Pensions,Employment Programmes,26/09/2014,WP JSA 25+ SUSTAINMENT OUTCOME PAYMENT,WWEG EP WEST YORKSHIRE BEST LTD,INTERSERVE WORKING FUTURES,2033311017,"27,950"
Department for Work and Pensions,Housing Benefits,12/09/2014,HOUSING BENEFIT ADMINISTRATION,HB ENGLAND,THREE RIVERS DISTRICT COUNCIL,2033287476,"27,900"
Department for Work and Pensions,Employment Programmes,26/09/2014,WP JSA 25+ SUSTAINMENT OUTCOME PAYMENT,WWEG EP SOUTH EAST TV HANTS AND IOW MAXIMUS EMPLOYMENT,MAXIMUS EMPLOYMENT UK LTD,2033312014,"27,735"
Department for Work and Pensions,Employment Programmes,23/09/2014,WP JSA 25+ SUSTAINMENT OUTCOME PAYMENT,WWEG EP NORTH WEST GM CHES AND WARR SEETEC,SEETEC BUSINESS TECHNOLOGY CENTRE LTD,2033303133,"27,735"
Department for Work and Pensions,Housing Benefits,12/09/2014,HOUSING BENEFIT ADMINISTRATION,HB WALES,ISLE OF ANGLESEY COUNTY COUNCIL,2033287753,"27,613"
Department for Work and Pensions,Employment Programmes,05/09/2014,WP JSA 18-24 JOB SUSTAINMENT OUTCOME PAYMENT,WWEG EP SCOTLAND INGEUS UK,INGEUS UK LTD,2033271955,"27,540"
Department for Work and Pensions,Employment Programmes,19/09/2014,WP JSA 18-24 JOB SUSTAINMENT OUTCOME PAYMENT,WWEG EP SCOTLAND INGEUS UK,INGEUS UK LTD,2033300207,"27,540"
Department for Work and Pensions,Employment Programmes,19/09/2014,WP JSA 18-24 JOB SUSTAINMENT OUTCOME PAYMENT,WWEG EP NORTH EAST INGEUS UK,INGEUS UK LTD,2033300207,"27,540"
Department for Work and Pensions,Employment Programmes,05/09/2014,WP JSA 25+ SUSTAINMENT OUTCOME PAYMENT,WWEG EP SOUTH YORKSHIRE A4E,A4E LTD,2033270843,"27,520"
Department for Work and Pensions,Employment Programmes,12/09/2014,WP JSA 25+ SUSTAINMENT OUTCOME PAYMENT,WWEG EP SOUTH YORKSHIRE A4E,A4E LTD,2033285388,"27,520"
Department for Work and Pensions,Employment Programmes,01/09/2014,WP JSA 25+ SUSTAINMENT OUTCOME PAYMENT,WWEG EP NORTH WEST GM CHES AND WARR G4S,G4S REGIONAL MANAGEMENT UK & I LTD,2033257344,"27,520"
Department for Work and Pensions,Employment Programmes,04/09/2014,WP JSA 25+ SUSTAINMENT OUTCOME PAYMENT,WWEG EP NORTH WEST GM CHES AND WARR G4S,G4S REGIONAL MANAGEMENT UK & I LTD,2033270017,"27,520"
Department for Work and Pensions,Employment Programmes,03/09/2014,WP JSA 25+ SUSTAINMENT OUTCOME PAYMENT,WWEG EP WEST YORKSHIRE BEST LTD,INTERSERVE WORKING FUTURES,2033261086,"27,520"
Department for Work and Pensions,Employment Programmes,26/09/2014,WP JSA 25+ SUSTAINMENT OUTCOME PAYMENT,WWEG EP SCOTLAND WORKING LINKS,WORKING LINKS,2033311298,"27,520"
Department for Work and Pensions,Housing Benefits,12/09/2014,HOUSING BENEFIT ADMINISTRATION,HB ENGLAND,LICHFIELD DISTRICT COUNCIL,2033287597,"27,419"
Department for Work and Pensions,Corporate,15/09/2014,NEW ENTERPRISE ALLOWANCE MENTOR MATCHING,OPS WDC WSD WL SOUTH EAST WALES DISTRICT OFFICE,A4E LTD,2033289029,"27,418"
Department for Work and Pensions,Housing Benefits,12/09/2014,HOUSING BENEFIT ADMINISTRATION,HB WALES,MONMOUTHSHIRE COUNTY  COUNCIL,2033287755,"27,347"
Department for Work and Pensions,Employment Programmes,17/09/2014,WP JSA 25+ SUSTAINMENT OUTCOME PAYMENT,WWEG EP EAST LONDON CAREERS DEVELOPMENT GROUP,CAREERS DEVELOPMENT GROUP,2033294908,"27,305"
Department for Work and Pensions,Employment Programmes,25/09/2014,WP JSA 25+ SUSTAINMENT OUTCOME PAYMENT,WWEG EP EAST LONDON CAREERS DEVELOPMENT GROUP,CAREERS DEVELOPMENT GROUP,2033309365,"27,305"
Department for Work and Pensions,Employment Programmes,12/09/2014,WP JSA 25+ SUSTAINMENT OUTCOME PAYMENT,WWEG EP NORTH WEST GM CHES AND WARR SEETEC,SEETEC BUSINESS TECHNOLOGY CENTRE LTD,2033285979,"27,305"
Department for Work and Pensions,Employment Programmes,05/09/2014,Youth Contract Wage Incentive Payment,WWEG EP JCP WAGE INCENTIVES,NEW HORIZONS APPRENTICES LTD,2033271091,"27,300"
Department for Work and Pensions,Employment Programmes,24/09/2014,ACCESS TO WORK - PAYMENT FOR SUPPORT WORKERS,WWEG EP NORTH WEST,SIGN COMMUNICATIONS,2033303698,"27,269"
Department for Work and Pensions,Employment Programmes,19/09/2014,WP JSA CLAIMING 22 OF 24MTHS SUSTAINMENT OUTCOME PAYMENT,WWEG EP EAST MIDLANDS A4E,A4E LTD,2033299100,"27,250"
Department for Work and Pensions,Employment Programmes,12/09/2014,WP JSA 18-24 JOB SUSTAINMENT OUTCOME PAYMENT,WWEG EP EAST MIDLANDS A4E,A4E LTD,2033285388,"27,200"
Department for Work and Pensions,Employment Programmes,16/09/2014,WP JSA 25+ SUSTAINMENT OUTCOME PAYMENT,WWEG EP NORTH EAST AVANTA ENTERPRISE,AVANTA ENTERPRISE LTD,2033291003,"27,090"
Department for Work and Pensions,Employment Programmes,29/09/2014,WP JSA 25+ SUSTAINMENT OUTCOME PAYMENT,WWEG EP W MIDLANDS BIRM SOL BC NEWCASTLE COLLEGE GROUP,NEWCASTLE COLLEGE GROUP,2033313777,"27,090"
Department for Work and Pensions,Employment Programmes,17/09/2014,WP JSA 25+ SUSTAINMENT OUTCOME PAYMENT,WWEG EP EAST OF ENGLAND SEETEC,SEETEC BUSINESS TECHNOLOGY CENTRE LTD,2033295154,"27,090"
Department for Work and Pensions,Housing Benefits,12/09/2014,HOUSING BENEFIT ADMINISTRATION,HB ENGLAND,TAMWORTH BOROUGH COUNCIL,2033287571,"26,972"
Department for Work and Pensions,Housing Benefits,12/09/2014,HOUSING BENEFIT ADMINISTRATION,HB ENGLAND,SOUTH LAKELAND DISTRICT COUNCIL,2033287763,"26,918"
Department for Work and Pensions,Corporate,16/09/2014,POSTAGE,FG CD NEWCASTLE ESTATE,ROYAL MAIL GROUP PLC,2033290259,"26,890"
Department for Work and Pensions,Employment Programmes,05/09/2014,WP JSA 25+ JOB OUTCOME PAYMENTWP JSA 25+ JOB OUTCOME PAYMENT,WWEG EP NORTH WEST GM CHES AND WARR G4S,G4S REGIONAL MANAGEMENT UK & I LTD,2033272115,"26,886"
Department for Work and Pensions,Employment Programmes,01/09/2014,WP JSA 25+ SUSTAINMENT OUTCOME PAYMENT,WWEG EP EAST LONDON A4E,A4E LTD,2033258402,"26,875"
Department for Work and Pensions,Employment Programmes,23/09/2014,WP JSA 25+ SUSTAINMENT OUTCOME PAYMENT,WWEG EP NORTH EAST AVANTA ENTERPRISE,AVANTA ENTERPRISE LTD,2033303413,"26,875"
Department for Work and Pensions,Employment Programmes,24/09/2014,WP JSA 25+ SUSTAINMENT OUTCOME PAYMENT,WWEG EP NORTH WEST GM CHES AND WARR AVANTA ENTERPRISE,AVANTA ENTERPRISE LTD,2033304595,"26,875"
Department for Work and Pensions,Employment Programmes,26/09/2014,WP JSA 25+ SUSTAINMENT OUTCOME PAYMENT,WWEG EP WEST LONDON MAXIMUS EMPLOYMENT UK,MAXIMUS EMPLOYMENT UK LTD,2033312014,"26,875"
Department for Work and Pensions,Employment Programmes,08/09/2014,WP JSA 25+ SUSTAINMENT OUTCOME PAYMENT,WWEG EP W MIDLANDS COV WARW STAFFS AND MARCHES SERCO,SERCO LTD,2033273965,"26,875"
Department for Work and Pensions,Employment Programmes,29/09/2014,WP JSA 25+ SUSTAINMENT OUTCOME PAYMENT,WWEG EP S WEST DEV COR DOR AND SOM WORKING LINKS,WORKING LINKS,2033313962,"26,875"
Department for Work and Pensions,Employment Programmes,30/09/2014,WP JSA 18-24 JOB SUSTAINMENT OUTCOME PAYMENT,WWEG EP SOUTH EAST SURR SUSSX AND KENT AVANTA ENTERPRISE,AVANTA ENTERPRISE LTD,2033316360,"26,860"
Department for Work and Pensions,Employment Programmes,26/09/2014,WP JSA 25+ JOB OUTCOME PAYMENTWP JSA 25+ JOB OUTCOME PAYMENT,WWEG EP SCOTLAND WORKING LINKS,WORKING LINKS,2033311298,"26,832"
Department for Work and Pensions,Corporate,26/09/2014,FSF - SUPPORT CONTRACT MODULES FOR JSA JOBSEEKERS,OPS WDC WSD CE EMPLOYER AND PARTNERSHIPS MIDLAND SHIRES,LEARNDIRECT LTD,2033310938,"26,824"
Department for Work and Pensions,Employment Programmes,01/09/2014,WP JSA 25+ JOB OUTCOME PAYMENTWP JSA 25+ JOB OUTCOME PAYMENT,WWEG EP EAST LONDON A4E,A4E LTD,2033258402,"26,754"
Department for Work and Pensions,Corporate,18/09/2014,NEW ENTERPRISE ALLOWANCE MENTOR MATCHING,OPS WDC WSD CE LEICESTERSHIRE AND NORTHAMPTONSHIRE DO,PINNACLE PEOPLE,2033297814,"26,740"
Department for Work and Pensions,Corporate,29/09/2014,DESKTOP SERVICES,CIO ITLR DESKTOP,HP ENTERPRISE SERVICES UK LTD,2033313770,"26,667"
Department for Work and Pensions,Employment Programmes,25/09/2014,ACCESS TO WORK - TRAVEL TO WORK,WWEG EP SOUTH EAST,MOTABILITY,2033309932,"26,666"
Department for Work and Pensions,Employment Programmes,05/09/2014,WP JSA 25+ SUSTAINMENT OUTCOME PAYMENT,WWEG EP NORTH EAST AVANTA ENTERPRISE,AVANTA ENTERPRISE LTD,2033271911,"26,660"
Department for Work and Pensions,Employment Programmes,23/09/2014,WP JSA 25+ SUSTAINMENT OUTCOME PAYMENT,WWEG EP NORTH EAST Y AND H G4S,G4S REGIONAL MANAGEMENT UK & I LTD,2033303177,"26,660"
Department for Work and Pensions,Employment Programmes,11/09/2014,WP JSA 25+ SUSTAINMENT OUTCOME PAYMENT,WWEG EP SCOTLAND WORKING LINKS,WORKING LINKS,2033285275,"26,660"
Department for Work and Pensions,Corporate,04/09/2014,STAFF TRAINING VAT RECOVERABLE,HR CONTRACTUAL L AND D,CAPITA CIVIL SERVICE LEARNING,2033269781,"26,598"
Department for Work and Pensions,Corporate,09/09/2014,NEW ENTERPRISE ALLOWANCE MENTOR MATCHING,OPS WDC WSD SC WEST OF SCOTLAND DO,A4E LTD,2033274329,"26,593"
Department for Work and Pensions,Housing Benefits,12/09/2014,HOUSING BENEFIT ADMINISTRATION,HB ENGLAND,EAST NORTHANTS DISTRICT COUNCIL,2033287694,"26,486"
Department for Work and Pensions,Employment Programmes,08/09/2014,WP JSA 25+ SUSTAINMENT OUTCOME PAYMENT,WWEG EP EAST LONDON SEETEC,SEETEC BUSINESS TECHNOLOGY CENTRE LTD,2033273014,"26,445"
Department for Work and Pensions,Employment Programmes,29/09/2014,WP JSA 25+ SUSTAINMENT OUTCOME PAYMENT,WWEG EP EAST LONDON SEETEC,SEETEC BUSINESS TECHNOLOGY CENTRE LTD,2033315156,"26,445"
Department for Work and Pensions,Employment Programmes,08/09/2014,ESF 2011-13 SUPPORT FOR FAMILIES WITH MULTIPLE PROBLEMS JSA CUSTOMERS JOB OUTCOME PAYMENT,CPA8 SOUTH EAST SKILLS TRAINING UK,SKILLS TRAINING UK LIMITED,2033273846,"26,418"
Department for Work and Pensions,Housing Benefits,12/09/2014,HOUSING BENEFIT ADMINISTRATION,HB WALES,CEREDIGION COUNTY COUNCIL,2033287607,"26,389"
Department for Work and Pensions,Housing Benefits,12/09/2014,HOUSING BENEFIT ADMINISTRATION,HB ENGLAND,WOKINGHAM BOROUGH COUNCIL,2033287691,"26,342"
Department for Work and Pensions,Housing Benefits,12/09/2014,HOUSING BENEFIT ADMINISTRATION,HB ENGLAND,FAREHAM BOROUGH COUNCIL,2033287519,"26,325"
Department for Work and Pensions,Corporate,16/09/2014,POSTAGE,OPS BEN DD SFSB WEMBLEY,ROYAL MAIL GROUP PLC,2033290259,"26,325"
Department for Work and Pensions,Housing Benefits,12/09/2014,HOUSING BENEFIT ADMINISTRATION,HB ENGLAND,TORRIDGE DISTRICT COUNCIL,2033287618,"26,314"
Department for Work and Pensions,Corporate,23/09/2014,PROFESSIONAL ADVICE & OPINION VAT RECOVERABLE,STR LEGAL SERVICES,DLA PIPER UK LLP,2004904,"26,272"
Department for Work and Pensions,Employment Programmes,25/09/2014,WP JSA 18-24 JOB SUSTAINMENT OUTCOME PAYMENT,WWEG EP NORTH WEST MERS HAL CUMB AND LANCS A4E,A4E LTD,2033308995,"26,180"
Department for Work and Pensions,Employment Programmes,22/09/2014,COMMUNITY WORK PLACEMENTS - START FEE,WWEP EP FG CEP CWP CPA08 - SCOTLAND,LEARNDIRECT LTD,2033301649,"26,159"
Department for Work and Pensions,Housing Benefits,12/09/2014,HOUSING BENEFIT ADMINISTRATION,HB ENGLAND,COTSWOLD DISTRICT COUNCIL,2033287489,"26,116"
Department for Work and Pensions,Housing Benefits,12/09/2014,HOUSING BENEFIT ADMINISTRATION,HB ENGLAND,EAST CAMBRIDGESHIRE DISTRICT COUNCIL,2033287778,"26,099"
Department for Work and Pensions,Housing Benefits,12/09/2014,HOUSING BENEFIT ADMINISTRATION,HB ENGLAND,STAFFORDSHIRE MOORLANDS DISTRICT COUNCIL,2033287572,"26,081"
Department for Work and Pensions,Employment Programmes,08/09/2014,SUSTAINMENT FEE,WWEG EP WORK CHOICE HIGH ISLDS AND CLYDE COAST AND GRAMP,MOMENTUM COACH HIRE LTD T/A MOMENTUM TRANSPORT,2033272676,"26,018"
Department for Work and Pensions,Employment Programmes,11/09/2014,WP JSA 25+ SUSTAINMENT OUTCOME PAYMENT,WWEG EP EAST LONDON CAREERS DEVELOPMENT GROUP,CAREERS DEVELOPMENT GROUP,2033284431,"26,015"
Department for Work and Pensions,Housing Benefits,12/09/2014,HOUSING BENEFIT ADMINISTRATION,HB ENGLAND,FYLDE BOROUGH COUNCIL,2033287760,"25,936"
Department for Work and Pensions,Housing Benefits,12/09/2014,HOUSING BENEFIT ADMINISTRATION,HB ENGLAND,MID DEVON DISTRICT COUNCIL,2033287620,"25,920"
Department for Work and Pensions,Employment Programmes,12/09/2014,WP JSA 18-24 JOB SUSTAINMENT OUTCOME PAYMENT,WWEG EP NORTH WEST MERS HAL CUMB AND LANCS INGEUS UK,INGEUS UK LTD,2033285488,"25,840"
Department for Work and Pensions,Corporate,15/09/2014,COURIER COSTS,FG CD CENTRAL CONTRACTS,TNT UK LTD,2033288584,"25,821"
Department for Work and Pensions,Employment Programmes,29/09/2014,WP JSA 25+ SUSTAINMENT OUTCOME PAYMENT,WWEG EP WEST LONDON REED IN PARTNERSHIP,REED IN PARTNERSHIP LTD,2033313617,"25,800"
Department for Work and Pensions,Employment Programmes,30/09/2014,WP JSA 25+ SUSTAINMENT OUTCOME PAYMENT,WWEG EP WALES WORKING LINKS WALES,WORKING LINKS,2033316867,"25,800"
Department for Work and Pensions,Employment Programmes,01/09/2014,WP JSA NEET SUSTAINMENT OUTCOME PAYMENT,WWEG EP SCOTLAND INGEUS UK,INGEUS UK LTD,2033258141,"25,750"
Department for Work and Pensions,Housing Benefits,12/09/2014,HOUSING BENEFIT ADMINISTRATION,HB ENGLAND,BABERGH DISTRICT COUNCIL,2033287570,"25,740"
Department for Work and Pensions,Corporate,22/09/2014,ADEP AM SERVICES - VAT NON-RECOVERABLE,CHG UC DESIGN & BUILD PROGRAMME MANAGER,IBM UNITED KINGDOM LTD,2033302045,"25,740"
Department for Work and Pensions,Corporate,24/09/2014,SECURE PRINTING,OPS OPE FES DISCRETE BUDGET CONTROL,XEROX UK LTD 3W,2033304967,"25,677"
Department for Work and Pensions,Employment Programmes,12/09/2014,WP JSA 18-24 JOB SUSTAINMENT OUTCOME PAYMENT,WWEG EP EAST OF ENGLAND INGEUS UK,INGEUS UK LTD,2033285488,"25,670"
Department for Work and Pensions,Corporate,16/09/2014,ICONS IS IT CONSULTANCY NON ADVICE,CHG UC PATHFINDER DELIVERY MANAGEMENT,BT GLOBAL SERVICES,2033290260,"25,567"
Department for Work and Pensions,Corporate,30/09/2014,CONTRACTORS & STAFF SUBSTITUTIONS,CIO CSD SERVICE DESIGN,CAPITA BUSINESS SERVICES LTD,2033316557,"25,565"
Department for Work and Pensions,Housing Benefits,12/09/2014,HOUSING BENEFIT ADMINISTRATION,HB ENGLAND,HAMBLETON DISTRICT COUNCIL,2033287670,"25,526"
Department for Work and Pensions,Employment Programmes,12/09/2014,WP JSA NEET SUSTAINMENT OUTCOME PAYMENT,WWEG EP EAST MIDLANDS A4E,A4E LTD,2033285388,"25,500"
Department for Work and Pensions,Employment Programmes,04/09/2014,WP JSA 25+ JOB OUTCOME PAYMENTWP JSA 25+ JOB OUTCOME PAYMENT,WWEG EP WEST LONDON MAXIMUS EMPLOYMENT UK,MAXIMUS EMPLOYMENT UK LTD,2033269089,"25,440"
Department for Work and Pensions,Corporate,30/09/2014,CONTRACTORS & STAFF SUBSTITUTIONS,CHG UC SECURITY,CAPITA BUSINESS SERVICES LTD,2033316557,"25,354"
Department for Work and Pensions,Employment Programmes,26/09/2014,WP JSA 18-24 JOB SUSTAINMENT OUTCOME PAYMENT,WWEG EP SCOTLAND INGEUS UK,INGEUS UK LTD,2033311182,"25,330"
Department for Work and Pensions,Corporate,16/09/2014,NEW ENTERPRISE ALLOWANCE MENTOR MATCHING,OPS WDC WSD SE DEVON CORNWALL & SOMERSET DISTRICT,BUSINESS INFORMATION POINT LTD,2033289594,"25,320"
Department for Work and Pensions,Housing Benefits,12/09/2014,HOUSING BENEFIT ADMINISTRATION,HB ENGLAND,TEWKESBURY BOROUGH COUNCIL,2033287539,"25,306"
Department for Work and Pensions,Employment Programmes,01/09/2014,WP JSA 25+ SUSTAINMENT OUTCOME PAYMENT,WWEG EP SOUTH EAST SURR SUSSX AND KENT AVANTA ENTERPRISE,AVANTA ENTERPRISE LTD,2033257349,"25,155"
Department for Work and Pensions,Employment Programmes,12/09/2014,WP JSA 25+ SUSTAINMENT OUTCOME PAYMENT,WWEG EP WEST LONDON REED IN PARTNERSHIP,REED IN PARTNERSHIP LTD,2033286332,"25,155"
Department for Work and Pensions,Housing Benefits,12/09/2014,HOUSING BENEFIT ADMINISTRATION,HB ENGLAND,RUNNYMEDE BOROUGH COUNCIL,2033287843,"25,133"
Department for Work and Pensions,Corporate,15/09/2014,AMS STAT MANDAYS,CIO ITLR AMS,HP ENTERPRISE SERVICES UK LTD,2033288635,"25,098"
Department for Work and Pensions,Housing Benefits,12/09/2014,HOUSING BENEFIT ADMINISTRATION,HB ENGLAND,RUSHCLIFFE BOROUGH COUNCIL,2033287851,"25,076"
Department for Work and Pensions,Corporate,30/09/2014,CONTRACTORS & STAFF SUBSTITUTIONS,CIO ADC DIRECTOR,CAPITA BUSINESS SERVICES LTD,2033316557,"25,056"
Department for Work and Pensions,Employment Programmes,03/09/2014,WP JSA 25+ JOB OUTCOME PAYMENTWP JSA 25+ JOB OUTCOME PAYMENT,WWEG EP SOUTH EAST SURR SUSSX AND KENT G4S,G4S REGIONAL MANAGEMENT UK & I LTD,2033260721,"25,008"
Department for Work and Pensions,Corporate,04/09/2014,VOCA Charges,FG FIN CONT COBAP BANKING,CITIBANK GLOBAL CORPORATE BANKING,2033270579,"25,000"
Department for Work and Pensions,Corporate,22/09/2014,FSF - LOCAL INITIATIVES TO HELP JSA CLIENTS INTO WORK,OPS WDC WSD NE WEST YORKSHIRE DISTRICT OFFICE,CITY OF BRADFORD METROPOLITAN DIST COUNCIL,1006715,"25,000"
Department for Work and Pensions,Employment Programmes,05/09/2014,WP JSA 18-24 JOB SUSTAINMENT OUTCOME PAYMENT,WWEG EP EAST MIDLANDS INGEUS UK,INGEUS UK LTD,2033271955,"24,990"
Department for Work and Pensions,Employment Programmes,26/09/2014,WP JSA 18-24 JOB SUSTAINMENT OUTCOME PAYMENT,WWEG EP NORTH EAST INGEUS UK,INGEUS UK LTD,2033311182,"24,990"
Department for Work and Pensions,Employment Programmes,26/09/2014,WP JSA 25+ SUSTAINMENT OUTCOME PAYMENT,WWEG EP W MIDLANDS COV WARW STAFFS AND MARCHES ESG,ESG HOLDINGS LIMITED,2033310479,"24,940"
Department for Work and Pensions,Employment Programmes,01/09/2014,WP JSA 25+ SUSTAINMENT OUTCOME PAYMENT,WWEG EP S WEST GLOS WILTS AND W OF E JHP GROUP,LEARNDIRECT LTD,2033258067,"24,940"
Department for Work and Pensions,Employment Programmes,05/09/2014,WP JSA 25+ SUSTAINMENT OUTCOME PAYMENT,WWEG EP W MIDLANDS BIRM SOL BC PERTEMPS,PERTEMPS,2033271139,"24,940"
Department for Work and Pensions,Employment Programmes,01/09/2014,WP JSA 25+ SUSTAINMENT OUTCOME PAYMENT,WWEG EP EAST LONDON SEETEC,SEETEC BUSINESS TECHNOLOGY CENTRE LTD,2033258545,"24,940"
Department for Work and Pensions,Corporate,15/09/2014,CONTRACTORS & STAFF SUBSTITUTIONS,CHG UC SECURITY,CAPITA BUSINESS SERVICES LTD,2033288299,"24,925"
Department for Work and Pensions,Housing Benefits,12/09/2014,HOUSING BENEFIT ADMINISTRATION,HB SCOTLAND,CLACKMANNANSHIRE COUNCIL,2033287742,"24,908"
Department for Work and Pensions,Employment Programmes,08/09/2014,WP JSA 25+ SUSTAINMENT OUTCOME PAYMENT,WWEG EP EAST OF ENGLAND INGEUS UK,INGEUS UK LTD,2033274124,"24,725"
Department for Work and Pensions,Employment Programmes,08/09/2014,WP JSA 25+ SUSTAINMENT OUTCOME PAYMENT,WWEG EP WALES REHAB JOB FIT,REHAB JOBFIT,2033273339,"24,725"
Department for Work and Pensions,Employment Programmes,02/09/2014,WP JSA 25+ SUSTAINMENT OUTCOME PAYMENT,WWEG EP W MIDLANDS COV WARW STAFFS AND MARCHES SERCO,SERCO LTD,2033259159,"24,725"
Department for Work and Pensions,Employment Programmes,04/09/2014,WP JSA 25+ JOB OUTCOME PAYMENTWP JSA 25+ JOB OUTCOME PAYMENT,WWEG EP SOUTH EAST TV HANTS AND IOW MAXIMUS EMPLOYMENT,MAXIMUS EMPLOYMENT UK LTD,2033269089,"24,642"
Department for Work and Pensions,Corporate,12/09/2014,NON PRIME WORKS - VAT RECOVERABLE,CHG UC PATHFINDER DELIVERY MANAGEMENT,HP ENTERPRISE SERVICES UK LTD,2033286335,"24,592"
Department for Work and Pensions,Employment Programmes,02/09/2014,WP JSA 25+ SUSTAINMENT OUTCOME PAYMENT,WWEG EP NORTH EAST AVANTA ENTERPRISE,AVANTA ENTERPRISE LTD,2033259155,"24,510"
Department for Work and Pensions,Employment Programmes,26/09/2014,WP JSA 25+ SUSTAINMENT OUTCOME PAYMENT,WWEG EP W MIDLANDS BIRM SOL BC FOURSTAR EMP AND SKILLS,EOS WORKS LTD,2033312015,"24,510"
Department for Work and Pensions,Employment Programmes,26/09/2014,WP JSA 25+ SUSTAINMENT OUTCOME PAYMENT,WWEG EP SOUTH EAST SURR SUSSX AND KENT G4S,G4S REGIONAL MANAGEMENT UK & I LTD,2033311238,"24,510"
Department for Work and Pensions,Employment Programmes,29/09/2014,WP JSA 25+ SUSTAINMENT OUTCOME PAYMENT,WWEG EP EAST OF ENGLAND INGEUS UK,INGEUS UK LTD,2033313959,"24,510"
Department for Work and Pensions,Employment Programmes,10/09/2014,WP JSA 25+ SUSTAINMENT OUTCOME PAYMENT,WWEG EP W MIDLANDS BIRM SOL BC NEWCASTLE COLLEGE GROUP,NEWCASTLE COLLEGE GROUP,2033280459,"24,510"
Department for Work and Pensions,Corporate,26/09/2014,FSF - TRAINING PAYMENTS TO PROVIDERS - JSA JOBSEEKERS,OPS WDC WSD SC DUNDEE WELLGATE JOBCENTRE PLUS,LEARNDIRECT LTD,2033310938,"24,466"
Department for Work and Pensions,Employment Programmes,15/09/2014,WP JSA 25+ SUSTAINMENT OUTCOME PAYMENT,WWEG EP SCOTLAND INGEUS UK,INGEUS UK LTD,2033288843,"24,295"
Department for Work and Pensions,Employment Programmes,29/09/2014,WP JSA 25+ SUSTAINMENT OUTCOME PAYMENT,WWEG EP WALES REHAB JOB FIT,REHAB JOBFIT,2033315729,"24,295"
Department for Work and Pensions,Employment Programmes,02/09/2014,WP JSA 25+ SUSTAINMENT OUTCOME PAYMENT,WWEG EP WALES WORKING LINKS WALES,WORKING LINKS,2033259217,"24,295"
Department for Work and Pensions,Employment Programmes,26/09/2014,WP JSA 25+ SUSTAINMENT OUTCOME PAYMENT,WWEG EP WALES WORKING LINKS WALES,WORKING LINKS,2033311298,"24,295"
Department for Work and Pensions,Employment Programmes,08/09/2014,WP JSA 25+ SUSTAINMENT OUTCOME PAYMENT,WWEG EP EAST MIDLANDS A4E,A4E LTD,2033272590,"24,080"
Department for Work and Pensions,Employment Programmes,26/09/2014,WP JSA 25+ SUSTAINMENT OUTCOME PAYMENT,WWEG EP NORTH EAST AVANTA ENTERPRISE,AVANTA ENTERPRISE LTD,2033310893,"24,080"
Department for Work and Pensions,Employment Programmes,19/09/2014,WP JSA 25+ SUSTAINMENT OUTCOME PAYMENT,WWEG EP W MIDLANDS BIRM SOL BC NEWCASTLE COLLEGE GROUP,NEWCASTLE COLLEGE GROUP,2033300101,"24,080"
Department for Work and Pensions,Employment Programmes,01/09/2014,WP JSA 25+ SUSTAINMENT OUTCOME PAYMENT,WWEG EP S WEST GLOS WILTS AND W OF E REHAB JOB FIT,REHAB JOBFIT,2033257362,"24,080"
Department for Work and Pensions,Corporate,01/09/2014,CONSULTANTS VAT RECOVERABLE,FG INTERNAL AUDIT,PRICE WATERHOUSE COOPER LLP,2033258361,"24,000"
Department for Work and Pensions,Employment Programmes,29/09/2014,ESF 2011-13 SUPPORT FOR FAMILIES WITH MULTIPLE PROBLEMS JSA CUSTOMERS PROGRESS MEASURE - INITIAL 25% PAYMENT,CPA8 SOUTH EAST SKILLS TRAINING UK,SKILLS TRAINING UK LIMITED,2033314839,"23,972"
Department for Work and Pensions,Corporate,16/09/2014,INTERPRETATION AND TRANSLATION SERVICES,OPS BEN BD LN HACKNEY,PRESTIGE NETWORK LTD,2033291149,"23,960"
Department for Work and Pensions,Employment Programmes,29/09/2014,WP JSA 25+ SUSTAINMENT OUTCOME PAYMENT,WWEG EP WEST LONDON MAXIMUS EMPLOYMENT UK,MAXIMUS EMPLOYMENT UK LTD,2033314091,"23,865"
Department for Work and Pensions,Employment Programmes,01/09/2014,WP JSA 25+ SUSTAINMENT OUTCOME PAYMENT,WWEG EP NORTH EAST Y AND H NEWCASTLE COLLEGE GROUP,NEWCASTLE COLLEGE GROUP,2033258208,"23,865"
Department for Work and Pensions,Employment Programmes,12/09/2014,WP JSA 25+ SUSTAINMENT OUTCOME PAYMENT,WWEG EP W MIDLANDS BIRM SOL BC NEWCASTLE COLLEGE GROUP,NEWCASTLE COLLEGE GROUP,2033287214,"23,865"
Department for Work and Pensions,Employment Programmes,22/09/2014,WP JSA 25+ SUSTAINMENT OUTCOME PAYMENT,WWEG EP S WEST DEV COR DOR AND SOM WORKING LINKS,WORKING LINKS,2033302584,"23,865"
Department for Work and Pensions,Corporate,22/09/2014,FSF - TRAINING PAYMENTS TO PROVIDERS - JSA JOBSEEKERS,OPS WDC WSD LN NORTH LONDON DISTRICT OFFICE,REED IN PARTNERSHIP LTD,2033300869,"23,815"
Department for Work and Pensions,Child Maintenance and Enforcement Commission,18/09/2014,OVERTIME,DEBT ENF AREA MANAGEMENT OFFICE,DSD GROUP ACCOUNT,1001814,"23,807"
Department for Work and Pensions,Employment Programmes,05/09/2014,WP JSA NEET SUSTAINMENT OUTCOME PAYMENT,WWEG EP EAST MIDLANDS A4E,A4E LTD,2033270843,"23,750"
Department for Work and Pensions,Employment Programmes,30/09/2014,WP JSA NEET SUSTAINMENT OUTCOME PAYMENT,WWEG EP WEST YORKSHIRE BEST LTD,INTERSERVE WORKING FUTURES,2033316932,"23,750"
Department for Work and Pensions,Employment Programmes,03/09/2014,ESF 2011-13 SUPPORT FOR FAMILIES WITH MULTIPLE PROBLEMS JSA CUSTOMERS SECOND PROGRESS MEASURE PAYMENT,CPA8 SOUTH EAST SKILLS TRAINING UK,SKILLS TRAINING UK LIMITED,2033260399,"23,727"
Department for Work and Pensions,Employment Programmes,26/09/2014,WP JSA 25+ SUSTAINMENT OUTCOME PAYMENT,WWEG EP EAST LONDON A4E,A4E LTD,2033311531,"23,650"
Department for Work and Pensions,Employment Programmes,05/09/2014,WP JSA 25+ SUSTAINMENT OUTCOME PAYMENT,WWEG EP NORTH WEST GM CHES AND WARR AVANTA ENTERPRISE,AVANTA ENTERPRISE LTD,2033271911,"23,650"
Department for Work and Pensions,Employment Programmes,09/09/2014,WP JSA 25+ SUSTAINMENT OUTCOME PAYMENT,WWEG EP NORTH EAST Y AND H G4S,G4S REGIONAL MANAGEMENT UK & I LTD,2033275885,"23,650"
Department for Work and Pensions,Employment Programmes,16/09/2014,WP JSA 25+ SUSTAINMENT OUTCOME PAYMENT,WWEG EP WALES WORKING LINKS WALES,WORKING LINKS,2033289682,"23,650"
Department for Work and Pensions,Employment Programmes,19/09/2014,WP JSA 18-24 JOB SUSTAINMENT OUTCOME PAYMENT,WWEG EP NORTH WEST MERS HAL CUMB AND LANCS INGEUS UK,INGEUS UK LTD,2033300207,"23,630"
Department for Work and Pensions,Employment Programmes,26/09/2014,WP JSA 25+ JOB OUTCOME PAYMENTWP JSA 25+ JOB OUTCOME PAYMENT,WWEG EP NORTH WEST MERS HAL CUMB AND LANCS A4E,A4E LTD,2033311531,"23,616"
Department for Work and Pensions,Employment Programmes,19/09/2014,WP JSA 25+ SUSTAINMENT OUTCOME PAYMENT,WWEG EP NORTH WEST GM CHES AND WARR AVANTA ENTERPRISE,AVANTA ENTERPRISE LTD,2033299429,"23,435"
Department for Work and Pensions,Employment Programmes,09/09/2014,WP JSA 25+ SUSTAINMENT OUTCOME PAYMENT,WWEG EP EAST OF ENGLAND INGEUS UK,INGEUS UK LTD,2033274893,"23,435"
Department for Work and Pensions,Employment Programmes,08/09/2014,WP JSA 25+ SUSTAINMENT OUTCOME PAYMENT,WWEG EP SOUTH EAST TV HANTS AND IOW MAXIMUS EMPLOYMENT,MAXIMUS EMPLOYMENT UK LTD,2033273041,"23,435"
Department for Work and Pensions,Employment Programmes,22/09/2014,WP JSA 25+ SUSTAINMENT OUTCOME PAYMENT,WWEG EP WEST LONDON REED IN PARTNERSHIP,REED IN PARTNERSHIP LTD,2033300868,"23,435"
Department for Work and Pensions,Housing Benefits,12/09/2014,HOUSING BENEFIT ADMINISTRATION,HB ENGLAND,EAST DORSET DISTRICT COUNCIL,2033287581,"23,409"
Department for Work and Pensions,Housing Benefits,12/09/2014,HOUSING BENEFIT ADMINISTRATION,HB ENGLAND,SOUTH DERBYSHIRE DISTRICT COUNCIL,2033287577,"23,403"
Department for Work and Pensions,Corporate,05/09/2014,FSF - REMOVING OTHER BARRIERS TO WORK  - SICK/DISABLED CLIENTS,OPS WDC WSD SE DEVON CORNWALL & SOMERSET DISTRICT,CAREERS SOUTH WEST LTD,2033270897,"23,321"
Department for Work and Pensions,Employment Programmes,26/09/2014,WP JSA 18-24 JOB SUSTAINMENT OUTCOME PAYMENT,WWEG EP EAST OF ENGLAND INGEUS UK,INGEUS UK LTD,2033311182,"23,290"
Department for Work and Pensions,Housing Benefits,12/09/2014,HOUSING BENEFIT ADMINISTRATION,HB ENGLAND,MALVERN HILLS DISTRICT COUNCIL,2033287789,"23,258"
Department for Work and Pensions,Employment Programmes,01/09/2014,WP JSA NEET SUSTAINMENT OUTCOME PAYMENT,WWEG EP EAST OF ENGLAND INGEUS UK,INGEUS UK LTD,2033258141,"23,250"
Department for Work and Pensions,Employment Programmes,24/09/2014,ESF 2011-13 SUPPORT FOR FAMILIES WITH MULTIPLE PROBLEMS JSA CUSTOMERS. FIRST PROGRESS MEASURE PAYMENT.,CPA8 SOUTH EAST SKILLS TRAINING UK,SKILLS TRAINING UK LIMITED,2033305128,"23,238"
Department for Work and Pensions,Employment Programmes,18/09/2014,WP JSA 25+ SUSTAINMENT OUTCOME PAYMENT,WWEG EP NORTH EAST AVANTA ENTERPRISE,AVANTA ENTERPRISE LTD,2033298257,"23,220"
Department for Work and Pensions,Employment Programmes,15/09/2014,WP JSA 25+ SUSTAINMENT OUTCOME PAYMENT,WWEG EP EAST OF ENGLAND INGEUS UK,INGEUS UK LTD,2033288843,"23,220"
Department for Work and Pensions,Employment Programmes,22/09/2014,WP JSA 25+ SUSTAINMENT OUTCOME PAYMENT,WWEG EP WALES REHAB JOB FIT,REHAB JOBFIT,2033301134,"23,220"
Department for Work and Pensions,Housing Benefits,12/09/2014,HOUSING BENEFIT ADMINISTRATION,HB ENGLAND,MOLE VALLEY DISTRICT COUNCIL,2033287480,"23,191"
Department for Work and Pensions,Housing Benefits,12/09/2014,HOUSING BENEFIT ADMINISTRATION,HB ENGLAND,SELBY DISTRICT COUNCIL,2033287744,"23,179"
Department for Work and Pensions,Employment Programmes,01/09/2014,WP JSA 18-24 JOB SUSTAINMENT OUTCOME PAYMENT,WWEG EP WEST YORKSHIRE INGEUS UK,INGEUS UK LTD,2033258141,"23,120"
Department for Work and Pensions,Corporate,16/09/2014,POSTAGE,OPS PEN PS CAU,ROYAL MAIL GROUP PLC,2033290259,"23,094"
Department for Work and Pensions,Employment Programmes,15/09/2014,WP JSA 25+ SUSTAINMENT OUTCOME PAYMENT,WWEG EP WEST LONDON INGEUS UK,INGEUS UK LTD,2033288843,"23,005"
Department for Work and Pensions,Employment Programmes,24/09/2014,WP JSA 25+ SUSTAINMENT OUTCOME PAYMENT,WWEG EP W MIDLANDS BIRM SOL BC NEWCASTLE COLLEGE GROUP,NEWCASTLE COLLEGE GROUP,2033305932,"23,005"
Department for Work and Pensions,Employment Programmes,15/09/2014,WP JSA 25+ SUSTAINMENT OUTCOME PAYMENT,WWEG EP WALES WORKING LINKS WALES,WORKING LINKS,2033288900,"23,005"
Department for Work and Pensions,Employment Programmes,02/09/2014,ESF 2011-13 SUPPORT FOR FAMILIES WITH MULTIPLE PROBLEMS JSA CUSTOMERS PROGRESS MEASURE - INITIAL 25% PAYMENT,CPA8 SOUTH EAST SKILLS TRAINING UK,SKILLS TRAINING UK LIMITED,2033258914,"22,993"
Department for Work and Pensions,Employment Programmes,26/09/2014,WP JSA 18-24 JOB SUSTAINMENT OUTCOME PAYMENT,WWEG EP NORTH WEST MERS HAL CUMB AND LANCS INGEUS UK,INGEUS UK LTD,2033311182,"22,950"
Department for Work and Pensions,Corporate,30/09/2014,PRIME BUSINESS RATES,FG CD BIRCHWOOD,TELEREAL TRILLIUM,2033316620,"22,895"
Department for Work and Pensions,Housing Benefits,12/09/2014,HOUSING BENEFIT ADMINISTRATION,HB ENGLAND,FOREST HEATH DISTRICT COUNCIL,2033287548,"22,875"
Department for Work and Pensions,Employment Programmes,15/09/2014,WP JSA 25+ SUSTAINMENT OUTCOME PAYMENT,WWEG EP EAST LONDON A4E,A4E LTD,2033289030,"22,790"
Department for Work and Pensions,Employment Programmes,12/09/2014,WP JSA 25+ SUSTAINMENT OUTCOME PAYMENT,WWEG EP NORTH WEST GM CHES AND WARR G4S,G4S REGIONAL MANAGEMENT UK & I LTD,2033286922,"22,790"
Department for Work and Pensions,Employment Programmes,30/09/2014,WP JSA 25+ SUSTAINMENT OUTCOME PAYMENT,WWEG EP EAST OF ENGLAND INGEUS UK,INGEUS UK LTD,2033316864,"22,790"
Department for Work and Pensions,Employment Programmes,05/09/2014,WP JSA 25+ SUSTAINMENT OUTCOME PAYMENT,WWEG EP S WEST GLOS WILTS AND W OF E JHP GROUP,LEARNDIRECT LTD,2033271473,"22,790"
Department for Work and Pensions,Employment Programmes,12/09/2014,WP JSA 25+ SUSTAINMENT OUTCOME PAYMENT,WWEG EP W MIDLANDS BIRM SOL BC PERTEMPS,PERTEMPS,2033286732,"22,790"
Department for Work and Pensions,Employment Programmes,17/09/2014,WP JSA 25+ SUSTAINMENT OUTCOME PAYMENT,WWEG EP WEST LONDON REED IN PARTNERSHIP,REED IN PARTNERSHIP LTD,2033292326,"22,790"
Department for Work and Pensions,Employment Programmes,29/09/2014,WP JSA 25+ SUSTAINMENT OUTCOME PAYMENT,WWEG EP NORTH WEST GM CHES AND WARR SEETEC,SEETEC BUSINESS TECHNOLOGY CENTRE LTD,2033315156,"22,790"
Department for Work and Pensions,Employment Programmes,05/09/2014,WP JSA 18-24 JOB SUSTAINMENT OUTCOME PAYMENT,WWEG EP NORTH WEST MERS HAL CUMB AND LANCS A4E,A4E LTD,2033270843,"22,780"
Department for Work and Pensions,Employment Programmes,19/09/2014,WP JSA 18-24 JOB SUSTAINMENT OUTCOME PAYMENT,WWEG EP EAST MIDLANDS INGEUS UK,INGEUS UK LTD,2033300207,"22,780"
Department for Work and Pensions,Employment Programmes,02/09/2014,WP JSA 25+ JOB OUTCOME PAYMENTWP JSA 25+ JOB OUTCOME PAYMENT,WWEG EP SCOTLAND WORKING LINKS,WORKING LINKS,2033259217,"22,704"
Department for Work and Pensions,Corporate,18/09/2014,PROFESSIONAL ADVICE & OPINION VAT RECOVERABLE,FG INTERNAL AUDIT,PRICE WATERHOUSE COOPER LLP,2033297077,"22,680"
Department for Work and Pensions,Employment Programmes,12/09/2014,WP JSA 18-24 JOB SUSTAINMENT OUTCOME PAYMENT,WWEG EP NORTH EAST INGEUS UK,INGEUS UK LTD,2033285488,"22,610"
Department for Work and Pensions,Employment Programmes,30/09/2014,SERVICE FEE,WWEG EP CORE MWA CPA LONDON,SEETEC BUSINESS TECHNOLOGY CENTRE LTD,2033316030,"22,601"
Department for Work and Pensions,Employment Programmes,26/09/2014,WP JSA 25+ SUSTAINMENT OUTCOME PAYMENT,WWEG EP S WEST GLOS WILTS AND W OF E JHP GROUP,LEARNDIRECT LTD,2033311202,"22,575"
Department for Work and Pensions,Employment Programmes,08/09/2014,WP JSA 25+ SUSTAINMENT OUTCOME PAYMENT,WWEG EP WEST LONDON MAXIMUS EMPLOYMENT UK,MAXIMUS EMPLOYMENT UK LTD,2033273041,"22,575"
Department for Work and Pensions,Housing Benefits,12/09/2014,HOUSING BENEFIT ADMINISTRATION,HB ENGLAND,BLABY DISTRICT COUNCIL,2033287811,"22,496"
Department for Work and Pensions,Housing Benefits,12/09/2014,HOUSING BENEFIT ADMINISTRATION,HB ENGLAND,CHILTERN DISTRICT COUNCIL,2033287483,"22,462"
Department for Work and Pensions,Employment Programmes,25/09/2014,WP JSA 18-24 JOB SUSTAINMENT OUTCOME PAYMENT,WWEG EP EAST MIDLANDS A4E,A4E LTD,2033308995,"22,440"
Department for Work and Pensions,Corporate,15/09/2014,NETWORK SERVICES,CHG DIGITAL JOBCENTRES,BT GLOBAL SERVICES,2033288507,"22,440"
Department for Work and Pensions,Employment Programmes,12/09/2014,WP JSA 25+ SUSTAINMENT OUTCOME PAYMENT,WWEG EP NORTH WEST GM CHES AND WARR AVANTA ENTERPRISE,AVANTA ENTERPRISE LTD,2033287182,"22,360"
Department for Work and Pensions,Employment Programmes,22/09/2014,WP JSA 25+ SUSTAINMENT OUTCOME PAYMENT,WWEG EP SOUTH EAST SURR SUSSX AND KENT AVANTA ENTERPRISE,AVANTA ENTERPRISE LTD,2033301415,"22,360"
Department for Work and Pensions,Employment Programmes,15/09/2014,WP JSA 25+ SUSTAINMENT OUTCOME PAYMENT,WWEG EP W MIDLANDS COV WARW STAFFS AND MARCHES ESG,ESG HOLDINGS LIMITED,2033288461,"22,360"
Department for Work and Pensions,Employment Programmes,19/09/2014,WP JSA 25+ SUSTAINMENT OUTCOME PAYMENT,WWEG EP WEST LONDON REED IN PARTNERSHIP,REED IN PARTNERSHIP LTD,2033299778,"22,360"
Department for Work and Pensions,Employment Programmes,01/09/2014,WP JSA 25+ SUSTAINMENT OUTCOME PAYMENT,WWEG EP W MIDLANDS COV WARW STAFFS AND MARCHES SERCO,SERCO LTD,2033257612,"22,360"
Department for Work and Pensions,Employment Programmes,24/09/2014,WP JSA 25+ SUSTAINMENT OUTCOME PAYMENT,WWEG EP SCOTLAND WORKING LINKS,WORKING LINKS,2033304430,"22,360"
Department for Work and Pensions,Housing Benefits,12/09/2014,HOUSING BENEFIT ADMINISTRATION,HB ENGLAND,BROMSGROVE DISTRICT COUNCIL,2033287498,"22,343"
Department for Work and Pensions,Housing Benefits,12/09/2014,HOUSING BENEFIT ADMINISTRATION,HB ENGLAND,DAVENTRY DISTRICT COUNCIL,2033287695,"22,322"
Department for Work and Pensions,Employment Programmes,26/09/2014,WP JSA 25+ JOB OUTCOME PAYMENTWP JSA 25+ JOB OUTCOME PAYMENT,WWEG EP NORTH EAST AVANTA ENTERPRISE,AVANTA ENTERPRISE LTD,2033310893,"22,260"
Department for Work and Pensions,Child Maintenance and Enforcement Commission,16/09/2014,TREDDS IS IT CONSULTANCY (HOSTING) NON ADVICE,MI PROJECT TACTICAL,HP ENTERPRISE SERVICES UK LTD,1000217958,"22,256"
Department for Work and Pensions,Corporate,30/09/2014,PRIME FACILITY PRICE,FG CD PORTH OLDWAY HOUSE,TELEREAL TRILLIUM,2033316621,"22,236"
Department for Work and Pensions,Employment Programmes,26/09/2014,WP JSA 25+ SUSTAINMENT OUTCOME PAYMENT,WWEG EP W MIDLANDS BIRM SOL BC PERTEMPS,PERTEMPS,2033311162,"22,145"
Department for Work and Pensions,Employment Programmes,12/09/2014,WP JSA 25+ SUSTAINMENT OUTCOME PAYMENT,WWEG EP SOUTH YORKSHIRE SERCO,SERCO LTD,2033285736,"22,145"
Department for Work and Pensions,Employment Programmes,03/09/2014,WP JSA 18-24 JOB SUSTAINMENT OUTCOME PAYMENT,WWEG EP SOUTH EAST SURR SUSSX AND KENT AVANTA ENTERPRISE,AVANTA ENTERPRISE LTD,2033261831,"22,100"
Department for Work and Pensions,Housing Benefits,12/09/2014,HOUSING BENEFIT ADMINISTRATION,HB ENGLAND,TANDRIDGE DISTRICT COUNCIL,2033287604,"22,053"
Department for Work and Pensions,Corporate,11/09/2014,FSF - SUPPORT CONTRACT MODULES FOR JSA JOBSEEKERS,OPS WDC WSD SC GLASGOW LANARKSHIRE E DUMBARTONSHIRE DO,REED IN PARTNERSHIP LTD,2033284179,"22,050"
Department for Work and Pensions,Corporate,16/09/2014,POSTAGE,OPS NET CC CAPITA,ROYAL MAIL GROUP PLC,2033290259,"21,990"
Department for Work and Pensions,Employment Programmes,12/09/2014,WP JSA 18-24 JOB SUSTAINMENT OUTCOME PAYMENT,WWEG EP SCOTLAND INGEUS UK,INGEUS UK LTD,2033285488,"21,930"
Department for Work and Pensions,Employment Programmes,26/09/2014,WP JSA 18-24 JOB SUSTAINMENT OUTCOME PAYMENT,WWEG EP EAST MIDLANDS INGEUS UK,INGEUS UK LTD,2033311182,"21,930"
Department for Work and Pensions,Employment Programmes,23/09/2014,WP JSA 25+ SUSTAINMENT OUTCOME PAYMENT,WWEG EP S WEST DEV COR DOR AND SOM PROSPECTS SERVICES,PROSPECTS SERVICES LTD,2033303040,"21,930"
Department for Work and Pensions,Employment Programmes,22/09/2014,WP JSA 25+ SUSTAINMENT OUTCOME PAYMENT,WWEG EP NORTH WEST GM CHES AND WARR SEETEC,SEETEC BUSINESS TECHNOLOGY CENTRE LTD,2033300724,"21,930"
Department for Work and Pensions,Corporate,17/09/2014,SOC SEC RESEARCH BUDGET,STR PRIVATE PENS DIRECTOR AND SUPPORT,TNS BMRB,2033291208,"21,845"
Department for Work and Pensions,Employment Programmes,04/09/2014,WP JSA 25+ JOB OUTCOME PAYMENTWP JSA 25+ JOB OUTCOME PAYMENT,WWEG EP EAST LONDON SEETEC,SEETEC BUSINESS TECHNOLOGY CENTRE LTD,2033269361,"21,792"
Department for Work and Pensions,Employment Programmes,25/09/2014,WP JSA NEET SUSTAINMENT OUTCOME PAYMENT,WWEG EP EAST MIDLANDS A4E,A4E LTD,2033308995,"21,750"
Department for Work and Pensions,Employment Programmes,19/09/2014,WP JSA NEET SUSTAINMENT OUTCOME PAYMENT,WWEG EP SCOTLAND INGEUS UK,INGEUS UK LTD,2033300207,"21,750"
Department for Work and Pensions,Employment Programmes,23/09/2014,WP JSA 25+ SUSTAINMENT OUTCOME PAYMENT,WWEG EP EAST LONDON A4E,A4E LTD,2033303097,"21,715"
Department for Work and Pensions,Employment Programmes,05/09/2014,WP JSA 25+ SUSTAINMENT OUTCOME PAYMENT,WWEG EP EAST LONDON CAREERS DEVELOPMENT GROUP,CAREERS DEVELOPMENT GROUP,2033271619,"21,715"
Department for Work and Pensions,Employment Programmes,02/09/2014,WP JSA 25+ SUSTAINMENT OUTCOME PAYMENT,WWEG EP SOUTH EAST SURR SUSSX AND KENT G4S,G4S REGIONAL MANAGEMENT UK & I LTD,2033258917,"21,715"
Department for Work and Pensions,Employment Programmes,26/09/2014,WP JSA 25+ SUSTAINMENT OUTCOME PAYMENT,WWEG EP WEST LONDON REED IN PARTNERSHIP,REED IN PARTNERSHIP LTD,2033311743,"21,715"
Department for Work and Pensions,Employment Programmes,15/09/2014,WP JSA 25+ SUSTAINMENT OUTCOME PAYMENT,WWEG EP WALES REHAB JOB FIT,REHAB JOBFIT,2033288867,"21,715"
Department for Work and Pensions,Employment Programmes,01/09/2014,WP JSA 25+ SUSTAINMENT OUTCOME PAYMENT,WWEG EP NORTH WEST GM CHES AND WARR SEETEC,SEETEC BUSINESS TECHNOLOGY CENTRE LTD,2033258545,"21,715"
Department for Work and Pensions,Employment Programmes,24/09/2014,WP JSA 25+ SUSTAINMENT OUTCOME PAYMENT,WWEG EP EAST OF ENGLAND SEETEC,SEETEC BUSINESS TECHNOLOGY CENTRE LTD,2033307033,"21,715"
Department for Work and Pensions,Employment Programmes,25/09/2014,WP JSA 25+ SUSTAINMENT OUTCOME PAYMENT,WWEG EP SCOTLAND WORKING LINKS,WORKING LINKS,2033309764,"21,715"
Department for Work and Pensions,Employment Programmes,01/09/2014,WP JSA 25+ JOB OUTCOME PAYMENTWP JSA 25+ JOB OUTCOME PAYMENT,WWEG EP EAST OF ENGLAND INGEUS UK,INGEUS UK LTD,2033258141,"21,657"
Department for Work and Pensions,Corporate,10/09/2014,GOVERNMENT ACTUARY'S DEPT,STR PRIVATE PENS DIRECTOR AND SUPPORT,GOVERNMENT ACTUARYS DEPARTMENT GAD,2004879,"21,639"
Department for Work and Pensions,Employment Programmes,29/09/2014,SERVICE FEE,WWEG EP CORE MWA CPA NORTH WEST,LEARNDIRECT LTD,2033314666,"21,610"
Department for Work and Pensions,Employment Programmes,12/09/2014,WP JSA 18-24 JOB SUSTAINMENT OUTCOME PAYMENT,WWEG EP NORTH EAST AVANTA ENTERPRISE,AVANTA ENTERPRISE LTD,2033287182,"21,590"
Department for Work and Pensions,Housing Benefits,12/09/2014,HOUSING BENEFIT ADMINISTRATION,HB ENGLAND,MID SUFFOLK DISTRICT COUNCIL,2033287546,"21,562"
Department for Work and Pensions,Corporate,25/09/2014,NETWORK CONTACT CENTRE SERVICES,CIO ITLR NETWORK,BT GLOBAL SERVICES,2033309933,"21,520"
Department for Work and Pensions,Employment Programmes,08/09/2014,WP JSA 25+ SUSTAINMENT OUTCOME PAYMENT,WWEG EP EAST LONDON A4E,A4E LTD,2033272590,"21,500"
Department for Work and Pensions,Employment Programmes,25/09/2014,WP JSA 25+ SUSTAINMENT OUTCOME PAYMENT,WWEG EP NORTH EAST AVANTA ENTERPRISE,AVANTA ENTERPRISE LTD,2033309157,"21,500"
Department for Work and Pensions,Employment Programmes,29/09/2014,WP JSA 25+ SUSTAINMENT OUTCOME PAYMENT,WWEG EP W MIDLANDS BIRM SOL BC FOURSTAR EMP AND SKILLS,EOS WORKS LTD,2033314092,"21,500"
Department for Work and Pensions,Employment Programmes,22/09/2014,WP JSA 25+ SUSTAINMENT OUTCOME PAYMENT,WWEG EP SCOTLAND INGEUS UK,INGEUS UK LTD,2033302582,"21,500"
Department for Work and Pensions,Employment Programmes,29/09/2014,WP JSA 25+ SUSTAINMENT OUTCOME PAYMENT,WWEG EP SCOTLAND INGEUS UK,INGEUS UK LTD,2033313959,"21,500"
Department for Work and Pensions,Employment Programmes,15/09/2014,WP JSA 25+ SUSTAINMENT OUTCOME PAYMENT,WWEG EP WEST LONDON MAXIMUS EMPLOYMENT UK,MAXIMUS EMPLOYMENT UK LTD,2033288098,"21,500"
Department for Work and Pensions,Employment Programmes,15/09/2014,WP JSA 25+ SUSTAINMENT OUTCOME PAYMENT,WWEG EP SOUTH EAST TV HANTS AND IOW MAXIMUS EMPLOYMENT,MAXIMUS EMPLOYMENT UK LTD,2033288098,"21,500"
Department for Work and Pensions,Employment Programmes,19/09/2014,WP JSA 25+ SUSTAINMENT OUTCOME PAYMENT,WWEG EP W MIDLANDS BIRM SOL BC PERTEMPS,PERTEMPS,2033300113,"21,500"
Department for Work and Pensions,Employment Programmes,10/09/2014,WP JSA 25+ SUSTAINMENT OUTCOME PAYMENT,WWEG EP S WEST DEV COR DOR AND SOM PROSPECTS SERVICES,PROSPECTS SERVICES LTD,2033280092,"21,500"
Department for Work and Pensions,Employment Programmes,15/09/2014,WP JSA 25+ SUSTAINMENT OUTCOME PAYMENT,WWEG EP EAST LONDON SEETEC,SEETEC BUSINESS TECHNOLOGY CENTRE LTD,2033288744,"21,500"
Department for Work and Pensions,Employment Programmes,24/09/2014,WP JSA 18-24 JOB SUSTAINMENT OUTCOME PAYMENT,WWEG EP SOUTH EAST SURR SUSSX AND KENT AVANTA ENTERPRISE,AVANTA ENTERPRISE LTD,2033304595,"21,420"
Department for Work and Pensions,Employment Programmes,02/09/2014,WP JSA 18-24 JOB SUSTAINMENT OUTCOME PAYMENT,WWEG EP WEST YORKSHIRE BEST LTD,INTERSERVE WORKING FUTURES,2033259343,"21,420"
Department for Work and Pensions,Corporate,16/09/2014,SOFTWARE LICENCES GREATER THAN ONE YEAR TERM,CHG PIP IT PHASE 3,SPECIALIST COMPUTER CENTRES PLC,2033290226,"21,410"
Department for Work and Pensions,Employment Programmes,05/09/2014,WP JSA 25+ JOB OUTCOME PAYMENTWP JSA 25+ JOB OUTCOME PAYMENT,WWEG EP EAST MIDLANDS A4E,A4E LTD,2033270843,"21,408"
Department for Work and Pensions,Housing Benefits,12/09/2014,HOUSING BENEFIT ADMINISTRATION,HB ENGLAND,ROCHFORD DISTRICT COUNCIL,2033287543,"21,337"
Department for Work and Pensions,Employment Programmes,30/09/2014,SUSTAINMENT FEE,WWEG EP WORK CHOICE DEVON AND CORNWALL,THE PLUSS ORGANISATION,2033317157,"21,334"
Department for Work and Pensions,Employment Programmes,01/09/2014,WP JSA 25+ SUSTAINMENT OUTCOME PAYMENT,WWEG EP EAST MIDLANDS A4E,A4E LTD,2033258402,"21,285"
Department for Work and Pensions,Employment Programmes,10/09/2014,WP JSA 25+ SUSTAINMENT OUTCOME PAYMENT,WWEG EP EAST MIDLANDS A4E,A4E LTD,2033277871,"21,285"
Department for Work and Pensions,Employment Programmes,02/09/2014,WP JSA 25+ SUSTAINMENT OUTCOME PAYMENT,WWEG EP WALES REHAB JOB FIT,REHAB JOBFIT,2033258809,"21,285"
Department for Work and Pensions,Employment Programmes,19/09/2014,WP JSA 25+ SUSTAINMENT OUTCOME PAYMENT,WWEG EP W MIDLANDS COV WARW STAFFS AND MARCHES SERCO,SERCO LTD,2033299841,"21,285"
Department for Work and Pensions,Employment Programmes,08/09/2014,WP JSA 25+ SUSTAINMENT OUTCOME PAYMENT,WWEG EP WALES WORKING LINKS WALES,WORKING LINKS,2033274125,"21,285"
Department for Work and Pensions,Housing Benefits,12/09/2014,HOUSING BENEFIT ADMINISTRATION,HB ENGLAND,ADUR DISTRICT COUNCIL,2033287820,"21,213"
Department for Work and Pensions,Employment Programmes,12/09/2014,SERVICE FEE,WWEG EP CORE MWA CPA NORTH WEST,LEARNDIRECT LTD,2033285917,"21,186"
Department for Work and Pensions,Employment Programmes,30/09/2014,WP JSA 18-24 JOB SUSTAINMENT OUTCOME PAYMENT,WWEG EP SCOTLAND WORKING LINKS,WORKING LINKS,2033316867,"21,080"
Department for Work and Pensions,Employment Programmes,02/09/2014,WP JSA 25+ SUSTAINMENT OUTCOME PAYMENT,WWEG EP NORTH WEST GM CHES AND WARR G4S,G4S REGIONAL MANAGEMENT UK & I LTD,2033258917,"21,070"
Department for Work and Pensions,Employment Programmes,16/09/2014,WP JSA 25+ SUSTAINMENT OUTCOME PAYMENT,WWEG EP EAST OF ENGLAND INGEUS UK,INGEUS UK LTD,2033289681,"21,070"
Department for Work and Pensions,Employment Programmes,12/09/2014,WP JSA 25+ SUSTAINMENT OUTCOME PAYMENT,WWEG EP W MIDLANDS COV WARW STAFFS AND MARCHES SERCO,SERCO LTD,2033285736,"21,070"
Department for Work and Pensions,Employment Programmes,05/09/2014,WP JSA CLAIMING 22 OF 24MTHS SUSTAINMENT OUTCOME PAYMENT,WWEG EP EAST MIDLANDS A4E,A4E LTD,2033270843,"21,000"
Department for Work and Pensions,Corporate,24/09/2014,CONTRACTORS & STAFF SUBSTITUTIONS,F&C CORP SVS FIN WORKING AGE,CAPITA BUSINESS SERVICES LTD,2033308151,"20,979"
Department for Work and Pensions,Housing Benefits,12/09/2014,HOUSING BENEFIT ADMINISTRATION,HB ENGLAND,SURREY HEATH BOROUGH COUNCIL,2033287841,"20,973"
Department for Work and Pensions,Corporate,15/09/2014,REMOTE STORAGE COSTS VAT RECOV,FG OPS FIN DM CONTRACTS,CAPITA BUSINESS SERVICES LTD,2033288649,"20,942"
Department for Work and Pensions,Corporate,16/09/2014,POSTAGE,OPS BEN BD CE DERBY,ROYAL MAIL GROUP PLC,2033290259,"20,929"
Department for Work and Pensions,Employment Programmes,08/09/2014,WP JSA 18-24 JOB SUSTAINMENT OUTCOME PAYMENT,WWEG EP SCOTLAND WORKING LINKS,WORKING LINKS,2033274125,"20,910"
Department for Work and Pensions,Corporate,12/09/2014,AMS FIXED PRICE CONTRACTS,CIO ITLR AMS,HP ENTERPRISE SERVICES UK LTD,2033286335,"20,900"
Department for Work and Pensions,Employment Programmes,03/09/2014,WP JSA 25+ SUSTAINMENT OUTCOME PAYMENT,WWEG EP NORTH WEST MERS HAL CUMB AND LANCS A4E,A4E LTD,2033263975,"20,855"
Department for Work and Pensions,Employment Programmes,15/09/2014,WP JSA 25+ SUSTAINMENT OUTCOME PAYMENT,WWEG EP EAST MIDLANDS A4E,A4E LTD,2033289030,"20,855"
Department for Work and Pensions,Employment Programmes,29/09/2014,WP JSA 25+ SUSTAINMENT OUTCOME PAYMENT,WWEG EP S WEST GLOS WILTS AND W OF E JHP GROUP,LEARNDIRECT LTD,2033314666,"20,855"
Department for Work and Pensions,Employment Programmes,26/09/2014,WP JSA 25+ JOB OUTCOME PAYMENTWP JSA 25+ JOB OUTCOME PAYMENT,WWEG EP EAST LONDON A4E,A4E LTD,2033311531,"20,772"
Department for Work and Pensions,Employment Programmes,01/09/2014,WP JSA NEET SUSTAINMENT OUTCOME PAYMENT,WWEG EP EAST MIDLANDS INGEUS UK,INGEUS UK LTD,2033258141,"20,750"
Department for Work and Pensions,Employment Programmes,05/09/2014,WP JSA 18-24 JOB SUSTAINMENT OUTCOME PAYMENT,WWEG EP EAST MIDLANDS A4E,A4E LTD,2033270843,"20,740"
Department for Work and Pensions,Employment Programmes,19/09/2014,WP JSA 18-24 JOB SUSTAINMENT OUTCOME PAYMENT,WWEG EP EAST LONDON A4E,A4E LTD,2033299100,"20,740"
Department for Work and Pensions,Employment Programmes,09/09/2014,WP JSA 25+ SUSTAINMENT OUTCOME PAYMENT,WWEG EP W MIDLANDS COV WARW STAFFS AND MARCHES ESG,ESG HOLDINGS LIMITED,2033274189,"20,640"
Department for Work and Pensions,Employment Programmes,16/09/2014,WP JSA 25+ SUSTAINMENT OUTCOME PAYMENT,WWEG EP NORTH EAST INGEUS UK,INGEUS UK LTD,2033289681,"20,640"
Department for Work and Pensions,Employment Programmes,26/09/2014,SUSTAINMENT FEE,WWEG EP WORK CHOICE BIRMINGHAM SOLIHULL BLACK COUNTRY,ADVANCE HOUSING & SUPPORT LTD,2033311297,"20,609"
Department for Work and Pensions,Employment Programmes,24/09/2014,ACCESS TO WORK - PAYMENT FOR SUPPORT WORKERS,WWEG EP SOUTH EAST,REMPLOY LIMITED,2033306286,"20,563"
Department for Work and Pensions,Employment Programmes,01/09/2014,WP JSA EARLY ACCESS SUSTAINMENT OUTCOME PAYMENT,WWEG EP EAST MIDLANDS INGEUS UK,INGEUS UK LTD,2033258141,"20,500"
Department for Work and Pensions,Corporate,30/09/2014,PRIME BUSINESS RATES,FG CD MANCHESTER ANCHORAGE HOUSE,TELEREAL TRILLIUM,2033316620,"20,485"
Department for Work and Pensions,Employment Programmes,10/09/2014,WP JSA 25+ SUSTAINMENT OUTCOME PAYMENT,WWEG EP EAST LONDON A4E,A4E LTD,2033277871,"20,425"
Department for Work and Pensions,Employment Programmes,26/09/2014,WP JSA 25+ SUSTAINMENT OUTCOME PAYMENT,WWEG EP NORTH WEST GM CHES AND WARR G4S,G4S REGIONAL MANAGEMENT UK & I LTD,2033311238,"20,425"
Department for Work and Pensions,Employment Programmes,09/09/2014,WP JSA 25+ SUSTAINMENT OUTCOME PAYMENT,WWEG EP SCOTLAND INGEUS UK,INGEUS UK LTD,2033274893,"20,425"
Department for Work and Pensions,Employment Programmes,11/09/2014,WP JSA 25+ SUSTAINMENT OUTCOME PAYMENT,WWEG EP EAST OF ENGLAND INGEUS UK,INGEUS UK LTD,2033285272,"20,425"
Department for Work and Pensions,Employment Programmes,04/09/2014,WP JSA 25+ SUSTAINMENT OUTCOME PAYMENT,WWEG EP WEST LONDON MAXIMUS EMPLOYMENT UK,MAXIMUS EMPLOYMENT UK LTD,2033269089,"20,425"
Department for Work and Pensions,Employment Programmes,19/09/2014,WP JSA 25+ SUSTAINMENT OUTCOME PAYMENT,WWEG EP EAST OF ENGLAND SEETEC,SEETEC BUSINESS TECHNOLOGY CENTRE LTD,2033300167,"20,425"
Department for Work and Pensions,Employment Programmes,26/09/2014,WP JSA 25+ SUSTAINMENT OUTCOME PAYMENT,WWEG EP W MIDLANDS COV WARW STAFFS AND MARCHES SERCO,SERCO LTD,2033311249,"20,425"
Department for Work and Pensions,Employment Programmes,11/09/2014,WP JSA 18-24 JOB SUSTAINMENT OUTCOME PAYMENT,WWEG EP NORTH EAST AVANTA ENTERPRISE,AVANTA ENTERPRISE LTD,2033284512,"20,400"
Department for Work and Pensions,Employment Programmes,04/09/2014,WP JSA 25+ JOB OUTCOME PAYMENTWP JSA 25+ JOB OUTCOME PAYMENT,WWEG EP W MIDLANDS BIRM SOL BC FOURSTAR EMP AND SKILLS,EOS WORKS LTD,2033269090,"20,400"
Department for Work and Pensions,Employment Programmes,29/09/2014,WP JSA 25+ JOB OUTCOME PAYMENTWP JSA 25+ JOB OUTCOME PAYMENT,WWEG EP W MIDLANDS COV WARW STAFFS AND MARCHES ESG,ESG HOLDINGS LIMITED,2033315219,"20,352"
Department for Work and Pensions,Housing Benefits,12/09/2014,HOUSING BENEFIT ADMINISTRATION,HB ENGLAND,EPSOM & EWELL BOROUGH COUNCIL,2033287482,"20,315"
Department for Work and Pensions,Employment Programmes,01/09/2014,WP JSA 25+ JOB OUTCOME PAYMENTWP JSA 25+ JOB OUTCOME PAYMENT,WWEG EP S WEST DEV COR DOR AND SOM PROSPECTS SERVICES,PROSPECTS SERVICES LTD,2033257836,"20,304"
Department for Work and Pensions,Employment Programmes,03/09/2014,ESF 2011-13 SUPPORT FOR FAMILIES WITH MULTIPLE PROBLEMS JSA CUSTOMERS. FIRST PROGRESS MEASURE PAYMENT.,CPA12 YORKS AND HUMBER EOS WORKS LTD FORMERLY FOURSTAR,EOS WORKS LTD,2033264161,"20,296"
Department for Work and Pensions,Corporate,16/09/2014,POSTAGE,OPS PEN PS AA UNIT,ROYAL MAIL GROUP PLC,2033290259,"20,269"
Department for Work and Pensions,Employment Programmes,26/09/2014,WP JSA 18-24 JOB SUSTAINMENT OUTCOME PAYMENT,WWEG EP EAST OF ENGLAND SEETEC,SEETEC BUSINESS TECHNOLOGY CENTRE LTD,2033310441,"20,230"
Department for Work and Pensions,Employment Programmes,01/09/2014,WP JSA 18-24 JOB SUSTAINMENT OUTCOME PAYMENT,WWEG EP SCOTLAND WORKING LINKS,WORKING LINKS,2033258145,"20,230"
Department for Work and Pensions,Housing Benefits,12/09/2014,HOUSING BENEFIT ADMINISTRATION,HB ENGLAND,NORTH DORSET DISTRICT COUNCIL,2033287596,"20,217"
Department for Work and Pensions,Employment Programmes,08/09/2014,WP JSA 25+ SUSTAINMENT OUTCOME PAYMENT,WWEG EP NORTH WEST MERS HAL CUMB AND LANCS A4E,A4E LTD,2033272590,"20,210"
Department for Work and Pensions,Employment Programmes,10/09/2014,WP JSA 25+ SUSTAINMENT OUTCOME PAYMENT,WWEG EP NORTH WEST MERS HAL CUMB AND LANCS A4E,A4E LTD,2033277871,"20,210"
Department for Work and Pensions,Employment Programmes,04/09/2014,WP JSA 25+ SUSTAINMENT OUTCOME PAYMENT,WWEG EP SOUTH EAST SURR SUSSX AND KENT AVANTA ENTERPRISE,AVANTA ENTERPRISE LTD,2033270718,"20,210"
Department for Work and Pensions,Employment Programmes,16/09/2014,WP JSA 25+ SUSTAINMENT OUTCOME PAYMENT,WWEG EP SCOTLAND INGEUS UK,INGEUS UK LTD,2033289681,"20,210"
Department for Work and Pensions,Employment Programmes,30/09/2014,WP JSA 25+ SUSTAINMENT OUTCOME PAYMENT,WWEG EP EAST OF ENGLAND SEETEC,SEETEC BUSINESS TECHNOLOGY CENTRE LTD,2033316030,"20,210"
Department for Work and Pensions,Employment Programmes,01/09/2014,WP JSA 25+ SUSTAINMENT OUTCOME PAYMENT,WWEG EP SOUTH YORKSHIRE SERCO,SERCO LTD,2033257612,"20,210"
